{"text_format":"1","workbook":"xlsx","n_sheets":9,"sheets":["Cover","Screenshots","Statistics","Success Criteria","Colour Contrast Analysis","Non-text Contrast","Changelog","Comboboxes","Data Table"],"not_rendered":{"charts":0,"images":65,"macros":1,"external_links":0,"defined_names":54,"comments":0,"pivot_tables":0},"unopened":[],"bounds":{"document_bytes":16777216,"sheet_cells":100000,"rows_first":2000,"rows_last":500,"rows_between":2000,"halvings":0,"cell_chars":16384,"cell_head_chars":4096},"cells_cut":0,"cells_raw":0,"read":"whole","date_system":"1900"}

{"sheet":"Cover","index":0,"n_rows":0,"n_cols":0,"rows_kept":0,"cut":false,"hidden":true,"merged":[[0,0,0,3]]}

{"sheet":"Screenshots","index":1,"n_rows":81,"n_cols":2,"rows_kept":81,"cut":false,"hidden":false,"merged":[]}
[]
[]
["Header (logged out) (Home page)"]
[]
["Header (logged in)"]
[]
["Footer (Home page)"]
[]
["Hero area (Home page - desktop and mobile layouts)"]
[]
["Search"]
[]
["Featured (Issue page)"]
[]
["Have your say"]
[]
["Quick Poll"]
[]
["Quick Poll Results"]
[]
["Updates and impact"]
[null,"Have not seen a component like the design (see first image), but found the above quite different one, so have reviewed that instead. \nQ: Is one like the design coming?"]
["Start a discussion"]
[]
["Learn more"]
[]
["Related content (Discussion in issue page)"]
[]
["Comments"]
[]
["Timeline (Issue page)"]
[]
["Video"]
[]
["Next steps"]
[]
["Infographic"]
[]
["Search Results including Filter"]
[]
["Your impact"]
[]
["Survey form"]
[]
["Status"]
[]
["Invite members"]
[]
["Following"]
[]
["Supporting"]
[]
["Surveys"]
[]
["Ideas"]
[]
["Topics (on Topics page)"]
[" "," "]
["City Hall (About page)"]
[]
["Page 30"]
["Page 31"]
["Page 32"]
["Page 33"]
["Page 34"]
["Page 35"]
["Page 36"]
["Page 37"]
["Page 38"]
["Page 39"]
["Page 40"]
["Page 41"]
["Page 42"]
["Page 43"]
["Page 44"]
["Page 45"]
["Page 46"]
["Page 47"]
["Page 48"]
["Page 49"]
["Page 50"]

{"sheet":"Statistics","index":2,"n_rows":68,"n_cols":27,"rows_kept":68,"cut":false,"hidden":false,"merged":[[7,12,7,15],[5,12,5,15],[11,23,12,23],[11,22,12,22],[4,12,4,15],[11,24,12,24],[0,21,0,26],[1,21,9,26],[6,12,6,15],[0,0,0,15],[11,26,12,26],[11,25,12,25],[11,21,12,21],[6,8,6,11],[9,2,9,7],[9,8,9,11],[9,12,9,15],[6,2,6,7],[4,16,4,17],[1,8,1,11],[2,12,2,15],[64,16,64,19],[11,16,11,19],[11,12,11,15],[64,12,64,15],[8,8,8,11],[8,12,8,15],[4,8,4,11],[67,0,67,2],[66,0,66,2],[11,4,11,7],[11,8,11,11],[5,8,5,11],[11,0,11,3],[5,2,5,7],[8,2,8,7],[7,8,7,11],[64,8,64,11],[64,4,64,7],[7,2,7,7],[4,2,4,7],[1,2,1,7],[2,2,2,7],[3,2,3,7],[1,16,1,17],[2,16,2,17],[3,16,3,17],[3,12,3,15],[2,8,2,11],[3,8,3,11]]}
["\nWCAG 2.1 website accessibility audit\nStatistics",null,null,null,null,null,null,null,null,null,null,null,null,null,null,null,null,null,null,null,null,"Hide these columns before delivery to the client"]
["Client",null,"Greater London Authority",null,null,null,null,null,"Test Environment",null,null,null,null,null,null,null,"Scope",null,null,null,null,"Many cells are protected and cannot be edited. Unprotect the worksheet to delete columns or rows.\nDo not add columns or rows.\n\nSee Steve Green if amendments are necessary."]
["Website",null,"Talk London 3.0 (Phase 1)",null,null,null,null,null,"Primary Operating System",null,null,null,"Windows 10",null,null,null,"Level A",null,"Yes"]
["URL",null,"https://talk-pentest.london.gov.uk/talk-london/",null,null,null,null,null,"Primary Browser",null,null,null,"Chrome",null,null,null,"Level AA",null,"Yes"]
["Quotation Number",null,"005382",null,null,null,null,null,"Primary Screen Reader",null,null,null,"JAWS",null,null,null,"Level AAA",null,"No"]
["Report Version Number",null,"3",null,null,null,null,null,"Screen Size",null,null,null,"1920 x 1080"]
["This document last updated by:",null,"Guy Hickling",null,null,null,null,null,"Screen Resolution",null,null,null,"1920 x 1080"]
["This document last updated on:",null,"2020-12-01",null,null,null,null,null,"Secondary Browser 1",null,null,null,"Firefox"]
[null,null,null,null,null,null,null,null,"Secondary Browser 2",null,null,null,"Microsoft Edge"]
[null,null,null,null,null,null,null,null,"Secondary Browser 3"]
[]
[null,null,null,null,"Level A",null,null,null,"Level AA",null,null,null,"Level AAA",null,null,null,"Total",null,null,null,null,"Level A Checkpoints Done ","Level A Checkpoints Complete ","Level AA Checkpoints Done ","Level AA Checkpoints Complete ","Level AAA Checkpoints Done ","Level AAA Checkpoints Complete "]
["ID","Page Name","Page URL","Page or Component","Pass","Fail","N/A","Not tested","Pass","Fail","N/A ","Not tested","Pass","Fail","N/A ","Not tested","Pass","Fail","N/A ","Not tested"]
[1,"Header (logged out)",null,"Component",{"$f":"SUM(COUNTIF('Success Criteria'!E7:E69,\"PASS\"),COUNTIF('Success Criteria'!E7:E69,\"PASS with comments\"))","v":16},{"$f":"COUNTIF('Success Criteria'!E7:E69,\"NON COMPLIANT\")","v":5},{"$f":"COUNTIF('Success Criteria'!E7:E69,\"N/A\")","v":9},{"$f":"COUNTIF('Success Criteria'!E7:E69,\"not tested\")","v":0},{"$f":"SUM(COUNTIF('Success Criteria'!$E73:$E114,\"PASS\"),COUNTIF('Success Criteria'!$E73:$E114,\"PASS with comments\"))","v":15},{"$f":"COUNTIF('Success Criteria'!$E73:$E114,\"NON COMPLIANT\")","v":1},{"$f":"COUNTIF('Success Criteria'!$E73:$E114,\"N/A\")","v":4},{"$f":"COUNTIF('Success Criteria'!$E73:$E114,\"not tested\")","v":0},{"$f":"SUM(COUNTIF('Success Criteria'!$E119:$E173,\"PASS\"),COUNTIF('Success Criteria'!$E119:$E173,\"PASS with comments\"))","v":0},{"$f":"COUNTIF('Success Criteria'!$E119:$E173,\"NON COMPLIANT\")","v":0},{"$f":"COUNTIF('Success Criteria'!$E119:$E173,\"N/A\")","v":0},{"$f":"COUNTIF('Success Criteria'!$E119:$E173,\"not tested\")","v":28},{"$f":"SUM(E14+I14+M14)","v":31},{"$f":"SUM(F14+J14+N14)","v":6},{"$f":"SUM(G14+K14+O14)","v":13},{"$f":"SUM(H14+L14+P14)","v":28},null,{"$f":"SUM(E14:H14)","v":30},{"$f":"IF(V14=30,1,\"\")","v":1},{"$f":"SUM($I14:$L14)","v":20},{"$f":"IF(X14=20,1,\"\")","v":1},{"$f":"SUM($M14:$P14)","v":28},{"$f":"IF(Z14=28,1,\"\")","v":1}]
[2,"Header (logged in)",null,"Component",{"$f":"SUM(COUNTIF('Success Criteria'!F7:F69,\"PASS\"),COUNTIF('Success Criteria'!F7:F69,\"PASS with comments\"))","v":16},{"$f":"COUNTIF('Success Criteria'!F7:F69,\"NON COMPLIANT\")","v":5},{"$f":"COUNTIF('Success Criteria'!F7:F69,\"N/A\")","v":9},{"$f":"COUNTIF('Success Criteria'!F7:F69,\"not tested\")","v":0},{"$f":"SUM(COUNTIF('Success Criteria'!$F73:$F114,\"PASS\"),COUNTIF('Success Criteria'!$F73:$F114,\"PASS with comments\"))","v":15},{"$f":"COUNTIF('Success Criteria'!$F73:$F114,\"NON COMPLIANT\")","v":1},{"$f":"COUNTIF('Success Criteria'!$F73:$F114,\"N/A\")","v":4},{"$f":"COUNTIF('Success Criteria'!$F73:$F114,\"not tested\")","v":0},{"$f":"SUM(COUNTIF('Success Criteria'!$F119:$F173,\"PASS\"),COUNTIF('Success Criteria'!$F119:$F173,\"PASS with comments\"))","v":0},{"$f":"COUNTIF('Success Criteria'!$F119:$F173,\"NON COMPLIANT\")","v":0},{"$f":"COUNTIF('Success Criteria'!$F119:$F173,\"N/A\")","v":0},{"$f":"COUNTIF('Success Criteria'!$F119:$F173,\"not tested\")","v":28},{"$f":"SUM(E15+I15+M15)","v":31},{"$f":"SUM(F15+J15+N15)","v":6},{"$f":"SUM(G15+K15+O15)","v":13},{"$f":"SUM(H15+L15+P15)","v":28},null,30,1,{"$f":"SUM($I15:$L15)","v":20},1,{"$f":"SUM($M15:$P15)","v":28},{"$f":"IF(Z15=28,1,\"\")","v":1}]
[3,"Footer",null,"Component",{"$f":"SUM(COUNTIF('Success Criteria'!G7:G69,\"PASS\"),COUNTIF('Success Criteria'!G7:G69,\"PASS with comments\"))","v":22},{"$f":"COUNTIF('Success Criteria'!G7:G69,\"NON COMPLIANT\")","v":0},{"$f":"COUNTIF('Success Criteria'!G7:G69,\"N/A\")","v":8},{"$f":"COUNTIF('Success Criteria'!G7:G69,\"not tested\")","v":0},{"$f":"SUM(COUNTIF('Success Criteria'!$G73:$G114,\"PASS\"),COUNTIF('Success Criteria'!$G73:$G114,\"PASS with comments\"))","v":16},{"$f":"COUNTIF('Success Criteria'!$G73:$G114,\"NON COMPLIANT\")","v":0},{"$f":"COUNTIF('Success Criteria'!$G73:$G114,\"N/A\")","v":4},{"$f":"COUNTIF('Success Criteria'!$G73:$G114,\"not tested\")","v":0},{"$f":"SUM(COUNTIF('Success Criteria'!$G119:$G173,\"PASS\"),COUNTIF('Success Criteria'!$G119:$G173,\"PASS with comments\"))","v":0},{"$f":"COUNTIF('Success Criteria'!$G119:$G173,\"NON COMPLIANT\")","v":0},{"$f":"COUNTIF('Success Criteria'!$G119:$G173,\"N/A\")","v":0},{"$f":"COUNTIF('Success Criteria'!$G119:$G173,\"not tested\")","v":28},38,0,12,28,null,30,1,20,1,28,1]
[4,"Hero area",null,"Component",{"$f":"SUM(COUNTIF('Success Criteria'!H7:H69,\"PASS\"),COUNTIF('Success Criteria'!H7:H69,\"PASS with comments\"))","v":22},{"$f":"COUNTIF('Success Criteria'!H7:H69,\"NON COMPLIANT\")","v":0},{"$f":"COUNTIF('Success Criteria'!H7:H69,\"N/A\")","v":8},{"$f":"COUNTIF('Success Criteria'!H7:H69,\"not tested\")","v":0},{"$f":"SUM(COUNTIF('Success Criteria'!$H73:$H114,\"PASS\"),COUNTIF('Success Criteria'!$H73:$H114,\"PASS with comments\"))","v":15},{"$f":"COUNTIF('Success Criteria'!$H73:$H114,\"NON COMPLIANT\")","v":1},{"$f":"COUNTIF('Success Criteria'!$H73:$H114,\"N/A\")","v":4},{"$f":"COUNTIF('Success Criteria'!$H73:$H114,\"not tested\")","v":0},{"$f":"SUM(COUNTIF('Success Criteria'!$H119:$H173,\"PASS\"),COUNTIF('Success Criteria'!$H119:$H173,\"PASS with comments\"))","v":0},{"$f":"COUNTIF('Success Criteria'!$H119:$H173,\"NON COMPLIANT\")","v":0},{"$f":"COUNTIF('Success Criteria'!$H119:$H173,\"N/A\")","v":0},{"$f":"COUNTIF('Success Criteria'!$H119:$H173,\"not tested\")","v":28},37,1,12,28,null,30,1,20,1,28,1]
[5,"Search",null,"Component",{"$f":"SUM(COUNTIF('Success Criteria'!I7:I69,\"PASS\"),COUNTIF('Success Criteria'!I7:I69,\"PASS with comments\"))","v":0},{"$f":"COUNTIF('Success Criteria'!I7:I69,\"NON COMPLIANT\")","v":0},{"$f":"COUNTIF('Success Criteria'!I7:I69,\"N/A\")","v":0},{"$f":"COUNTIF('Success Criteria'!I7:I69,\"not tested\")","v":0},{"$f":"SUM(COUNTIF('Success Criteria'!$I73:$I114,\"PASS\"),COUNTIF('Success Criteria'!$I73:$I114,\"PASS with comments\"))","v":2},{"$f":"COUNTIF('Success Criteria'!$I73:$I114,\"NON COMPLIANT\")","v":0},{"$f":"COUNTIF('Success Criteria'!$I73:$I114,\"N/A\")","v":0},{"$f":"COUNTIF('Success Criteria'!$I73:$I114,\"not tested\")","v":0},{"$f":"SUM(COUNTIF('Success Criteria'!$I119:$I173,\"PASS\"),COUNTIF('Success Criteria'!$I119:$I173,\"PASS with comments\"))","v":0},{"$f":"COUNTIF('Success Criteria'!$I119:$I173,\"NON COMPLIANT\")","v":0},{"$f":"COUNTIF('Success Criteria'!$I119:$I173,\"N/A\")","v":0},{"$f":"COUNTIF('Success Criteria'!$I119:$I173,\"not tested\")","v":28},2,0,0,28,null,0,"",2,"",28,1]
[6,"Featured",null,"Component",{"$f":"SUM(COUNTIF('Success Criteria'!J7:J69,\"PASS\"),COUNTIF('Success Criteria'!J7:J69,\"PASS with comments\"))","v":20},{"$f":"COUNTIF('Success Criteria'!J7:J69,\"NON COMPLIANT\")","v":2},{"$f":"COUNTIF('Success Criteria'!J7:J69,\"N/A\")","v":8},{"$f":"COUNTIF('Success Criteria'!J7:J69,\"not tested\")","v":0},{"$f":"SUM(COUNTIF('Success Criteria'!$J73:$J114,\"PASS\"),COUNTIF('Success Criteria'!$J73:$J114,\"PASS with comments\"))","v":16},{"$f":"COUNTIF('Success Criteria'!$J73:$J114,\"NON COMPLIANT\")","v":0},{"$f":"COUNTIF('Success Criteria'!$J73:$J114,\"N/A\")","v":4},{"$f":"COUNTIF('Success Criteria'!$J73:$J114,\"not tested\")","v":0},{"$f":"SUM(COUNTIF('Success Criteria'!$J119:$J173,\"PASS\"),COUNTIF('Success Criteria'!$J119:$J173,\"PASS with comments\"))","v":0},{"$f":"COUNTIF('Success Criteria'!$J119:$J173,\"NON COMPLIANT\")","v":0},{"$f":"COUNTIF('Success Criteria'!$J119:$J173,\"N/A\")","v":0},{"$f":"COUNTIF('Success Criteria'!$J119:$J173,\"not tested\")","v":28},36,2,12,28,null,30,1,20,1,28,1]
[7,"Have your say",null,"Component",{"$f":"SUM(COUNTIF('Success Criteria'!K7:K69,\"PASS\"),COUNTIF('Success Criteria'!K7:K69,\"PASS with comments\"))","v":19},{"$f":"COUNTIF('Success Criteria'!K7:K69,\"NON COMPLIANT\")","v":3},{"$f":"COUNTIF('Success Criteria'!K7:K69,\"N/A\")","v":8},{"$f":"COUNTIF('Success Criteria'!K7:K69,\"not tested\")","v":0},{"$f":"SUM(COUNTIF('Success Criteria'!$K73:$K114,\"PASS\"),COUNTIF('Success Criteria'!$K73:$K114,\"PASS with comments\"))","v":16},{"$f":"COUNTIF('Success Criteria'!$K73:$K114,\"NON COMPLIANT\")","v":0},{"$f":"COUNTIF('Success Criteria'!$K73:$K114,\"N/A\")","v":4},{"$f":"COUNTIF('Success Criteria'!$K73:$K114,\"not tested\")","v":0},{"$f":"SUM(COUNTIF('Success Criteria'!$K119:$K173,\"PASS\"),COUNTIF('Success Criteria'!$K119:$K173,\"PASS with comments\"))","v":0},{"$f":"COUNTIF('Success Criteria'!$K119:$K173,\"NON COMPLIANT\")","v":0},{"$f":"COUNTIF('Success Criteria'!$K119:$K173,\"N/A\")","v":0},{"$f":"COUNTIF('Success Criteria'!$K119:$K173,\"not tested\")","v":28},35,3,12,28,null,30,1,20,1,28,1]
[8,"Quick Poll",null,"Component",{"$f":"SUM(COUNTIF('Success Criteria'!L7:L69,\"PASS\"),COUNTIF('Success Criteria'!L7:L69,\"PASS with comments\"))","v":0},{"$f":"COUNTIF('Success Criteria'!L7:L69,\"NON COMPLIANT\")","v":0},{"$f":"COUNTIF('Success Criteria'!L7:L69,\"N/A\")","v":0},{"$f":"COUNTIF('Success Criteria'!L7:L69,\"not tested\")","v":0},{"$f":"SUM(COUNTIF('Success Criteria'!$L73:$L114,\"PASS\"),COUNTIF('Success Criteria'!$L73:$L114,\"PASS with comments\"))","v":2},{"$f":"COUNTIF('Success Criteria'!$L73:$L114,\"NON COMPLIANT\")","v":0},{"$f":"COUNTIF('Success Criteria'!$L73:$L114,\"N/A\")","v":0},{"$f":"COUNTIF('Success Criteria'!$L73:$L114,\"not tested\")","v":0},{"$f":"SUM(COUNTIF('Success Criteria'!$L119:$L173,\"PASS\"),COUNTIF('Success Criteria'!$L119:$L173,\"PASS with comments\"))","v":0},{"$f":"COUNTIF('Success Criteria'!$L119:$L173,\"NON COMPLIANT\")","v":0},{"$f":"COUNTIF('Success Criteria'!$L119:$L173,\"N/A\")","v":0},{"$f":"COUNTIF('Success Criteria'!$L119:$L173,\"not tested\")","v":28},2,0,0,28,null,0,"",2,"",28,1]
[9,"Quick Poll Results",null,"Component",{"$f":"SUM(COUNTIF('Success Criteria'!M7:M69,\"PASS\"),COUNTIF('Success Criteria'!M7:M69,\"PASS with comments\"))","v":0},{"$f":"COUNTIF('Success Criteria'!M7:M69,\"NON COMPLIANT\")","v":0},{"$f":"COUNTIF('Success Criteria'!M7:M69,\"N/A\")","v":0},{"$f":"COUNTIF('Success Criteria'!M7:M69,\"not tested\")","v":0},{"$f":"SUM(COUNTIF('Success Criteria'!$M73:$M114,\"PASS\"),COUNTIF('Success Criteria'!$M73:$M114,\"PASS with comments\"))","v":2},{"$f":"COUNTIF('Success Criteria'!$M73:$M114,\"NON COMPLIANT\")","v":0},{"$f":"COUNTIF('Success Criteria'!$M73:$M114,\"N/A\")","v":0},{"$f":"COUNTIF('Success Criteria'!$M73:$M114,\"not tested\")","v":0},{"$f":"SUM(COUNTIF('Success Criteria'!$M119:$M173,\"PASS\"),COUNTIF('Success Criteria'!$M119:$M173,\"PASS with comments\"))","v":0},{"$f":"COUNTIF('Success Criteria'!$M119:$M173,\"NON COMPLIANT\")","v":0},{"$f":"COUNTIF('Success Criteria'!$M119:$M173,\"N/A\")","v":0},{"$f":"COUNTIF('Success Criteria'!$M119:$M173,\"not tested\")","v":28},2,0,0,28,null,0,"",2,"",28,1]
[10,"Updates and impact",null,"Component",{"$f":"SUM(COUNTIF('Success Criteria'!N7:N69,\"PASS\"),COUNTIF('Success Criteria'!N7:N69,\"PASS with comments\"))","v":19},{"$f":"COUNTIF('Success Criteria'!N7:N69,\"NON COMPLIANT\")","v":3},{"$f":"COUNTIF('Success Criteria'!N7:N69,\"N/A\")","v":8},{"$f":"COUNTIF('Success Criteria'!N7:N69,\"not tested\")","v":0},{"$f":"SUM(COUNTIF('Success Criteria'!$N73:$N114,\"PASS\"),COUNTIF('Success Criteria'!$N73:$N114,\"PASS with comments\"))","v":16},{"$f":"COUNTIF('Success Criteria'!$N73:$N114,\"NON COMPLIANT\")","v":0},{"$f":"COUNTIF('Success Criteria'!$N73:$N114,\"N/A\")","v":4},{"$f":"COUNTIF('Success Criteria'!$N73:$N114,\"not tested\")","v":0},{"$f":"SUM(COUNTIF('Success Criteria'!$N119:$N173,\"PASS\"),COUNTIF('Success Criteria'!$N119:$N173,\"PASS with comments\"))","v":0},{"$f":"COUNTIF('Success Criteria'!$N119:$N173,\"NON COMPLIANT\")","v":0},{"$f":"COUNTIF('Success Criteria'!$N119:$N173,\"N/A\")","v":0},{"$f":"COUNTIF('Success Criteria'!$N119:$N173,\"not tested\")","v":28},35,3,12,28,null,30,1,20,1,28,1]
[11,"Start a discussion",null,"Component",{"$f":"SUM(COUNTIF('Success Criteria'!O7:O69,\"PASS\"),COUNTIF('Success Criteria'!O7:O69,\"PASS with comments\"))","v":0},{"$f":"COUNTIF('Success Criteria'!O7:O69,\"NON COMPLIANT\")","v":0},{"$f":"COUNTIF('Success Criteria'!O7:O69,\"N/A\")","v":0},{"$f":"COUNTIF('Success Criteria'!O7:O69,\"not tested\")","v":0},{"$f":"SUM(COUNTIF('Success Criteria'!$O73:$O114,\"PASS\"),COUNTIF('Success Criteria'!$O73:$O114,\"PASS with comments\"))","v":2},{"$f":"COUNTIF('Success Criteria'!$O73:$O114,\"NON COMPLIANT\")","v":0},{"$f":"COUNTIF('Success Criteria'!$O73:$O114,\"N/A\")","v":0},{"$f":"COUNTIF('Success Criteria'!$O73:$O114,\"not tested\")","v":0},{"$f":"SUM(COUNTIF('Success Criteria'!$O119:$O173,\"PASS\"),COUNTIF('Success Criteria'!$O119:$O173,\"PASS with comments\"))","v":0},{"$f":"COUNTIF('Success Criteria'!$O119:$O173,\"NON COMPLIANT\")","v":0},{"$f":"COUNTIF('Success Criteria'!$O119:$O173,\"N/A\")","v":0},{"$f":"COUNTIF('Success Criteria'!$O119:$O173,\"not tested\")","v":28},2,0,0,28,null,0,"",2,"",28,1]
[12,"Learn more",null,"Component",{"$f":"SUM(COUNTIF('Success Criteria'!P7:P69,\"PASS\"),COUNTIF('Success Criteria'!P7:P69,\"PASS with comments\"))","v":0},{"$f":"COUNTIF('Success Criteria'!P7:P69,\"NON COMPLIANT\")","v":0},{"$f":"COUNTIF('Success Criteria'!P7:P69,\"N/A\")","v":0},{"$f":"COUNTIF('Success Criteria'!P7:P69,\"not tested\")","v":0},{"$f":"SUM(COUNTIF('Success Criteria'!$P73:$P114,\"PASS\"),COUNTIF('Success Criteria'!$P73:$P114,\"PASS with comments\"))","v":2},{"$f":"COUNTIF('Success Criteria'!$P73:$P114,\"NON COMPLIANT\")","v":0},{"$f":"COUNTIF('Success Criteria'!$P73:$P114,\"N/A\")","v":0},{"$f":"COUNTIF('Success Criteria'!$P73:$P114,\"not tested\")","v":0},{"$f":"SUM(COUNTIF('Success Criteria'!$P119:$P173,\"PASS\"),COUNTIF('Success Criteria'!$P119:$P173,\"PASS with comments\"))","v":0},{"$f":"COUNTIF('Success Criteria'!$P119:$P173,\"NON COMPLIANT\")","v":0},{"$f":"COUNTIF('Success Criteria'!$P119:$P173,\"N/A\")","v":0},{"$f":"COUNTIF('Success Criteria'!$P119:$P173,\"not tested\")","v":28},2,0,0,28,null,0,"",2,"",28,1]
[13,"Related content ",null,"Component",{"$f":"SUM(COUNTIF('Success Criteria'!Q7:Q69,\"PASS\"),COUNTIF('Success Criteria'!Q7:Q69,\"PASS with comments\"))","v":21},{"$f":"COUNTIF('Success Criteria'!Q7:Q69,\"NON COMPLIANT\")","v":1},{"$f":"COUNTIF('Success Criteria'!Q7:Q69,\"N/A\")","v":8},{"$f":"COUNTIF('Success Criteria'!Q7:Q69,\"not tested\")","v":0},{"$f":"SUM(COUNTIF('Success Criteria'!$Q73:$Q114,\"PASS\"),COUNTIF('Success Criteria'!$Q73:$Q114,\"PASS with comments\"))","v":15},{"$f":"COUNTIF('Success Criteria'!$Q73:$Q114,\"NON COMPLIANT\")","v":1},{"$f":"COUNTIF('Success Criteria'!$Q73:$Q114,\"N/A\")","v":4},{"$f":"COUNTIF('Success Criteria'!$Q73:$Q114,\"not tested\")","v":0},{"$f":"SUM(COUNTIF('Success Criteria'!$Q119:$Q173,\"PASS\"),COUNTIF('Success Criteria'!$Q119:$Q173,\"PASS with comments\"))","v":0},{"$f":"COUNTIF('Success Criteria'!$Q119:$Q173,\"NON COMPLIANT\")","v":0},{"$f":"COUNTIF('Success Criteria'!$Q119:$Q173,\"N/A\")","v":0},{"$f":"COUNTIF('Success Criteria'!$Q119:$Q173,\"not tested\")","v":28},36,2,12,28,null,30,1,20,1,28,1]
[14,"Comments",null,"Component",{"$f":"SUM(COUNTIF('Success Criteria'!R7:R69,\"PASS\"),COUNTIF('Success Criteria'!R7:R69,\"PASS with comments\"))","v":19},{"$f":"COUNTIF('Success Criteria'!R7:R69,\"NON COMPLIANT\")","v":3},{"$f":"COUNTIF('Success Criteria'!R7:R69,\"N/A\")","v":8},{"$f":"COUNTIF('Success Criteria'!R7:R69,\"not tested\")","v":0},{"$f":"SUM(COUNTIF('Success Criteria'!$R73:$R114,\"PASS\"),COUNTIF('Success Criteria'!$R73:$R114,\"PASS with comments\"))","v":16},{"$f":"COUNTIF('Success Criteria'!$R73:$R114,\"NON COMPLIANT\")","v":0},{"$f":"COUNTIF('Success Criteria'!$R73:$R114,\"N/A\")","v":4},{"$f":"COUNTIF('Success Criteria'!$R73:$R114,\"not tested\")","v":0},{"$f":"SUM(COUNTIF('Success Criteria'!$R119:$R173,\"PASS\"),COUNTIF('Success Criteria'!$R119:$R173,\"PASS with comments\"))","v":0},{"$f":"COUNTIF('Success Criteria'!$R119:$R173,\"NON COMPLIANT\")","v":0},{"$f":"COUNTIF('Success Criteria'!$R119:$R173,\"N/A\")","v":0},{"$f":"COUNTIF('Success Criteria'!$R119:$R173,\"not tested\")","v":28},35,3,12,28,null,30,1,20,1,28,1]
[15,"Timeline",null,"Component",{"$f":"SUM(COUNTIF('Success Criteria'!S7:S69,\"PASS\"),COUNTIF('Success Criteria'!S7:S69,\"PASS with comments\"))","v":17},{"$f":"COUNTIF('Success Criteria'!S7:S69,\"NON COMPLIANT\")","v":5},{"$f":"COUNTIF('Success Criteria'!S7:S69,\"N/A\")","v":8},{"$f":"COUNTIF('Success Criteria'!S7:S69,\"not tested\")","v":0},{"$f":"SUM(COUNTIF('Success Criteria'!$S73:$S114,\"PASS\"),COUNTIF('Success Criteria'!$S73:$S114,\"PASS with comments\"))","v":14},{"$f":"COUNTIF('Success Criteria'!$S73:$S114,\"NON COMPLIANT\")","v":2},{"$f":"COUNTIF('Success Criteria'!$S73:$S114,\"N/A\")","v":4},{"$f":"COUNTIF('Success Criteria'!$S73:$S114,\"not tested\")","v":0},{"$f":"SUM(COUNTIF('Success Criteria'!$S119:$S173,\"PASS\"),COUNTIF('Success Criteria'!$S119:$S173,\"PASS with comments\"))","v":0},{"$f":"COUNTIF('Success Criteria'!$S119:$S173,\"NON COMPLIANT\")","v":0},{"$f":"COUNTIF('Success Criteria'!$S119:$S173,\"N/A\")","v":0},{"$f":"COUNTIF('Success Criteria'!$S119:$S173,\"not tested\")","v":28},31,7,12,28,null,30,1,20,1,28,1]
[16,"Video",null,"Component",{"$f":"SUM(COUNTIF('Success Criteria'!T7:T69,\"PASS\"),COUNTIF('Success Criteria'!T7:T69,\"PASS with comments\"))","v":0},{"$f":"COUNTIF('Success Criteria'!T7:T69,\"NON COMPLIANT\")","v":0},{"$f":"COUNTIF('Success Criteria'!T7:T69,\"N/A\")","v":0},{"$f":"COUNTIF('Success Criteria'!T7:T69,\"not tested\")","v":0},{"$f":"SUM(COUNTIF('Success Criteria'!$T73:$T114,\"PASS\"),COUNTIF('Success Criteria'!$T73:$T114,\"PASS with comments\"))","v":2},{"$f":"COUNTIF('Success Criteria'!$T73:$T114,\"NON COMPLIANT\")","v":0},{"$f":"COUNTIF('Success Criteria'!$T73:$T114,\"N/A\")","v":0},{"$f":"COUNTIF('Success Criteria'!$T73:$T114,\"not tested\")","v":0},{"$f":"SUM(COUNTIF('Success Criteria'!$T119:$T173,\"PASS\"),COUNTIF('Success Criteria'!$T119:$T173,\"PASS with comments\"))","v":0},{"$f":"COUNTIF('Success Criteria'!$T119:$T173,\"NON COMPLIANT\")","v":0},{"$f":"COUNTIF('Success Criteria'!$T119:$T173,\"N/A\")","v":0},{"$f":"COUNTIF('Success Criteria'!$T119:$T173,\"not tested\")","v":28},2,0,0,28,null,0,"",2,"",28,1]
[17,"Next steps",null,"Component",{"$f":"SUM(COUNTIF('Success Criteria'!U7:U69,\"PASS\"),COUNTIF('Success Criteria'!U7:U69,\"PASS with comments\"))","v":0},{"$f":"COUNTIF('Success Criteria'!U7:U69,\"NON COMPLIANT\")","v":0},{"$f":"COUNTIF('Success Criteria'!U7:U69,\"N/A\")","v":0},{"$f":"COUNTIF('Success Criteria'!U7:U69,\"not tested\")","v":0},{"$f":"SUM(COUNTIF('Success Criteria'!$U73:$U114,\"PASS\"),COUNTIF('Success Criteria'!$U73:$U114,\"PASS with comments\"))","v":2},{"$f":"COUNTIF('Success Criteria'!$U73:$U114,\"NON COMPLIANT\")","v":0},{"$f":"COUNTIF('Success Criteria'!$U73:$U114,\"N/A\")","v":0},{"$f":"COUNTIF('Success Criteria'!$U73:$U114,\"not tested\")","v":0},{"$f":"SUM(COUNTIF('Success Criteria'!$U119:$U173,\"PASS\"),COUNTIF('Success Criteria'!$U119:$U173,\"PASS with comments\"))","v":0},{"$f":"COUNTIF('Success Criteria'!$U119:$U173,\"NON COMPLIANT\")","v":0},{"$f":"COUNTIF('Success Criteria'!$U119:$U173,\"N/A\")","v":0},{"$f":"COUNTIF('Success Criteria'!$U119:$U173,\"not tested\")","v":28},2,0,0,28,null,0,"",2,"",28,1]
[18,"Infographic",null,"Component",{"$f":"SUM(COUNTIF('Success Criteria'!V7:V69,\"PASS\"),COUNTIF('Success Criteria'!V7:V69,\"PASS with comments\"))","v":0},{"$f":"COUNTIF('Success Criteria'!V7:V69,\"NON COMPLIANT\")","v":0},{"$f":"COUNTIF('Success Criteria'!V7:V69,\"N/A\")","v":0},{"$f":"COUNTIF('Success Criteria'!V7:V69,\"not tested\")","v":0},{"$f":"SUM(COUNTIF('Success Criteria'!$V73:$V114,\"PASS\"),COUNTIF('Success Criteria'!$V73:$V114,\"PASS with comments\"))","v":2},{"$f":"COUNTIF('Success Criteria'!$V73:$V114,\"NON COMPLIANT\")","v":0},{"$f":"COUNTIF('Success Criteria'!$V73:$V114,\"N/A\")","v":0},{"$f":"COUNTIF('Success Criteria'!$V73:$V114,\"not tested\")","v":0},{"$f":"SUM(COUNTIF('Success Criteria'!$V119:$V173,\"PASS\"),COUNTIF('Success Criteria'!$V119:$V173,\"PASS with comments\"))","v":0},{"$f":"COUNTIF('Success Criteria'!$V119:$V173,\"NON COMPLIANT\")","v":0},{"$f":"COUNTIF('Success Criteria'!$V119:$V173,\"N/A\")","v":0},{"$f":"COUNTIF('Success Criteria'!$V119:$V173,\"not tested\")","v":28},2,0,0,28,null,0,"",2,"",28,1]
[19,"Search Results including Filter",null,"Component",{"$f":"SUM(COUNTIF('Success Criteria'!W7:W69,\"PASS\"),COUNTIF('Success Criteria'!W7:W69,\"PASS with comments\"))","v":0},{"$f":"COUNTIF('Success Criteria'!W7:W69,\"NON COMPLIANT\")","v":0},{"$f":"COUNTIF('Success Criteria'!W7:W69,\"N/A\")","v":0},{"$f":"COUNTIF('Success Criteria'!W7:W69,\"not tested\")","v":0},{"$f":"SUM(COUNTIF('Success Criteria'!$W73:$W114,\"PASS\"),COUNTIF('Success Criteria'!$W73:$W114,\"PASS with comments\"))","v":2},{"$f":"COUNTIF('Success Criteria'!$W73:$W114,\"NON COMPLIANT\")","v":0},{"$f":"COUNTIF('Success Criteria'!$W73:$W114,\"N/A\")","v":0},{"$f":"COUNTIF('Success Criteria'!$W73:$W114,\"not tested\")","v":0},{"$f":"SUM(COUNTIF('Success Criteria'!$W119:$W173,\"PASS\"),COUNTIF('Success Criteria'!$W119:$W173,\"PASS with comments\"))","v":0},{"$f":"COUNTIF('Success Criteria'!$W119:$W173,\"NON COMPLIANT\")","v":0},{"$f":"COUNTIF('Success Criteria'!$W119:$W173,\"N/A\")","v":0},{"$f":"COUNTIF('Success Criteria'!$W119:$W173,\"not tested\")","v":28},2,0,0,28,null,0,"",2,"",28,1]
[20,"Your impact",null,"Component",{"$f":"SUM(COUNTIF('Success Criteria'!X7:X69,\"PASS\"),COUNTIF('Success Criteria'!X7:X69,\"PASS with comments\"))","v":0},{"$f":"COUNTIF('Success Criteria'!X7:X69,\"NON COMPLIANT\")","v":0},{"$f":"COUNTIF('Success Criteria'!X7:X69,\"N/A\")","v":0},{"$f":"COUNTIF('Success Criteria'!X7:X69,\"not tested\")","v":0},{"$f":"SUM(COUNTIF('Success Criteria'!$X73:$X114,\"PASS\"),COUNTIF('Success Criteria'!$X73:$X114,\"PASS with comments\"))","v":2},{"$f":"COUNTIF('Success Criteria'!$X73:$X114,\"NON COMPLIANT\")","v":0},{"$f":"COUNTIF('Success Criteria'!$X73:$X114,\"N/A\")","v":0},{"$f":"COUNTIF('Success Criteria'!$X73:$X114,\"not tested\")","v":0},{"$f":"SUM(COUNTIF('Success Criteria'!$X119:$X173,\"PASS\"),COUNTIF('Success Criteria'!$X119:$X173,\"PASS with comments\"))","v":0},{"$f":"COUNTIF('Success Criteria'!$X119:$X173,\"NON COMPLIANT\")","v":0},{"$f":"COUNTIF('Success Criteria'!$X119:$X173,\"N/A\")","v":0},{"$f":"COUNTIF('Success Criteria'!$X119:$X173,\"not tested\")","v":28},2,0,0,28,null,0,"",2,"",28,1]
[21,"Survey form",null,"Component",{"$f":"SUM(COUNTIF('Success Criteria'!Y7:Y69,\"PASS\"),COUNTIF('Success Criteria'!Y7:Y69,\"PASS with comments\"))","v":0},{"$f":"COUNTIF('Success Criteria'!Y7:Y69,\"NON COMPLIANT\")","v":0},{"$f":"COUNTIF('Success Criteria'!Y7:Y69,\"N/A\")","v":0},{"$f":"COUNTIF('Success Criteria'!Y7:Y69,\"not tested\")","v":0},{"$f":"SUM(COUNTIF('Success Criteria'!$Y73:$Y114,\"PASS\"),COUNTIF('Success Criteria'!$Y73:$Y114,\"PASS with comments\"))","v":2},{"$f":"COUNTIF('Success Criteria'!$Y73:$Y114,\"NON COMPLIANT\")","v":0},{"$f":"COUNTIF('Success Criteria'!$Y73:$Y114,\"N/A\")","v":0},{"$f":"COUNTIF('Success Criteria'!$Y73:$Y114,\"not tested\")","v":0},{"$f":"SUM(COUNTIF('Success Criteria'!$Y119:$Y173,\"PASS\"),COUNTIF('Success Criteria'!$Y119:$Y173,\"PASS with comments\"))","v":0},{"$f":"COUNTIF('Success Criteria'!$Y119:$Y173,\"NON COMPLIANT\")","v":0},{"$f":"COUNTIF('Success Criteria'!$Y119:$Y173,\"N/A\")","v":0},{"$f":"COUNTIF('Success Criteria'!$Y119:$Y173,\"not tested\")","v":28},2,0,0,28,null,0,"",2,"",28,1]
[22,"Status",null,"Component",{"$f":"SUM(COUNTIF('Success Criteria'!Z7:Z69,\"PASS\"),COUNTIF('Success Criteria'!Z7:Z69,\"PASS with comments\"))","v":0},{"$f":"COUNTIF('Success Criteria'!Z7:Z69,\"NON COMPLIANT\")","v":0},{"$f":"COUNTIF('Success Criteria'!Z7:Z69,\"N/A\")","v":0},{"$f":"COUNTIF('Success Criteria'!Z7:Z69,\"not tested\")","v":0},{"$f":"SUM(COUNTIF('Success Criteria'!$Z73:$Z114,\"PASS\"),COUNTIF('Success Criteria'!$Z73:$Z114,\"PASS with comments\"))","v":2},{"$f":"COUNTIF('Success Criteria'!$Z73:$Z114,\"NON COMPLIANT\")","v":0},{"$f":"COUNTIF('Success Criteria'!$Z73:$Z114,\"N/A\")","v":0},{"$f":"COUNTIF('Success Criteria'!$Z73:$Z114,\"not tested\")","v":0},{"$f":"SUM(COUNTIF('Success Criteria'!$Z119:$Z173,\"PASS\"),COUNTIF('Success Criteria'!$Z119:$Z173,\"PASS with comments\"))","v":0},{"$f":"COUNTIF('Success Criteria'!$Z119:$Z173,\"NON COMPLIANT\")","v":0},{"$f":"COUNTIF('Success Criteria'!$Z119:$Z173,\"N/A\")","v":0},{"$f":"COUNTIF('Success Criteria'!$Z119:$Z173,\"not tested\")","v":28},2,0,0,28,null,0,"",2,"",28,1]
[23,"Invite members",null,"Component",{"$f":"SUM(COUNTIF('Success Criteria'!AA7:AA69,\"PASS\"),COUNTIF('Success Criteria'!AA7:AA69,\"PASS with comments\"))","v":0},{"$f":"COUNTIF('Success Criteria'!AA7:AA69,\"NON COMPLIANT\")","v":0},{"$f":"COUNTIF('Success Criteria'!AA7:AA69,\"N/A\")","v":0},{"$f":"COUNTIF('Success Criteria'!AA7:AA69,\"not tested\")","v":0},{"$f":"SUM(COUNTIF('Success Criteria'!$AA73:$AA114,\"PASS\"),COUNTIF('Success Criteria'!$AA73:$AA114,\"PASS with comments\"))","v":2},{"$f":"COUNTIF('Success Criteria'!$AA73:$AA114,\"NON COMPLIANT\")","v":0},{"$f":"COUNTIF('Success Criteria'!$AA73:$AA114,\"N/A\")","v":0},{"$f":"COUNTIF('Success Criteria'!$AA73:$AA114,\"not tested\")","v":0},{"$f":"SUM(COUNTIF('Success Criteria'!$AA119:$AA173,\"PASS\"),COUNTIF('Success Criteria'!$AA119:$AA173,\"PASS with comments\"))","v":0},{"$f":"COUNTIF('Success Criteria'!$AA119:$AA173,\"NON COMPLIANT\")","v":0},{"$f":"COUNTIF('Success Criteria'!$AA119:$AA173,\"N/A\")","v":0},{"$f":"COUNTIF('Success Criteria'!$AA119:$AA173,\"not tested\")","v":28},2,0,0,28,null,0,"",2,"",28,1]
[24,"Following",null,"Component",{"$f":"SUM(COUNTIF('Success Criteria'!AB7:AB69,\"PASS\"),COUNTIF('Success Criteria'!AB7:AB69,\"PASS with comments\"))","v":0},{"$f":"COUNTIF('Success Criteria'!AB7:AB69,\"NON COMPLIANT\")","v":0},{"$f":"COUNTIF('Success Criteria'!AB7:AB69,\"N/A\")","v":0},{"$f":"COUNTIF('Success Criteria'!AB7:AB69,\"not tested\")","v":0},{"$f":"SUM(COUNTIF('Success Criteria'!$AB73:$AB114,\"PASS\"),COUNTIF('Success Criteria'!$AB73:$AB114,\"PASS with comments\"))","v":2},{"$f":"COUNTIF('Success Criteria'!$AB73:$AB114,\"NON COMPLIANT\")","v":0},{"$f":"COUNTIF('Success Criteria'!$AB73:$AB114,\"N/A\")","v":0},{"$f":"COUNTIF('Success Criteria'!$AB73:$AB114,\"not tested\")","v":0},{"$f":"SUM(COUNTIF('Success Criteria'!$AB119:$AB173,\"PASS\"),COUNTIF('Success Criteria'!$AB119:$AB173,\"PASS with comments\"))","v":0},{"$f":"COUNTIF('Success Criteria'!$AB119:$AB173,\"NON COMPLIANT\")","v":0},{"$f":"COUNTIF('Success Criteria'!$AB119:$AB173,\"N/A\")","v":0},{"$f":"COUNTIF('Success Criteria'!$AB119:$AB173,\"not tested\")","v":28},2,0,0,28,null,0,"",2,"",28,1]
[25,"Supporting",null,"Component",{"$f":"SUM(COUNTIF('Success Criteria'!AC7:AC69,\"PASS\"),COUNTIF('Success Criteria'!AC7:AC69,\"PASS with comments\"))","v":0},{"$f":"COUNTIF('Success Criteria'!AC7:AC69,\"NON COMPLIANT\")","v":0},{"$f":"COUNTIF('Success Criteria'!AC7:AC69,\"N/A\")","v":0},{"$f":"COUNTIF('Success Criteria'!AC7:AC69,\"not tested\")","v":0},{"$f":"SUM(COUNTIF('Success Criteria'!$AC73:$AC114,\"PASS\"),COUNTIF('Success Criteria'!$AC73:$AC114,\"PASS with comments\"))","v":2},{"$f":"COUNTIF('Success Criteria'!$AC73:$AC114,\"NON COMPLIANT\")","v":0},{"$f":"COUNTIF('Success Criteria'!$AC73:$AC114,\"N/A\")","v":0},{"$f":"COUNTIF('Success Criteria'!$AC73:$AC114,\"not tested\")","v":0},{"$f":"SUM(COUNTIF('Success Criteria'!$AC119:$AC173,\"PASS\"),COUNTIF('Success Criteria'!$AC119:$AC173,\"PASS with comments\"))","v":0},{"$f":"COUNTIF('Success Criteria'!$AC119:$AC173,\"NON COMPLIANT\")","v":0},{"$f":"COUNTIF('Success Criteria'!$AC119:$AC173,\"N/A\")","v":0},{"$f":"COUNTIF('Success Criteria'!$AC119:$AC173,\"not tested\")","v":28},2,0,0,28,null,0,"",2,"",28,1]
[26,"Surveys",null,"Component",{"$f":"SUM(COUNTIF('Success Criteria'!AD7:AD69,\"PASS\"),COUNTIF('Success Criteria'!AD7:AD69,\"PASS with comments\"))","v":0},{"$f":"COUNTIF('Success Criteria'!AD7:AD69,\"NON COMPLIANT\")","v":0},{"$f":"COUNTIF('Success Criteria'!AD7:AD69,\"N/A\")","v":0},{"$f":"COUNTIF('Success Criteria'!AD7:AD69,\"not tested\")","v":0},{"$f":"SUM(COUNTIF('Success Criteria'!$AD73:$AD114,\"PASS\"),COUNTIF('Success Criteria'!$AD73:$AD114,\"PASS with comments\"))","v":2},{"$f":"COUNTIF('Success Criteria'!$AD73:$AD114,\"NON COMPLIANT\")","v":0},{"$f":"COUNTIF('Success Criteria'!$AD73:$AD114,\"N/A\")","v":0},{"$f":"COUNTIF('Success Criteria'!$AD73:$AD114,\"not tested\")","v":0},{"$f":"SUM(COUNTIF('Success Criteria'!$AD119:$AD173,\"PASS\"),COUNTIF('Success Criteria'!$AD119:$AD173,\"PASS with comments\"))","v":0},{"$f":"COUNTIF('Success Criteria'!$AD119:$AD173,\"NON COMPLIANT\")","v":0},{"$f":"COUNTIF('Success Criteria'!$AD119:$AD173,\"N/A\")","v":0},{"$f":"COUNTIF('Success Criteria'!$AD119:$AD173,\"not tested\")","v":28},2,0,0,28,null,0,"",2,"",28,1]
[27,"Ideas",null,"Component",{"$f":"SUM(COUNTIF('Success Criteria'!AE7:AE69,\"PASS\"),COUNTIF('Success Criteria'!AE7:AE69,\"PASS with comments\"))","v":0},{"$f":"COUNTIF('Success Criteria'!AE7:AE69,\"NON COMPLIANT\")","v":0},{"$f":"COUNTIF('Success Criteria'!AE7:AE69,\"N/A\")","v":0},{"$f":"COUNTIF('Success Criteria'!AE7:AE69,\"not tested\")","v":0},{"$f":"SUM(COUNTIF('Success Criteria'!$AE73:$AE114,\"PASS\"),COUNTIF('Success Criteria'!$AE73:$AE114,\"PASS with comments\"))","v":2},{"$f":"COUNTIF('Success Criteria'!$AE73:$AE114,\"NON COMPLIANT\")","v":0},{"$f":"COUNTIF('Success Criteria'!$AE73:$AE114,\"N/A\")","v":0},{"$f":"COUNTIF('Success Criteria'!$AE73:$AE114,\"not tested\")","v":0},{"$f":"SUM(COUNTIF('Success Criteria'!$AE119:$AE173,\"PASS\"),COUNTIF('Success Criteria'!$AE119:$AE173,\"PASS with comments\"))","v":0},{"$f":"COUNTIF('Success Criteria'!$AE119:$AE173,\"NON COMPLIANT\")","v":0},{"$f":"COUNTIF('Success Criteria'!$AE119:$AE173,\"N/A\")","v":0},{"$f":"COUNTIF('Success Criteria'!$AE119:$AE173,\"not tested\")","v":28},2,0,0,28,null,0,"",2,"",28,1]
[28,"Form: Register no engagement",null,"Page",{"$f":"SUM(COUNTIF('Success Criteria'!AF7:AF69,\"PASS\"),COUNTIF('Success Criteria'!AF7:AF69,\"PASS with comments\"))","v":0},{"$f":"COUNTIF('Success Criteria'!AF7:AF69,\"NON COMPLIANT\")","v":0},{"$f":"COUNTIF('Success Criteria'!AF7:AF69,\"N/A\")","v":0},{"$f":"COUNTIF('Success Criteria'!AF7:AF69,\"not tested\")","v":0},{"$f":"SUM(COUNTIF('Success Criteria'!$AF73:$AF114,\"PASS\"),COUNTIF('Success Criteria'!$AF73:$AF114,\"PASS with comments\"))","v":2},{"$f":"COUNTIF('Success Criteria'!$AF73:$AF114,\"NON COMPLIANT\")","v":0},{"$f":"COUNTIF('Success Criteria'!$AF73:$AF114,\"N/A\")","v":0},{"$f":"COUNTIF('Success Criteria'!$AF73:$AF114,\"not tested\")","v":0},{"$f":"SUM(COUNTIF('Success Criteria'!$AF119:$AF173,\"PASS\"),COUNTIF('Success Criteria'!$AF119:$AF173,\"PASS with comments\"))","v":0},{"$f":"COUNTIF('Success Criteria'!$AF119:$AF173,\"NON COMPLIANT\")","v":0},{"$f":"COUNTIF('Success Criteria'!$AF119:$AF173,\"N/A\")","v":0},{"$f":"COUNTIF('Success Criteria'!$AF119:$AF173,\"not tested\")","v":28},2,0,0,28,null,0,"",2,"",28,1]
[29,"Form: Register with engagement",null,"Page",{"$f":"SUM(COUNTIF('Success Criteria'!AG7:AG69,\"PASS\"),COUNTIF('Success Criteria'!AG7:AG69,\"PASS with comments\"))","v":0},{"$f":"COUNTIF('Success Criteria'!AG7:AG69,\"NON COMPLIANT\")","v":0},{"$f":"COUNTIF('Success Criteria'!AG7:AG69,\"N/A\")","v":0},{"$f":"COUNTIF('Success Criteria'!AG7:AG69,\"not tested\")","v":0},{"$f":"SUM(COUNTIF('Success Criteria'!$AG73:$AG114,\"PASS\"),COUNTIF('Success Criteria'!$AG73:$AG114,\"PASS with comments\"))","v":2},{"$f":"COUNTIF('Success Criteria'!$AG73:$AG114,\"NON COMPLIANT\")","v":0},{"$f":"COUNTIF('Success Criteria'!$AG73:$AG114,\"N/A\")","v":0},{"$f":"COUNTIF('Success Criteria'!$AG73:$AG114,\"not tested\")","v":0},{"$f":"SUM(COUNTIF('Success Criteria'!$AG119:$AG173,\"PASS\"),COUNTIF('Success Criteria'!$AG119:$AG173,\"PASS with comments\"))","v":0},{"$f":"COUNTIF('Success Criteria'!$AG119:$AG173,\"NON COMPLIANT\")","v":0},{"$f":"COUNTIF('Success Criteria'!$AG119:$AG173,\"N/A\")","v":0},{"$f":"COUNTIF('Success Criteria'!$AG119:$AG173,\"not tested\")","v":28},2,0,0,28,null,0,"",2,"",28,1]
[30,"Form: Log in",null,"Page",{"$f":"SUM(COUNTIF('Success Criteria'!AH7:AH69,\"PASS\"),COUNTIF('Success Criteria'!AH7:AH69,\"PASS with comments\"))","v":0},{"$f":"COUNTIF('Success Criteria'!AH7:AH69,\"NON COMPLIANT\")","v":0},{"$f":"COUNTIF('Success Criteria'!AH7:AH69,\"N/A\")","v":0},{"$f":"COUNTIF('Success Criteria'!AH7:AH69,\"not tested\")","v":0},{"$f":"SUM(COUNTIF('Success Criteria'!$AH73:$AH114,\"PASS\"),COUNTIF('Success Criteria'!$AH73:$AH114,\"PASS with comments\"))","v":2},{"$f":"COUNTIF('Success Criteria'!$AH73:$AH114,\"NON COMPLIANT\")","v":0},{"$f":"COUNTIF('Success Criteria'!$AH73:$AH114,\"N/A\")","v":0},{"$f":"COUNTIF('Success Criteria'!$AH73:$AH114,\"not tested\")","v":0},{"$f":"SUM(COUNTIF('Success Criteria'!$AH119:$AH173,\"PASS\"),COUNTIF('Success Criteria'!$AH119:$AH173,\"PASS with comments\"))","v":0},{"$f":"COUNTIF('Success Criteria'!$AH119:$AH173,\"NON COMPLIANT\")","v":0},{"$f":"COUNTIF('Success Criteria'!$AH119:$AH173,\"N/A\")","v":0},{"$f":"COUNTIF('Success Criteria'!$AH119:$AH173,\"not tested\")","v":28},2,0,0,28,null,0,"",2,"",28,1]
[31,"Form: Start discussion logged in",null,"Page",{"$f":"SUM(COUNTIF('Success Criteria'!AI7:AI69,\"PASS\"),COUNTIF('Success Criteria'!AI7:AI69,\"PASS with comments\"))","v":0},{"$f":"COUNTIF('Success Criteria'!AI7:AI69,\"NON COMPLIANT\")","v":0},{"$f":"COUNTIF('Success Criteria'!AI7:AI69,\"N/A\")","v":0},{"$f":"COUNTIF('Success Criteria'!AI7:AI69,\"not tested\")","v":0},{"$f":"SUM(COUNTIF('Success Criteria'!$AI73:$AI114,\"PASS\"),COUNTIF('Success Criteria'!$AI73:$AI114,\"PASS with comments\"))","v":2},{"$f":"COUNTIF('Success Criteria'!$AI73:$AI114,\"NON COMPLIANT\")","v":0},{"$f":"COUNTIF('Success Criteria'!$AI73:$AI114,\"N/A\")","v":0},{"$f":"COUNTIF('Success Criteria'!$AI73:$AI114,\"not tested\")","v":0},{"$f":"SUM(COUNTIF('Success Criteria'!$AI119:$AI173,\"PASS\"),COUNTIF('Success Criteria'!$AI119:$AI173,\"PASS with comments\"))","v":0},{"$f":"COUNTIF('Success Criteria'!$AI119:$AI173,\"NON COMPLIANT\")","v":0},{"$f":"COUNTIF('Success Criteria'!$AI119:$AI173,\"N/A\")","v":0},{"$f":"COUNTIF('Success Criteria'!$AI119:$AI173,\"not tested\")","v":28},2,0,0,28,null,0,"",2,"",28,1]
[32,"Form: Complete my profile",null,"Page",{"$f":"SUM(COUNTIF('Success Criteria'!AJ7:AJ69,\"PASS\"),COUNTIF('Success Criteria'!AJ7:AJ69,\"PASS with comments\"))","v":0},{"$f":"COUNTIF('Success Criteria'!AJ7:AJ69,\"NON COMPLIANT\")","v":0},{"$f":"COUNTIF('Success Criteria'!AJ7:AJ69,\"N/A\")","v":0},{"$f":"COUNTIF('Success Criteria'!AJ7:AJ69,\"not tested\")","v":0},{"$f":"SUM(COUNTIF('Success Criteria'!$AJ73:$AJ114,\"PASS\"),COUNTIF('Success Criteria'!$AJ73:$AJ114,\"PASS with comments\"))","v":2},{"$f":"COUNTIF('Success Criteria'!$AJ73:$AJ114,\"NON COMPLIANT\")","v":0},{"$f":"COUNTIF('Success Criteria'!$AJ73:$AJ114,\"N/A\")","v":0},{"$f":"COUNTIF('Success Criteria'!$AJ73:$AJ114,\"not tested\")","v":0},{"$f":"SUM(COUNTIF('Success Criteria'!$AJ119:$AJ173,\"PASS\"),COUNTIF('Success Criteria'!$AJ119:$AJ173,\"PASS with comments\"))","v":0},{"$f":"COUNTIF('Success Criteria'!$AJ119:$AJ173,\"NON COMPLIANT\")","v":0},{"$f":"COUNTIF('Success Criteria'!$AJ119:$AJ173,\"N/A\")","v":0},{"$f":"COUNTIF('Success Criteria'!$AJ119:$AJ173,\"not tested\")","v":28},2,0,0,28,null,0,"",2,"",28,1]
[33,"Form: Profile - about you",null,"Page",{"$f":"SUM(COUNTIF('Success Criteria'!AK7:AK69,\"PASS\"),COUNTIF('Success Criteria'!AK7:AK69,\"PASS with comments\"))","v":0},{"$f":"COUNTIF('Success Criteria'!AK7:AK69,\"NON COMPLIANT\")","v":0},{"$f":"COUNTIF('Success Criteria'!AK7:AK69,\"N/A\")","v":0},{"$f":"COUNTIF('Success Criteria'!AK7:AK69,\"not tested\")","v":0},{"$f":"SUM(COUNTIF('Success Criteria'!$AK73:$AK114,\"PASS\"),COUNTIF('Success Criteria'!$AK73:$AK114,\"PASS with comments\"))","v":2},{"$f":"COUNTIF('Success Criteria'!$AK73:$AK114,\"NON COMPLIANT\")","v":0},{"$f":"COUNTIF('Success Criteria'!$AK73:$AK114,\"N/A\")","v":0},{"$f":"COUNTIF('Success Criteria'!$AK73:$AK114,\"not tested\")","v":0},{"$f":"SUM(COUNTIF('Success Criteria'!$AK119:$AK173,\"PASS\"),COUNTIF('Success Criteria'!$AK119:$AK173,\"PASS with comments\"))","v":0},{"$f":"COUNTIF('Success Criteria'!$AK119:$AK173,\"NON COMPLIANT\")","v":0},{"$f":"COUNTIF('Success Criteria'!$AK119:$AK173,\"N/A\")","v":0},{"$f":"COUNTIF('Success Criteria'!$AK119:$AK173,\"not tested\")","v":28},2,0,0,28,null,{"$f":"SUM(E46:H46)","v":0},{"$f":"IF(V46=30,1,\"\")","v":""},2,"",28,1]
[34,"Form: Profile - interests",null,"Page",{"$f":"SUM(COUNTIF('Success Criteria'!AL7:AL69,\"PASS\"),COUNTIF('Success Criteria'!AL7:AL69,\"PASS with comments\"))","v":0},{"$f":"COUNTIF('Success Criteria'!AL7:AL69,\"NON COMPLIANT\")","v":0},{"$f":"COUNTIF('Success Criteria'!AL7:AL69,\"N/A\")","v":0},{"$f":"COUNTIF('Success Criteria'!AL7:AL69,\"not tested\")","v":0},{"$f":"SUM(COUNTIF('Success Criteria'!$AL73:$AL114,\"PASS\"),COUNTIF('Success Criteria'!$AL73:$AL114,\"PASS with comments\"))","v":2},{"$f":"COUNTIF('Success Criteria'!$AL73:$AL114,\"NON COMPLIANT\")","v":0},{"$f":"COUNTIF('Success Criteria'!$AL73:$AL114,\"N/A\")","v":0},{"$f":"COUNTIF('Success Criteria'!$AL73:$AL114,\"not tested\")","v":0},{"$f":"SUM(COUNTIF('Success Criteria'!$AL119:$AL173,\"PASS\"),COUNTIF('Success Criteria'!$AL119:$AL173,\"PASS with comments\"))","v":0},{"$f":"COUNTIF('Success Criteria'!$AL119:$AL173,\"NON COMPLIANT\")","v":0},{"$f":"COUNTIF('Success Criteria'!$AL119:$AL173,\"N/A\")","v":0},{"$f":"COUNTIF('Success Criteria'!$AL119:$AL173,\"not tested\")","v":28},2,0,0,28,null,0,"",2,"",28,1]
[35,"Form: Profile - account info",null,"Page",{"$f":"SUM(COUNTIF('Success Criteria'!AM7:AM69,\"PASS\"),COUNTIF('Success Criteria'!AM7:AM69,\"PASS with comments\"))","v":0},{"$f":"COUNTIF('Success Criteria'!AM7:AM69,\"NON COMPLIANT\")","v":0},{"$f":"COUNTIF('Success Criteria'!AM7:AM69,\"N/A\")","v":0},{"$f":"COUNTIF('Success Criteria'!AM7:AM69,\"not tested\")","v":0},{"$f":"SUM(COUNTIF('Success Criteria'!$AM73:$AM114,\"PASS\"),COUNTIF('Success Criteria'!$AM73:$AM114,\"PASS with comments\"))","v":2},{"$f":"COUNTIF('Success Criteria'!$AM73:$AM114,\"NON COMPLIANT\")","v":0},{"$f":"COUNTIF('Success Criteria'!$AM73:$AM114,\"N/A\")","v":0},{"$f":"COUNTIF('Success Criteria'!$AM73:$AM114,\"not tested\")","v":0},{"$f":"SUM(COUNTIF('Success Criteria'!$AM119:$AM173,\"PASS\"),COUNTIF('Success Criteria'!$AM119:$AM173,\"PASS with comments\"))","v":0},{"$f":"COUNTIF('Success Criteria'!$AM119:$AM173,\"NON COMPLIANT\")","v":0},{"$f":"COUNTIF('Success Criteria'!$AM119:$AM173,\"N/A\")","v":0},{"$f":"COUNTIF('Success Criteria'!$AM119:$AM173,\"not tested\")","v":28},2,0,0,28,null,0,"",2,"",28,1]
[36,"Topics",null,"Component",{"$f":"SUM(COUNTIF('Success Criteria'!AN7:AN69,\"PASS\"),COUNTIF('Success Criteria'!AN7:AN69,\"PASS with comments\"))","v":20},{"$f":"COUNTIF('Success Criteria'!AN7:AN69,\"NON COMPLIANT\")","v":2},{"$f":"COUNTIF('Success Criteria'!AN7:AN69,\"N/A\")","v":8},{"$f":"COUNTIF('Success Criteria'!AN7:AN69,\"not tested\")","v":0},{"$f":"SUM(COUNTIF('Success Criteria'!$AN73:$AN114,\"PASS\"),COUNTIF('Success Criteria'!$AN73:$AN114,\"PASS with comments\"))","v":16},{"$f":"COUNTIF('Success Criteria'!$AN73:$AN114,\"NON COMPLIANT\")","v":0},{"$f":"COUNTIF('Success Criteria'!$AN73:$AN114,\"N/A\")","v":4},{"$f":"COUNTIF('Success Criteria'!$AN73:$AN114,\"not tested\")","v":0},{"$f":"SUM(COUNTIF('Success Criteria'!$AN119:$AN173,\"PASS\"),COUNTIF('Success Criteria'!$AN119:$AN173,\"PASS with comments\"))","v":0},{"$f":"COUNTIF('Success Criteria'!$AN119:$AN173,\"NON COMPLIANT\")","v":0},{"$f":"COUNTIF('Success Criteria'!$AN119:$AN173,\"N/A\")","v":0},{"$f":"COUNTIF('Success Criteria'!$AN119:$AN173,\"not tested\")","v":28},36,2,12,28,null,30,1,20,1,28,1]
[37,"City Hall ","URL 37","Please select",{"$f":"SUM(COUNTIF('Success Criteria'!AO7:AO69,\"PASS\"),COUNTIF('Success Criteria'!AO7:AO69,\"PASS with comments\"))","v":20},{"$f":"COUNTIF('Success Criteria'!AO7:AO69,\"NON COMPLIANT\")","v":2},{"$f":"COUNTIF('Success Criteria'!AO7:AO69,\"N/A\")","v":8},{"$f":"COUNTIF('Success Criteria'!AO7:AO69,\"not tested\")","v":0},{"$f":"SUM(COUNTIF('Success Criteria'!$AO73:$AO114,\"PASS\"),COUNTIF('Success Criteria'!$AO73:$AO114,\"PASS with comments\"))","v":16},{"$f":"COUNTIF('Success Criteria'!$AO73:$AO114,\"NON COMPLIANT\")","v":0},{"$f":"COUNTIF('Success Criteria'!$AO73:$AO114,\"N/A\")","v":4},{"$f":"COUNTIF('Success Criteria'!$AO73:$AO114,\"not tested\")","v":0},{"$f":"SUM(COUNTIF('Success Criteria'!$AO119:$AO173,\"PASS\"),COUNTIF('Success Criteria'!$AO119:$AO173,\"PASS with comments\"))","v":0},{"$f":"COUNTIF('Success Criteria'!$AO119:$AO173,\"NON COMPLIANT\")","v":0},{"$f":"COUNTIF('Success Criteria'!$AO119:$AO173,\"N/A\")","v":0},{"$f":"COUNTIF('Success Criteria'!$AO119:$AO173,\"not tested\")","v":28},36,2,12,28,null,30,1,20,1,28,1]
[38,"Page 38","URL 38","Please select",{"$f":"SUM(COUNTIF('Success Criteria'!AP7:AP69,\"PASS\"),COUNTIF('Success Criteria'!AP7:AP69,\"PASS with comments\"))","v":0},{"$f":"COUNTIF('Success Criteria'!AP7:AP69,\"NON COMPLIANT\")","v":0},{"$f":"COUNTIF('Success Criteria'!AP7:AP69,\"N/A\")","v":0},{"$f":"COUNTIF('Success Criteria'!AP7:AP69,\"not tested\")","v":0},{"$f":"SUM(COUNTIF('Success Criteria'!$AP73:$AP114,\"PASS\"),COUNTIF('Success Criteria'!$AP73:$AP114,\"PASS with comments\"))","v":2},{"$f":"COUNTIF('Success Criteria'!$AP73:$AP114,\"NON COMPLIANT\")","v":0},{"$f":"COUNTIF('Success Criteria'!$AP73:$AP114,\"N/A\")","v":0},{"$f":"COUNTIF('Success Criteria'!$AP73:$AP114,\"not tested\")","v":0},{"$f":"SUM(COUNTIF('Success Criteria'!$AP119:$AP173,\"PASS\"),COUNTIF('Success Criteria'!$AP119:$AP173,\"PASS with comments\"))","v":0},{"$f":"COUNTIF('Success Criteria'!$AP119:$AP173,\"NON COMPLIANT\")","v":0},{"$f":"COUNTIF('Success Criteria'!$AP119:$AP173,\"N/A\")","v":0},{"$f":"COUNTIF('Success Criteria'!$AP119:$AP173,\"not tested\")","v":28},2,0,0,28,null,0,"",2,"",28,1]
[39,"Page 39","URL 39","Please select",{"$f":"SUM(COUNTIF('Success Criteria'!AQ7:AQ69,\"PASS\"),COUNTIF('Success Criteria'!AQ7:AQ69,\"PASS with comments\"))","v":0},{"$f":"COUNTIF('Success Criteria'!AQ7:AQ69,\"NON COMPLIANT\")","v":0},{"$f":"COUNTIF('Success Criteria'!AQ7:AQ69,\"N/A\")","v":0},{"$f":"COUNTIF('Success Criteria'!AQ7:AQ69,\"not tested\")","v":0},{"$f":"SUM(COUNTIF('Success Criteria'!$AQ73:$AQ114,\"PASS\"),COUNTIF('Success Criteria'!$AQ73:$AQ114,\"PASS with comments\"))","v":2},{"$f":"COUNTIF('Success Criteria'!$AQ73:$AQ114,\"NON COMPLIANT\")","v":0},{"$f":"COUNTIF('Success Criteria'!$AQ73:$AQ114,\"N/A\")","v":0},{"$f":"COUNTIF('Success Criteria'!$AQ73:$AQ114,\"not tested\")","v":0},{"$f":"SUM(COUNTIF('Success Criteria'!$AQ119:$AQ173,\"PASS\"),COUNTIF('Success Criteria'!$AQ119:$AQ173,\"PASS with comments\"))","v":0},{"$f":"COUNTIF('Success Criteria'!$AQ119:$AQ173,\"NON COMPLIANT\")","v":0},{"$f":"COUNTIF('Success Criteria'!$AQ119:$AQ173,\"N/A\")","v":0},{"$f":"COUNTIF('Success Criteria'!$AQ119:$AQ173,\"not tested\")","v":28},2,0,0,28,null,0,"",2,"",28,1]
[40,"Page 40","URL 40","Please select",{"$f":"SUM(COUNTIF('Success Criteria'!AR7:AR69,\"PASS\"),COUNTIF('Success Criteria'!AR7:AR69,\"PASS with comments\"))","v":16},{"$f":"COUNTIF('Success Criteria'!AR7:AR69,\"NON COMPLIANT\")","v":0},{"$f":"COUNTIF('Success Criteria'!AR7:AR69,\"N/A\")","v":8},{"$f":"COUNTIF('Success Criteria'!AR7:AR69,\"not tested\")","v":0},{"$f":"SUM(COUNTIF('Success Criteria'!$AR73:$AR114,\"PASS\"),COUNTIF('Success Criteria'!$AR73:$AR114,\"PASS with comments\"))","v":12},{"$f":"COUNTIF('Success Criteria'!$AR73:$AR114,\"NON COMPLIANT\")","v":0},{"$f":"COUNTIF('Success Criteria'!$AR73:$AR114,\"N/A\")","v":4},{"$f":"COUNTIF('Success Criteria'!$AR73:$AR114,\"not tested\")","v":0},{"$f":"SUM(COUNTIF('Success Criteria'!$AR119:$AR173,\"PASS\"),COUNTIF('Success Criteria'!$AR119:$AR173,\"PASS with comments\"))","v":0},{"$f":"COUNTIF('Success Criteria'!$AR119:$AR173,\"NON COMPLIANT\")","v":0},{"$f":"COUNTIF('Success Criteria'!$AR119:$AR173,\"N/A\")","v":0},{"$f":"COUNTIF('Success Criteria'!$AR119:$AR173,\"not tested\")","v":28},28,0,12,28,null,24,"",16,"",28,1]
[41,"Page 41","URL 41","Please select",{"$f":"SUM(COUNTIF('Success Criteria'!AS7:AS69,\"PASS\"),COUNTIF('Success Criteria'!AS7:AS69,\"PASS with comments\"))","v":0},{"$f":"COUNTIF('Success Criteria'!AS7:AS69,\"NON COMPLIANT\")","v":0},{"$f":"COUNTIF('Success Criteria'!AS7:AS69,\"N/A\")","v":0},{"$f":"COUNTIF('Success Criteria'!AS7:AS69,\"not tested\")","v":0},{"$f":"SUM(COUNTIF('Success Criteria'!$AS73:$AS114,\"PASS\"),COUNTIF('Success Criteria'!$AS73:$AS114,\"PASS with comments\"))","v":2},{"$f":"COUNTIF('Success Criteria'!$AS73:$AS114,\"NON COMPLIANT\")","v":0},{"$f":"COUNTIF('Success Criteria'!$AS73:$AS114,\"N/A\")","v":0},{"$f":"COUNTIF('Success Criteria'!$AS73:$AS114,\"not tested\")","v":0},{"$f":"SUM(COUNTIF('Success Criteria'!$AS119:$AS173,\"PASS\"),COUNTIF('Success Criteria'!$AS119:$AS173,\"PASS with comments\"))","v":0},{"$f":"COUNTIF('Success Criteria'!$AS119:$AS173,\"NON COMPLIANT\")","v":0},{"$f":"COUNTIF('Success Criteria'!$AS119:$AS173,\"N/A\")","v":0},{"$f":"COUNTIF('Success Criteria'!$AS119:$AS173,\"not tested\")","v":28},2,0,0,28,null,0,"",2,"",28,1]
[42,"Page 42","URL 42","Please select",{"$f":"SUM(COUNTIF('Success Criteria'!AT7:AT69,\"PASS\"),COUNTIF('Success Criteria'!AT7:AT69,\"PASS with comments\"))","v":0},{"$f":"COUNTIF('Success Criteria'!AT7:AT69,\"NON COMPLIANT\")","v":0},{"$f":"COUNTIF('Success Criteria'!AT7:AT69,\"N/A\")","v":0},{"$f":"COUNTIF('Success Criteria'!AT7:AT69,\"not tested\")","v":0},{"$f":"SUM(COUNTIF('Success Criteria'!$AT73:$AT114,\"PASS\"),COUNTIF('Success Criteria'!$AT73:$AT114,\"PASS with comments\"))","v":2},{"$f":"COUNTIF('Success Criteria'!$AT73:$AT114,\"NON COMPLIANT\")","v":0},{"$f":"COUNTIF('Success Criteria'!$AT73:$AT114,\"N/A\")","v":0},{"$f":"COUNTIF('Success Criteria'!$AT73:$AT114,\"not tested\")","v":0},{"$f":"SUM(COUNTIF('Success Criteria'!$AT119:$AT173,\"PASS\"),COUNTIF('Success Criteria'!$AT119:$AT173,\"PASS with comments\"))","v":0},{"$f":"COUNTIF('Success Criteria'!$AT119:$AT173,\"NON COMPLIANT\")","v":0},{"$f":"COUNTIF('Success Criteria'!$AT119:$AT173,\"N/A\")","v":0},{"$f":"COUNTIF('Success Criteria'!$AT119:$AT173,\"not tested\")","v":28},2,0,0,28,null,0,"",2,"",28,1]
[43,"Page 43","URL 43","Please select",{"$f":"SUM(COUNTIF('Success Criteria'!AU7:AU69,\"PASS\"),COUNTIF('Success Criteria'!AU7:AU69,\"PASS with comments\"))","v":0},{"$f":"COUNTIF('Success Criteria'!AU7:AU69,\"NON COMPLIANT\")","v":0},{"$f":"COUNTIF('Success Criteria'!AU7:AU69,\"N/A\")","v":0},{"$f":"COUNTIF('Success Criteria'!AU7:AU69,\"not tested\")","v":0},{"$f":"SUM(COUNTIF('Success Criteria'!$AU73:$AU114,\"PASS\"),COUNTIF('Success Criteria'!$AU73:$AU114,\"PASS with comments\"))","v":2},{"$f":"COUNTIF('Success Criteria'!$AU73:$AU114,\"NON COMPLIANT\")","v":0},{"$f":"COUNTIF('Success Criteria'!$AU73:$AU114,\"N/A\")","v":0},{"$f":"COUNTIF('Success Criteria'!$AU73:$AU114,\"not tested\")","v":0},{"$f":"SUM(COUNTIF('Success Criteria'!$AU119:$AU173,\"PASS\"),COUNTIF('Success Criteria'!$AU119:$AU173,\"PASS with comments\"))","v":0},{"$f":"COUNTIF('Success Criteria'!$AU119:$AU173,\"NON COMPLIANT\")","v":0},{"$f":"COUNTIF('Success Criteria'!$AU119:$AU173,\"N/A\")","v":0},{"$f":"COUNTIF('Success Criteria'!$AU119:$AU173,\"not tested\")","v":28},2,0,0,28,null,0,"",2,"",28,1]
[44,"Page 44","URL 44","Please select",{"$f":"SUM(COUNTIF('Success Criteria'!AV7:AV69,\"PASS\"),COUNTIF('Success Criteria'!AV7:AV69,\"PASS with comments\"))","v":0},{"$f":"COUNTIF('Success Criteria'!AV7:AV69,\"NON COMPLIANT\")","v":0},{"$f":"COUNTIF('Success Criteria'!AV7:AV69,\"N/A\")","v":0},{"$f":"COUNTIF('Success Criteria'!AV7:AV69,\"not tested\")","v":0},{"$f":"SUM(COUNTIF('Success Criteria'!$AV73:$AV114,\"PASS\"),COUNTIF('Success Criteria'!$AV73:$AV114,\"PASS with comments\"))","v":2},{"$f":"COUNTIF('Success Criteria'!$AV73:$AV114,\"NON COMPLIANT\")","v":0},{"$f":"COUNTIF('Success Criteria'!$AV73:$AV114,\"N/A\")","v":0},{"$f":"COUNTIF('Success Criteria'!$AV73:$AV114,\"not tested\")","v":0},{"$f":"SUM(COUNTIF('Success Criteria'!$AV119:$AV173,\"PASS\"),COUNTIF('Success Criteria'!$AV119:$AV173,\"PASS with comments\"))","v":0},{"$f":"COUNTIF('Success Criteria'!$AV119:$AV173,\"NON COMPLIANT\")","v":0},{"$f":"COUNTIF('Success Criteria'!$AV119:$AV173,\"N/A\")","v":0},{"$f":"COUNTIF('Success Criteria'!$AV119:$AV173,\"not tested\")","v":28},2,0,0,28,null,0,"",2,"",28,1]
[45,"Page 45","URL 45","Please select",{"$f":"SUM(COUNTIF('Success Criteria'!AW7:AW69,\"PASS\"),COUNTIF('Success Criteria'!AW7:AW69,\"PASS with comments\"))","v":0},{"$f":"COUNTIF('Success Criteria'!AW7:AW69,\"NON COMPLIANT\")","v":0},{"$f":"COUNTIF('Success Criteria'!AW7:AW69,\"N/A\")","v":0},{"$f":"COUNTIF('Success Criteria'!AW7:AW69,\"not tested\")","v":0},{"$f":"SUM(COUNTIF('Success Criteria'!$AW73:$AW114,\"PASS\"),COUNTIF('Success Criteria'!$AW73:$AW114,\"PASS with comments\"))","v":2},{"$f":"COUNTIF('Success Criteria'!$AW73:$AW114,\"NON COMPLIANT\")","v":0},{"$f":"COUNTIF('Success Criteria'!$AW73:$AW114,\"N/A\")","v":0},{"$f":"COUNTIF('Success Criteria'!$AW73:$AW114,\"not tested\")","v":0},{"$f":"SUM(COUNTIF('Success Criteria'!$AW119:$AW173,\"PASS\"),COUNTIF('Success Criteria'!$AW119:$AW173,\"PASS with comments\"))","v":0},{"$f":"COUNTIF('Success Criteria'!$AW119:$AW173,\"NON COMPLIANT\")","v":0},{"$f":"COUNTIF('Success Criteria'!$AW119:$AW173,\"N/A\")","v":0},{"$f":"COUNTIF('Success Criteria'!$AW119:$AW173,\"not tested\")","v":28},2,0,0,28,null,0,"",2,"",28,1]
[46,"Page 46","URL 46","Please select",{"$f":"SUM(COUNTIF('Success Criteria'!AX7:AX69,\"PASS\"),COUNTIF('Success Criteria'!AX7:AX69,\"PASS with comments\"))","v":0},{"$f":"COUNTIF('Success Criteria'!AX7:AX69,\"NON COMPLIANT\")","v":0},{"$f":"COUNTIF('Success Criteria'!AX7:AX69,\"N/A\")","v":0},{"$f":"COUNTIF('Success Criteria'!AX7:AX69,\"not tested\")","v":0},{"$f":"SUM(COUNTIF('Success Criteria'!$AX73:$AX114,\"PASS\"),COUNTIF('Success Criteria'!$AX73:$AX114,\"PASS with comments\"))","v":2},{"$f":"COUNTIF('Success Criteria'!$AX73:$AX114,\"NON COMPLIANT\")","v":0},{"$f":"COUNTIF('Success Criteria'!$AX73:$AX114,\"N/A\")","v":0},{"$f":"COUNTIF('Success Criteria'!$AX73:$AX114,\"not tested\")","v":0},{"$f":"SUM(COUNTIF('Success Criteria'!$AX119:$AX173,\"PASS\"),COUNTIF('Success Criteria'!$AX119:$AX173,\"PASS with comments\"))","v":0},{"$f":"COUNTIF('Success Criteria'!$AX119:$AX173,\"NON COMPLIANT\")","v":0},{"$f":"COUNTIF('Success Criteria'!$AX119:$AX173,\"N/A\")","v":0},{"$f":"COUNTIF('Success Criteria'!$AX119:$AX173,\"not tested\")","v":28},2,0,0,28,null,0,"",2,"",28,1]
[47,"Page 47","URL 47","Please select",{"$f":"SUM(COUNTIF('Success Criteria'!AY7:AY69,\"PASS\"),COUNTIF('Success Criteria'!AY7:AY69,\"PASS with comments\"))","v":0},{"$f":"COUNTIF('Success Criteria'!AY7:AY69,\"NON COMPLIANT\")","v":0},{"$f":"COUNTIF('Success Criteria'!AY7:AY69,\"N/A\")","v":0},{"$f":"COUNTIF('Success Criteria'!AY7:AY69,\"not tested\")","v":0},{"$f":"SUM(COUNTIF('Success Criteria'!$AY73:$AY114,\"PASS\"),COUNTIF('Success Criteria'!$AY73:$AY114,\"PASS with comments\"))","v":2},{"$f":"COUNTIF('Success Criteria'!$AY73:$AY114,\"NON COMPLIANT\")","v":0},{"$f":"COUNTIF('Success Criteria'!$AY73:$AY114,\"N/A\")","v":0},{"$f":"COUNTIF('Success Criteria'!$AY73:$AY114,\"not tested\")","v":0},{"$f":"SUM(COUNTIF('Success Criteria'!$AY119:$AY173,\"PASS\"),COUNTIF('Success Criteria'!$AY119:$AY173,\"PASS with comments\"))","v":0},{"$f":"COUNTIF('Success Criteria'!$AY119:$AY173,\"NON COMPLIANT\")","v":0},{"$f":"COUNTIF('Success Criteria'!$AY119:$AY173,\"N/A\")","v":0},{"$f":"COUNTIF('Success Criteria'!$AY119:$AY173,\"not tested\")","v":28},2,0,0,28,null,0,"",2,"",28,1]
[48,"Page 48","URL 48","Please select",{"$f":"SUM(COUNTIF('Success Criteria'!AZ7:AZ69,\"PASS\"),COUNTIF('Success Criteria'!AZ7:AZ69,\"PASS with comments\"))","v":0},{"$f":"COUNTIF('Success Criteria'!AZ7:AZ69,\"NON COMPLIANT\")","v":0},{"$f":"COUNTIF('Success Criteria'!AZ7:AZ69,\"N/A\")","v":0},{"$f":"COUNTIF('Success Criteria'!AZ7:AZ69,\"not tested\")","v":0},{"$f":"SUM(COUNTIF('Success Criteria'!$AZ73:$AZ114,\"PASS\"),COUNTIF('Success Criteria'!$AZ73:$AZ114,\"PASS with comments\"))","v":2},{"$f":"COUNTIF('Success Criteria'!$AZ73:$AZ114,\"NON COMPLIANT\")","v":0},{"$f":"COUNTIF('Success Criteria'!$AZ73:$AZ114,\"N/A\")","v":0},{"$f":"COUNTIF('Success Criteria'!$AZ73:$AZ114,\"not tested\")","v":0},{"$f":"SUM(COUNTIF('Success Criteria'!$AZ119:$AZ173,\"PASS\"),COUNTIF('Success Criteria'!$AZ119:$AZ173,\"PASS with comments\"))","v":0},{"$f":"COUNTIF('Success Criteria'!$AZ119:$AZ173,\"NON COMPLIANT\")","v":0},{"$f":"COUNTIF('Success Criteria'!$AZ119:$AZ173,\"N/A\")","v":0},{"$f":"COUNTIF('Success Criteria'!$AZ119:$AZ173,\"not tested\")","v":28},2,0,0,28,null,0,"",2,"",28,1]
[49,"Page 49","URL 49","Please select",{"$f":"SUM(COUNTIF('Success Criteria'!BA7:BA69,\"PASS\"),COUNTIF('Success Criteria'!BA7:BA69,\"PASS with comments\"))","v":0},{"$f":"COUNTIF('Success Criteria'!BA7:BA69,\"NON COMPLIANT\")","v":0},{"$f":"COUNTIF('Success Criteria'!BA7:BA69,\"N/A\")","v":0},{"$f":"COUNTIF('Success Criteria'!BA7:BA69,\"not tested\")","v":0},{"$f":"SUM(COUNTIF('Success Criteria'!$BA73:$BA114,\"PASS\"),COUNTIF('Success Criteria'!$BA73:$BA114,\"PASS with comments\"))","v":2},{"$f":"COUNTIF('Success Criteria'!$BA73:$BA114,\"NON COMPLIANT\")","v":0},{"$f":"COUNTIF('Success Criteria'!$BA73:$BA114,\"N/A\")","v":0},{"$f":"COUNTIF('Success Criteria'!$BA73:$BA114,\"not tested\")","v":0},{"$f":"SUM(COUNTIF('Success Criteria'!$BA119:$BA173,\"PASS\"),COUNTIF('Success Criteria'!$BA119:$BA173,\"PASS with comments\"))","v":0},{"$f":"COUNTIF('Success Criteria'!$BA119:$BA173,\"NON COMPLIANT\")","v":0},{"$f":"COUNTIF('Success Criteria'!$BA119:$BA173,\"N/A\")","v":0},{"$f":"COUNTIF('Success Criteria'!$BA119:$BA173,\"not tested\")","v":28},2,0,0,28,null,0,"",2,"",28,1]
[50,"Page 50","URL 50","Please select",{"$f":"SUM(COUNTIF('Success Criteria'!BB7:BB69,\"PASS\"),COUNTIF('Success Criteria'!BB7:BB69,\"PASS with comments\"))","v":0},{"$f":"COUNTIF('Success Criteria'!BB7:BB69,\"NON COMPLIANT\")","v":0},{"$f":"COUNTIF('Success Criteria'!BB7:BB69,\"N/A\")","v":0},{"$f":"COUNTIF('Success Criteria'!BB7:BB69,\"not tested\")","v":0},{"$f":"SUM(COUNTIF('Success Criteria'!$BB73:$BB114,\"PASS\"),COUNTIF('Success Criteria'!$BB73:$BB114,\"PASS with comments\"))","v":2},{"$f":"COUNTIF('Success Criteria'!$BB73:$BB114,\"NON COMPLIANT\")","v":0},{"$f":"COUNTIF('Success Criteria'!$BB73:$BB114,\"N/A\")","v":0},{"$f":"COUNTIF('Success Criteria'!$BB73:$BB114,\"not tested\")","v":0},{"$f":"SUM(COUNTIF('Success Criteria'!$BB119:$BB173,\"PASS\"),COUNTIF('Success Criteria'!$BB119:$BB173,\"PASS with comments\"))","v":0},{"$f":"COUNTIF('Success Criteria'!$BB119:$BB173,\"NON COMPLIANT\")","v":0},{"$f":"COUNTIF('Success Criteria'!$BB119:$BB173,\"N/A\")","v":0},{"$f":"COUNTIF('Success Criteria'!$BB119:$BB173,\"not tested\")","v":28},2,0,0,28,null,0,"",2,"",28,1]
[null,null,null,null,null,null,null,null,null,null,null,null,null,null,null,null,null,null,null,null,null,null,"Total",null,"Total",null,"Total"]
[null,null,null,null,"Level A",null,null,null,"Level AA",null,null,null,"Level AAA",null,null,null,"Total",null,null,null,null,null,{"$f":"SUM(W14:W64)","v":12},null,{"$f":"SUM(Y14:Y64)","v":12},null,{"$f":"SUM(AA14:AA64)","v":50}]
[null,null,null,null,"Pass","Fail","N/A","Not tested","Pass","Fail","N/A ","Not tested","Pass","Fail","N/A ","Not tested","Pass","Fail","N/A ","Not tested"]
["Total",null,null,null,{"$f":"SUM(E14:E63)","v":247},31,106,0,272,6,52,0,{"$f":"SUM(M14:M63)","v":0},0,0,1400,{"$f":"SUM(Q14:Q63)","v":519},{"$f":"SUM(R14:R63)","v":37},{"$f":"SUM(S14:S63)","v":158},{"$f":"SUM(T14:T63)","v":1400}]
["Average per page",null,null,null,{"$f":"E67/$W$65","v":20.583333333333332},{"$f":"F67/$W$65","v":2.5833333333333335},{"$f":"G67/$W$65","v":8.8333333333333339},{"$f":"H67/$W$65","v":0},{"$f":"I67/$Y$65","v":22.666666666666668},{"$f":"J67/$Y$65","v":0.5},{"$f":"K67/$Y$65","v":4.333333333333333},{"$f":"L67/$Y$65","v":0},{"$f":"M67/$AA$65","v":0},{"$f":"N67/$AA$65","v":0},{"$f":"O67/$AA$65","v":0},{"$f":"P67/$AA$65","v":28},{"$f":"E68+I68+M68","v":43.25},{"$f":"F68+J68+N68","v":3.0833333333333335},{"$f":"G68+K68+O68","v":13.166666666666668},{"$f":"H68+L68+P68","v":28}]

{"sheet":"Success Criteria","index":3,"n_rows":173,"n_cols":54,"rows_kept":173,"cut":false,"hidden":false,"merged":[[2,0,3,0],[2,1,2,3],[3,1,3,3],[0,0,1,3]]}
["\nWCAG 2.1 website accessibility audit\nSuccess Criteria",null,null,null,"Initially tested on","Initially tested on","Initially tested on","Initially tested on","Initially tested on","Initially tested on","Initially tested on","Initially tested on","Initially tested on","Initially tested on","Initially tested on","Initially tested on","Initially tested on","Initially tested on","Initially tested on","Initially tested on","Initially tested on","Initially tested on","Initially tested on","Initially tested on","Initially tested on","Initially tested on","Initially tested on","Initially tested on","Initially tested on","Initially tested on","Initially tested on","Initially tested on","Initially tested on","Initially tested on","Initially tested on","Initially tested on","Initially tested on","Initially tested on","Initially tested on","Initially tested on","Initially tested on","Initially tested on","Initially tested on","Initially tested on","Initially tested on","Initially tested on","Initially tested on","Initially tested on","Initially tested on","Initially tested on","Initially tested on","Initially tested on","Initially tested on","Initially tested on"]
[null,null,null,null,"2020-11-26","2020-11-30","2020-11-26","2020-11-26",null,"2020-11-27","2020-11-26","Press Ctrl+Colon to enter today's date","Press Ctrl+Colon to enter today's date","2020-11-30","Press Ctrl+Colon to enter today's date","Press Ctrl+Colon to enter today's date","2020-11-27","2020-11-30","2020-11-27","Press Ctrl+Colon to enter today's date","Press Ctrl+Colon to enter today's date","Press Ctrl+Colon to enter today's date","Press Ctrl+Colon to enter today's date","Press Ctrl+Colon to enter today's date","Press Ctrl+Colon to enter today's date","Press Ctrl+Colon to enter today's date","Press Ctrl+Colon to enter today's date","Press Ctrl+Colon to enter today's date","Press Ctrl+Colon to enter today's date","Press Ctrl+Colon to enter today's date","Press Ctrl+Colon to enter today's date","Press Ctrl+Colon to enter today's date","Press Ctrl+Colon to enter today's date","Press Ctrl+Colon to enter today's date","Press Ctrl+Colon to enter today's date","Press Ctrl+Colon to enter today's date","Press Ctrl+Colon to enter today's date","Press Ctrl+Colon to enter today's date","Press Ctrl+Colon to enter today's date","2020-11-26","2020-11-30","Press Ctrl+Colon to enter today's date","Press Ctrl+Colon to enter today's date","Press Ctrl+Colon to enter today's date","Press Ctrl+Colon to enter today's date","Press Ctrl+Colon to enter today's date","Press Ctrl+Colon to enter today's date","Press Ctrl+Colon to enter today's date","Press Ctrl+Colon to enter today's date","Press Ctrl+Colon to enter today's date","Press Ctrl+Colon to enter today's date","Press Ctrl+Colon to enter today's date","Press Ctrl+Colon to enter today's date","Press Ctrl+Colon to enter today's date"]
["Key","Cells highlighted in pink indicate non-compliances.",null,null,{"$f":"TRANSPOSE(Statistics!$B$14:$C$63)","v":"Header (logged out)"},"Header (logged in)","Footer","Hero area","Search","Featured","Have your say","Quick Poll","Quick Poll Results","Updates and impact","Start a discussion","Learn more","Related content ","Comments","Timeline","Video","Next steps","Infographic","Search Results including Filter","Your impact","Survey form","Status","Invite members","Following","Supporting","Surveys","Ideas","Form: Register no engagement","Form: Register with engagement","Form: Log in","Form: Start discussion logged in","Form: Complete my profile","Form: Profile - about you","Form: Profile - interests","Form: Profile - account info","Topics","City Hall ","Page 38","Page 39","Page 40","Page 41","Page 42","Page 43","Page 44","Page 45","Page 46","Page 47","Page 48","Page 49","Page 50"]
[null,"Cells highlighted in tan indicate that the criteria are technically met with caveats or recommendations.",null,null,0,0,0,0,0,0,0,0,0,0,0,0,0,0,0,0,0,0,0,0,0,0,0,0,0,0,0,0,0,0,0,0,0,0,0,0,"URL 37","URL 38","URL 39","URL 40","URL 41","URL 42","URL 43","URL 44","URL 45","URL 46","URL 47","URL 48","URL 49","URL 50"]
[null,null,"Level A Success Criteria",null,"View screenshot","View screenshot","View screenshot","View screenshot","View screenshot","View screenshot","View screenshot","View screenshot","View screenshot","View screenshot","View screenshot","View screenshot","View screenshot","View screenshot","View screenshot","View screenshot","View screenshot","View screenshot","View screenshot","View screenshot","View screenshot","View screenshot","View screenshot","View screenshot","View screenshot","View screenshot","View screenshot","View screenshot","View screenshot","View screenshot","View screenshot","View screenshot","View screenshot","View screenshot","View screenshot","View screenshot","View screenshot","View screenshot","View screenshot","View screenshot","View screenshot","View screenshot","View screenshot","View screenshot","View screenshot","View screenshot","View screenshot","View screenshot","View screenshot","View screenshot"]
["W3C Ref.","Level.",null,"Principle 1: Perceivable - Information and user interface components must be presentable to users in ways they can perceive.",{"$f":"IF(Statistics!$S3=\"Yes\",COUNTIF(E7:E68,\"NON COMPLIANT\") & \" Level A Non-compliance\" & IF(COUNTIF(E7:E68,\"NON COMPLIANT\")=1,\"\",\"s\"),\"\") & IF(Statistics!$S4=\"Yes\",\"\n\" & COUNTIF(E73:E114,\"NON COMPLIANT\") & \" Level AA Non-compliance\" & IF(COUNTIF(E73:E114,\"NON COMPLIANT\")=1,\"\",\"s\"),\"\") & IF(Statistics!$S5=\"Yes\",\"\n\" & COUNTIF(E119:E173,\"NON COMPLIANT\") & \" Level AAA Non-compliance\" & IF(COUNTIF(E119:E173,\"NON COMPLIANT\")=1,\"\",\"s\"),\"\")","v":"5 Level A Non-compliances\n1 Level AA Non-compliance"},{"$f":"IF(Statistics!$S3=\"Yes\",COUNTIF(F7:F68,\"NON COMPLIANT\") & \" Level A Non-compliance\" & IF(COUNTIF(F7:F68,\"NON COMPLIANT\")=1,\"\",\"s\"),\"\") & IF(Statistics!$S4=\"Yes\",\"\n\" & COUNTIF(F73:F114,\"NON COMPLIANT\") & \" Level AA Non-compliance\" & IF(COUNTIF(F73:F114,\"NON COMPLIANT\")=1,\"\",\"s\"),\"\") & IF(Statistics!$S5=\"Yes\",\"\n\" & COUNTIF(F119:F173,\"NON COMPLIANT\") & \" Level AAA Non-compliance\" & IF(COUNTIF(F119:F173,\"NON COMPLIANT\")=1,\"\",\"s\"),\"\")","v":"5 Level A Non-compliances\n1 Level AA Non-compliance"},{"$f":"IF(Statistics!$S3=\"Yes\",COUNTIF(G7:G68,\"NON COMPLIANT\") & \" Level A Non-compliance\" & IF(COUNTIF(G7:G68,\"NON COMPLIANT\")=1,\"\",\"s\"),\"\") & IF(Statistics!$S4=\"Yes\",\"\n\" & COUNTIF(G73:G114,\"NON COMPLIANT\") & \" Level AA Non-compliance\" & IF(COUNTIF(G73:G114,\"NON COMPLIANT\")=1,\"\",\"s\"),\"\") & IF(Statistics!$S5=\"Yes\",\"\n\" & COUNTIF(G119:G173,\"NON COMPLIANT\") & \" Level AAA Non-compliance\" & IF(COUNTIF(G119:G173,\"NON COMPLIANT\")=1,\"\",\"s\"),\"\")","v":"0 Level A Non-compliances\n0 Level AA Non-compliances"},{"$f":"IF(Statistics!$S3=\"Yes\",COUNTIF(H7:H68,\"NON COMPLIANT\") & \" Level A Non-compliance\" & IF(COUNTIF(H7:H68,\"NON COMPLIANT\")=1,\"\",\"s\"),\"\") & IF(Statistics!$S4=\"Yes\",\"\n\" & COUNTIF(H73:H114,\"NON COMPLIANT\") & \" Level AA Non-compliance\" & IF(COUNTIF(H73:H114,\"NON COMPLIANT\")=1,\"\",\"s\"),\"\") & IF(Statistics!$S5=\"Yes\",\"\n\" & COUNTIF(H119:H173,\"NON COMPLIANT\") & \" Level AAA Non-compliance\" & IF(COUNTIF(H119:H173,\"NON COMPLIANT\")=1,\"\",\"s\"),\"\")","v":"0 Level A Non-compliances\n1 Level AA Non-compliance"},{"$f":"IF(Statistics!$S3=\"Yes\",COUNTIF(I7:I68,\"NON COMPLIANT\") & \" Level A Non-compliance\" & IF(COUNTIF(I7:I68,\"NON COMPLIANT\")=1,\"\",\"s\"),\"\") & IF(Statistics!$S4=\"Yes\",\"\n\" & COUNTIF(I73:I114,\"NON COMPLIANT\") & \" Level AA Non-compliance\" & IF(COUNTIF(I73:I114,\"NON COMPLIANT\")=1,\"\",\"s\"),\"\") & IF(Statistics!$S5=\"Yes\",\"\n\" & COUNTIF(I119:I173,\"NON COMPLIANT\") & \" Level AAA Non-compliance\" & IF(COUNTIF(I119:I173,\"NON COMPLIANT\")=1,\"\",\"s\"),\"\")","v":"0 Level A Non-compliances\n0 Level AA Non-compliances"},{"$f":"IF(Statistics!$S3=\"Yes\",COUNTIF(J7:J68,\"NON COMPLIANT\") & \" Level A Non-compliance\" & IF(COUNTIF(J7:J68,\"NON COMPLIANT\")=1,\"\",\"s\"),\"\") & IF(Statistics!$S4=\"Yes\",\"\n\" & COUNTIF(J73:J114,\"NON COMPLIANT\") & \" Level AA Non-compliance\" & IF(COUNTIF(J73:J114,\"NON COMPLIANT\")=1,\"\",\"s\"),\"\") & IF(Statistics!$S5=\"Yes\",\"\n\" & COUNTIF(J119:J173,\"NON COMPLIANT\") & \" Level AAA Non-compliance\" & IF(COUNTIF(J119:J173,\"NON COMPLIANT\")=1,\"\",\"s\"),\"\")","v":"2 Level A Non-compliances\n0 Level AA Non-compliances"},{"$f":"IF(Statistics!$S3=\"Yes\",COUNTIF(K7:K68,\"NON COMPLIANT\") & \" Level A Non-compliance\" & IF(COUNTIF(K7:K68,\"NON COMPLIANT\")=1,\"\",\"s\"),\"\") & IF(Statistics!$S4=\"Yes\",\"\n\" & COUNTIF(K73:K114,\"NON COMPLIANT\") & \" Level AA Non-compliance\" & IF(COUNTIF(K73:K114,\"NON COMPLIANT\")=1,\"\",\"s\"),\"\") & IF(Statistics!$S5=\"Yes\",\"\n\" & COUNTIF(K119:K173,\"NON COMPLIANT\") & \" Level AAA Non-compliance\" & IF(COUNTIF(K119:K173,\"NON COMPLIANT\")=1,\"\",\"s\"),\"\")","v":"3 Level A Non-compliances\n0 Level AA Non-compliances"},{"$f":"IF(Statistics!$S3=\"Yes\",COUNTIF(L7:L68,\"NON COMPLIANT\") & \" Level A Non-compliance\" & IF(COUNTIF(L7:L68,\"NON COMPLIANT\")=1,\"\",\"s\"),\"\") & IF(Statistics!$S4=\"Yes\",\"\n\" & COUNTIF(L73:L114,\"NON COMPLIANT\") & \" Level AA Non-compliance\" & IF(COUNTIF(L73:L114,\"NON COMPLIANT\")=1,\"\",\"s\"),\"\") & IF(Statistics!$S5=\"Yes\",\"\n\" & COUNTIF(L119:L173,\"NON COMPLIANT\") & \" Level AAA Non-compliance\" & IF(COUNTIF(L119:L173,\"NON COMPLIANT\")=1,\"\",\"s\"),\"\")","v":"0 Level A Non-compliances\n0 Level AA Non-compliances"},{"$f":"IF(Statistics!$S3=\"Yes\",COUNTIF(M7:M68,\"NON COMPLIANT\") & \" Level A Non-compliance\" & IF(COUNTIF(M7:M68,\"NON COMPLIANT\")=1,\"\",\"s\"),\"\") & IF(Statistics!$S4=\"Yes\",\"\n\" & COUNTIF(M73:M114,\"NON COMPLIANT\") & \" Level AA Non-compliance\" & IF(COUNTIF(M73:M114,\"NON COMPLIANT\")=1,\"\",\"s\"),\"\") & IF(Statistics!$S5=\"Yes\",\"\n\" & COUNTIF(M119:M173,\"NON COMPLIANT\") & \" Level AAA Non-compliance\" & IF(COUNTIF(M119:M173,\"NON COMPLIANT\")=1,\"\",\"s\"),\"\")","v":"0 Level A Non-compliances\n0 Level AA Non-compliances"},{"$f":"IF(Statistics!$S3=\"Yes\",COUNTIF(N7:N68,\"NON COMPLIANT\") & \" Level A Non-compliance\" & IF(COUNTIF(N7:N68,\"NON COMPLIANT\")=1,\"\",\"s\"),\"\") & IF(Statistics!$S4=\"Yes\",\"\n\" & COUNTIF(N73:N114,\"NON COMPLIANT\") & \" Level AA Non-compliance\" & IF(COUNTIF(N73:N114,\"NON COMPLIANT\")=1,\"\",\"s\"),\"\") & IF(Statistics!$S5=\"Yes\",\"\n\" & COUNTIF(N119:N173,\"NON COMPLIANT\") & \" Level AAA Non-compliance\" & IF(COUNTIF(N119:N173,\"NON COMPLIANT\")=1,\"\",\"s\"),\"\")","v":"3 Level A Non-compliances\n0 Level AA Non-compliances"},{"$f":"IF(Statistics!$S3=\"Yes\",COUNTIF(O7:O68,\"NON COMPLIANT\") & \" Level A Non-compliance\" & IF(COUNTIF(O7:O68,\"NON COMPLIANT\")=1,\"\",\"s\"),\"\") & IF(Statistics!$S4=\"Yes\",\"\n\" & COUNTIF(O73:O114,\"NON COMPLIANT\") & \" Level AA Non-compliance\" & IF(COUNTIF(O73:O114,\"NON COMPLIANT\")=1,\"\",\"s\"),\"\") & IF(Statistics!$S5=\"Yes\",\"\n\" & COUNTIF(O119:O173,\"NON COMPLIANT\") & \" Level AAA Non-compliance\" & IF(COUNTIF(O119:O173,\"NON COMPLIANT\")=1,\"\",\"s\"),\"\")","v":"0 Level A Non-compliances\n0 Level AA Non-compliances"},{"$f":"IF(Statistics!$S3=\"Yes\",COUNTIF(P7:P68,\"NON COMPLIANT\") & \" Level A Non-compliance\" & IF(COUNTIF(P7:P68,\"NON COMPLIANT\")=1,\"\",\"s\"),\"\") & IF(Statistics!$S4=\"Yes\",\"\n\" & COUNTIF(P73:P114,\"NON COMPLIANT\") & \" Level AA Non-compliance\" & IF(COUNTIF(P73:P114,\"NON COMPLIANT\")=1,\"\",\"s\"),\"\") & IF(Statistics!$S5=\"Yes\",\"\n\" & COUNTIF(P119:P173,\"NON COMPLIANT\") & \" Level AAA Non-compliance\" & IF(COUNTIF(P119:P173,\"NON COMPLIANT\")=1,\"\",\"s\"),\"\")","v":"0 Level A Non-compliances\n0 Level AA Non-compliances"},{"$f":"IF(Statistics!$S3=\"Yes\",COUNTIF(Q7:Q68,\"NON COMPLIANT\") & \" Level A Non-compliance\" & IF(COUNTIF(Q7:Q68,\"NON COMPLIANT\")=1,\"\",\"s\"),\"\") & IF(Statistics!$S4=\"Yes\",\"\n\" & COUNTIF(Q73:Q114,\"NON COMPLIANT\") & \" Level AA Non-compliance\" & IF(COUNTIF(Q73:Q114,\"NON COMPLIANT\")=1,\"\",\"s\"),\"\") & IF(Statistics!$S5=\"Yes\",\"\n\" & COUNTIF(Q119:Q173,\"NON COMPLIANT\") & \" Level AAA Non-compliance\" & IF(COUNTIF(Q119:Q173,\"NON COMPLIANT\")=1,\"\",\"s\"),\"\")","v":"1 Level A Non-compliance\n1 Level AA Non-compliance"},{"$f":"IF(Statistics!$S3=\"Yes\",COUNTIF(R7:R68,\"NON COMPLIANT\") & \" Level A Non-compliance\" & IF(COUNTIF(R7:R68,\"NON COMPLIANT\")=1,\"\",\"s\"),\"\") & IF(Statistics!$S4=\"Yes\",\"\n\" & COUNTIF(R73:R114,\"NON COMPLIANT\") & \" Level AA Non-compliance\" & IF(COUNTIF(R73:R114,\"NON COMPLIANT\")=1,\"\",\"s\"),\"\") & IF(Statistics!$S5=\"Yes\",\"\n\" & COUNTIF(R119:R173,\"NON COMPLIANT\") & \" Level AAA Non-compliance\" & IF(COUNTIF(R119:R173,\"NON COMPLIANT\")=1,\"\",\"s\"),\"\")","v":"3 Level A Non-compliances\n0 Level AA Non-compliances"},{"$f":"IF(Statistics!$S3=\"Yes\",COUNTIF(S7:S68,\"NON COMPLIANT\") & \" Level A Non-compliance\" & IF(COUNTIF(S7:S68,\"NON COMPLIANT\")=1,\"\",\"s\"),\"\") & IF(Statistics!$S4=\"Yes\",\"\n\" & COUNTIF(S73:S114,\"NON COMPLIANT\") & \" Level AA Non-compliance\" & IF(COUNTIF(S73:S114,\"NON COMPLIANT\")=1,\"\",\"s\"),\"\") & IF(Statistics!$S5=\"Yes\",\"\n\" & COUNTIF(S119:S173,\"NON COMPLIANT\") & \" Level AAA Non-compliance\" & IF(COUNTIF(S119:S173,\"NON COMPLIANT\")=1,\"\",\"s\"),\"\")","v":"5 Level A Non-compliances\n2 Level AA Non-compliances"},{"$f":"IF(Statistics!$S3=\"Yes\",COUNTIF(T7:T68,\"NON COMPLIANT\") & \" Level A Non-compliance\" & IF(COUNTIF(T7:T68,\"NON COMPLIANT\")=1,\"\",\"s\"),\"\") & IF(Statistics!$S4=\"Yes\",\"\n\" & COUNTIF(T73:T114,\"NON COMPLIANT\") & \" Level AA Non-compliance\" & IF(COUNTIF(T73:T114,\"NON COMPLIANT\")=1,\"\",\"s\"),\"\") & IF(Statistics!$S5=\"Yes\",\"\n\" & COUNTIF(T119:T173,\"NON COMPLIANT\") & \" Level AAA Non-compliance\" & IF(COUNTIF(T119:T173,\"NON COMPLIANT\")=1,\"\",\"s\"),\"\")","v":"0 Level A Non-compliances\n0 Level AA Non-compliances"},{"$f":"IF(Statistics!$S3=\"Yes\",COUNTIF(U7:U68,\"NON COMPLIANT\") & \" Level A Non-compliance\" & IF(COUNTIF(U7:U68,\"NON COMPLIANT\")=1,\"\",\"s\"),\"\") & IF(Statistics!$S4=\"Yes\",\"\n\" & COUNTIF(U73:U114,\"NON COMPLIANT\") & \" Level AA Non-compliance\" & IF(COUNTIF(U73:U114,\"NON COMPLIANT\")=1,\"\",\"s\"),\"\") & IF(Statistics!$S5=\"Yes\",\"\n\" & COUNTIF(U119:U173,\"NON COMPLIANT\") & \" Level AAA Non-compliance\" & IF(COUNTIF(U119:U173,\"NON COMPLIANT\")=1,\"\",\"s\"),\"\")","v":"0 Level A Non-compliances\n0 Level AA Non-compliances"},{"$f":"IF(Statistics!$S3=\"Yes\",COUNTIF(V7:V68,\"NON COMPLIANT\") & \" Level A Non-compliance\" & IF(COUNTIF(V7:V68,\"NON COMPLIANT\")=1,\"\",\"s\"),\"\") & IF(Statistics!$S4=\"Yes\",\"\n\" & COUNTIF(V73:V114,\"NON COMPLIANT\") & \" Level AA Non-compliance\" & IF(COUNTIF(V73:V114,\"NON COMPLIANT\")=1,\"\",\"s\"),\"\") & IF(Statistics!$S5=\"Yes\",\"\n\" & COUNTIF(V119:V173,\"NON COMPLIANT\") & \" Level AAA Non-compliance\" & IF(COUNTIF(V119:V173,\"NON COMPLIANT\")=1,\"\",\"s\"),\"\")","v":"0 Level A Non-compliances\n0 Level AA Non-compliances"},{"$f":"IF(Statistics!$S3=\"Yes\",COUNTIF(W7:W68,\"NON COMPLIANT\") & \" Level A Non-compliance\" & IF(COUNTIF(W7:W68,\"NON COMPLIANT\")=1,\"\",\"s\"),\"\") & IF(Statistics!$S4=\"Yes\",\"\n\" & COUNTIF(W73:W114,\"NON COMPLIANT\") & \" Level AA Non-compliance\" & IF(COUNTIF(W73:W114,\"NON COMPLIANT\")=1,\"\",\"s\"),\"\") & IF(Statistics!$S5=\"Yes\",\"\n\" & COUNTIF(W119:W173,\"NON COMPLIANT\") & \" Level AAA Non-compliance\" & IF(COUNTIF(W119:W173,\"NON COMPLIANT\")=1,\"\",\"s\"),\"\")","v":"0 Level A Non-compliances\n0 Level AA Non-compliances"},{"$f":"IF(Statistics!$S3=\"Yes\",COUNTIF(X7:X68,\"NON COMPLIANT\") & \" Level A Non-compliance\" & IF(COUNTIF(X7:X68,\"NON COMPLIANT\")=1,\"\",\"s\"),\"\") & IF(Statistics!$S4=\"Yes\",\"\n\" & COUNTIF(X73:X114,\"NON COMPLIANT\") & \" Level AA Non-compliance\" & IF(COUNTIF(X73:X114,\"NON COMPLIANT\")=1,\"\",\"s\"),\"\") & IF(Statistics!$S5=\"Yes\",\"\n\" & COUNTIF(X119:X173,\"NON COMPLIANT\") & \" Level AAA Non-compliance\" & IF(COUNTIF(X119:X173,\"NON COMPLIANT\")=1,\"\",\"s\"),\"\")","v":"0 Level A Non-compliances\n0 Level AA Non-compliances"},{"$f":"IF(Statistics!$S3=\"Yes\",COUNTIF(Y7:Y68,\"NON COMPLIANT\") & \" Level A Non-compliance\" & IF(COUNTIF(Y7:Y68,\"NON COMPLIANT\")=1,\"\",\"s\"),\"\") & IF(Statistics!$S4=\"Yes\",\"\n\" & COUNTIF(Y73:Y114,\"NON COMPLIANT\") & \" Level AA Non-compliance\" & IF(COUNTIF(Y73:Y114,\"NON COMPLIANT\")=1,\"\",\"s\"),\"\") & IF(Statistics!$S5=\"Yes\",\"\n\" & COUNTIF(Y119:Y173,\"NON COMPLIANT\") & \" Level AAA Non-compliance\" & IF(COUNTIF(Y119:Y173,\"NON COMPLIANT\")=1,\"\",\"s\"),\"\")","v":"0 Level A Non-compliances\n0 Level AA Non-compliances"},{"$f":"IF(Statistics!$S3=\"Yes\",COUNTIF(Z7:Z68,\"NON COMPLIANT\") & \" Level A Non-compliance\" & IF(COUNTIF(Z7:Z68,\"NON COMPLIANT\")=1,\"\",\"s\"),\"\") & IF(Statistics!$S4=\"Yes\",\"\n\" & COUNTIF(Z73:Z114,\"NON COMPLIANT\") & \" Level AA Non-compliance\" & IF(COUNTIF(Z73:Z114,\"NON COMPLIANT\")=1,\"\",\"s\"),\"\") & IF(Statistics!$S5=\"Yes\",\"\n\" & COUNTIF(Z119:Z173,\"NON COMPLIANT\") & \" Level AAA Non-compliance\" & IF(COUNTIF(Z119:Z173,\"NON COMPLIANT\")=1,\"\",\"s\"),\"\")","v":"0 Level A Non-compliances\n0 Level AA Non-compliances"},{"$f":"IF(Statistics!$S3=\"Yes\",COUNTIF(AA7:AA68,\"NON COMPLIANT\") & \" Level A Non-compliance\" & IF(COUNTIF(AA7:AA68,\"NON COMPLIANT\")=1,\"\",\"s\"),\"\") & IF(Statistics!$S4=\"Yes\",\"\n\" & COUNTIF(AA73:AA114,\"NON COMPLIANT\") & \" Level AA Non-compliance\" & IF(COUNTIF(AA73:AA114,\"NON COMPLIANT\")=1,\"\",\"s\"),\"\") & IF(Statistics!$S5=\"Yes\",\"\n\" & COUNTIF(AA119:AA173,\"NON COMPLIANT\") & \" Level AAA Non-compliance\" & IF(COUNTIF(AA119:AA173,\"NON COMPLIANT\")=1,\"\",\"s\"),\"\")","v":"0 Level A Non-compliances\n0 Level AA Non-compliances"},{"$f":"IF(Statistics!$S3=\"Yes\",COUNTIF(AB7:AB68,\"NON COMPLIANT\") & \" Level A Non-compliance\" & IF(COUNTIF(AB7:AB68,\"NON COMPLIANT\")=1,\"\",\"s\"),\"\") & IF(Statistics!$S4=\"Yes\",\"\n\" & COUNTIF(AB73:AB114,\"NON COMPLIANT\") & \" Level AA Non-compliance\" & IF(COUNTIF(AB73:AB114,\"NON COMPLIANT\")=1,\"\",\"s\"),\"\") & IF(Statistics!$S5=\"Yes\",\"\n\" & COUNTIF(AB119:AB173,\"NON COMPLIANT\") & \" Level AAA Non-compliance\" & IF(COUNTIF(AB119:AB173,\"NON COMPLIANT\")=1,\"\",\"s\"),\"\")","v":"0 Level A Non-compliances\n0 Level AA Non-compliances"},{"$f":"IF(Statistics!$S3=\"Yes\",COUNTIF(AC7:AC68,\"NON COMPLIANT\") & \" Level A Non-compliance\" & IF(COUNTIF(AC7:AC68,\"NON COMPLIANT\")=1,\"\",\"s\"),\"\") & IF(Statistics!$S4=\"Yes\",\"\n\" & COUNTIF(AC73:AC114,\"NON COMPLIANT\") & \" Level AA Non-compliance\" & IF(COUNTIF(AC73:AC114,\"NON COMPLIANT\")=1,\"\",\"s\"),\"\") & IF(Statistics!$S5=\"Yes\",\"\n\" & COUNTIF(AC119:AC173,\"NON COMPLIANT\") & \" Level AAA Non-compliance\" & IF(COUNTIF(AC119:AC173,\"NON COMPLIANT\")=1,\"\",\"s\"),\"\")","v":"0 Level A Non-compliances\n0 Level AA Non-compliances"},{"$f":"IF(Statistics!$S3=\"Yes\",COUNTIF(AD7:AD68,\"NON COMPLIANT\") & \" Level A Non-compliance\" & IF(COUNTIF(AD7:AD68,\"NON COMPLIANT\")=1,\"\",\"s\"),\"\") & IF(Statistics!$S4=\"Yes\",\"\n\" & COUNTIF(AD73:AD114,\"NON COMPLIANT\") & \" Level AA Non-compliance\" & IF(COUNTIF(AD73:AD114,\"NON COMPLIANT\")=1,\"\",\"s\"),\"\") & IF(Statistics!$S5=\"Yes\",\"\n\" & COUNTIF(AD119:AD173,\"NON COMPLIANT\") & \" Level AAA Non-compliance\" & IF(COUNTIF(AD119:AD173,\"NON COMPLIANT\")=1,\"\",\"s\"),\"\")","v":"0 Level A Non-compliances\n0 Level AA Non-compliances"},{"$f":"IF(Statistics!$S3=\"Yes\",COUNTIF(AE7:AE68,\"NON COMPLIANT\") & \" Level A Non-compliance\" & IF(COUNTIF(AE7:AE68,\"NON COMPLIANT\")=1,\"\",\"s\"),\"\") & IF(Statistics!$S4=\"Yes\",\"\n\" & COUNTIF(AE73:AE114,\"NON COMPLIANT\") & \" Level AA Non-compliance\" & IF(COUNTIF(AE73:AE114,\"NON COMPLIANT\")=1,\"\",\"s\"),\"\") & IF(Statistics!$S5=\"Yes\",\"\n\" & COUNTIF(AE119:AE173,\"NON COMPLIANT\") & \" Level AAA Non-compliance\" & IF(COUNTIF(AE119:AE173,\"NON COMPLIANT\")=1,\"\",\"s\"),\"\")","v":"0 Level A Non-compliances\n0 Level AA Non-compliances"},{"$f":"IF(Statistics!$S3=\"Yes\",COUNTIF(AF7:AF68,\"NON COMPLIANT\") & \" Level A Non-compliance\" & IF(COUNTIF(AF7:AF68,\"NON COMPLIANT\")=1,\"\",\"s\"),\"\") & IF(Statistics!$S4=\"Yes\",\"\n\" & COUNTIF(AF73:AF114,\"NON COMPLIANT\") & \" Level AA Non-compliance\" & IF(COUNTIF(AF73:AF114,\"NON COMPLIANT\")=1,\"\",\"s\"),\"\") & IF(Statistics!$S5=\"Yes\",\"\n\" & COUNTIF(AF119:AF173,\"NON COMPLIANT\") & \" Level AAA Non-compliance\" & IF(COUNTIF(AF119:AF173,\"NON COMPLIANT\")=1,\"\",\"s\"),\"\")","v":"0 Level A Non-compliances\n0 Level AA Non-compliances"},{"$f":"IF(Statistics!$S3=\"Yes\",COUNTIF(AG7:AG68,\"NON COMPLIANT\") & \" Level A Non-compliance\" & IF(COUNTIF(AG7:AG68,\"NON COMPLIANT\")=1,\"\",\"s\"),\"\") & IF(Statistics!$S4=\"Yes\",\"\n\" & COUNTIF(AG73:AG114,\"NON COMPLIANT\") & \" Level AA Non-compliance\" & IF(COUNTIF(AG73:AG114,\"NON COMPLIANT\")=1,\"\",\"s\"),\"\") & IF(Statistics!$S5=\"Yes\",\"\n\" & COUNTIF(AG119:AG173,\"NON COMPLIANT\") & \" Level AAA Non-compliance\" & IF(COUNTIF(AG119:AG173,\"NON COMPLIANT\")=1,\"\",\"s\"),\"\")","v":"0 Level A Non-compliances\n0 Level AA Non-compliances"},{"$f":"IF(Statistics!$S3=\"Yes\",COUNTIF(AH7:AH68,\"NON COMPLIANT\") & \" Level A Non-compliance\" & IF(COUNTIF(AH7:AH68,\"NON COMPLIANT\")=1,\"\",\"s\"),\"\") & IF(Statistics!$S4=\"Yes\",\"\n\" & COUNTIF(AH73:AH114,\"NON COMPLIANT\") & \" Level AA Non-compliance\" & IF(COUNTIF(AH73:AH114,\"NON COMPLIANT\")=1,\"\",\"s\"),\"\") & IF(Statistics!$S5=\"Yes\",\"\n\" & COUNTIF(AH119:AH173,\"NON COMPLIANT\") & \" Level AAA Non-compliance\" & IF(COUNTIF(AH119:AH173,\"NON COMPLIANT\")=1,\"\",\"s\"),\"\")","v":"0 Level A Non-compliances\n0 Level AA Non-compliances"},{"$f":"IF(Statistics!$S3=\"Yes\",COUNTIF(AI7:AI68,\"NON COMPLIANT\") & \" Level A Non-compliance\" & IF(COUNTIF(AI7:AI68,\"NON COMPLIANT\")=1,\"\",\"s\"),\"\") & IF(Statistics!$S4=\"Yes\",\"\n\" & COUNTIF(AI73:AI114,\"NON COMPLIANT\") & \" Level AA Non-compliance\" & IF(COUNTIF(AI73:AI114,\"NON COMPLIANT\")=1,\"\",\"s\"),\"\") & IF(Statistics!$S5=\"Yes\",\"\n\" & COUNTIF(AI119:AI173,\"NON COMPLIANT\") & \" Level AAA Non-compliance\" & IF(COUNTIF(AI119:AI173,\"NON COMPLIANT\")=1,\"\",\"s\"),\"\")","v":"0 Level A Non-compliances\n0 Level AA Non-compliances"},{"$f":"IF(Statistics!$S3=\"Yes\",COUNTIF(AJ7:AJ68,\"NON COMPLIANT\") & \" Level A Non-compliance\" & IF(COUNTIF(AJ7:AJ68,\"NON COMPLIANT\")=1,\"\",\"s\"),\"\") & IF(Statistics!$S4=\"Yes\",\"\n\" & COUNTIF(AJ73:AJ114,\"NON COMPLIANT\") & \" Level AA Non-compliance\" & IF(COUNTIF(AJ73:AJ114,\"NON COMPLIANT\")=1,\"\",\"s\"),\"\") & IF(Statistics!$S5=\"Yes\",\"\n\" & COUNTIF(AJ119:AJ173,\"NON COMPLIANT\") & \" Level AAA Non-compliance\" & IF(COUNTIF(AJ119:AJ173,\"NON COMPLIANT\")=1,\"\",\"s\"),\"\")","v":"0 Level A Non-compliances\n0 Level AA Non-compliances"},{"$f":"IF(Statistics!$S3=\"Yes\",COUNTIF(AK7:AK68,\"NON COMPLIANT\") & \" Level A Non-compliance\" & IF(COUNTIF(AK7:AK68,\"NON COMPLIANT\")=1,\"\",\"s\"),\"\") & IF(Statistics!$S4=\"Yes\",\"\n\" & COUNTIF(AK73:AK114,\"NON COMPLIANT\") & \" Level AA Non-compliance\" & IF(COUNTIF(AK73:AK114,\"NON COMPLIANT\")=1,\"\",\"s\"),\"\") & IF(Statistics!$S5=\"Yes\",\"\n\" & COUNTIF(AK119:AK173,\"NON COMPLIANT\") & \" Level AAA Non-compliance\" & IF(COUNTIF(AK119:AK173,\"NON COMPLIANT\")=1,\"\",\"s\"),\"\")","v":"0 Level A Non-compliances\n0 Level AA Non-compliances"},{"$f":"IF(Statistics!$S3=\"Yes\",COUNTIF(AL7:AL68,\"NON COMPLIANT\") & \" Level A Non-compliance\" & IF(COUNTIF(AL7:AL68,\"NON COMPLIANT\")=1,\"\",\"s\"),\"\") & IF(Statistics!$S4=\"Yes\",\"\n\" & COUNTIF(AL73:AL114,\"NON COMPLIANT\") & \" Level AA Non-compliance\" & IF(COUNTIF(AL73:AL114,\"NON COMPLIANT\")=1,\"\",\"s\"),\"\") & IF(Statistics!$S5=\"Yes\",\"\n\" & COUNTIF(AL119:AL173,\"NON COMPLIANT\") & \" Level AAA Non-compliance\" & IF(COUNTIF(AL119:AL173,\"NON COMPLIANT\")=1,\"\",\"s\"),\"\")","v":"0 Level A Non-compliances\n0 Level AA Non-compliances"},{"$f":"IF(Statistics!$S3=\"Yes\",COUNTIF(AM7:AM68,\"NON COMPLIANT\") & \" Level A Non-compliance\" & IF(COUNTIF(AM7:AM68,\"NON COMPLIANT\")=1,\"\",\"s\"),\"\") & IF(Statistics!$S4=\"Yes\",\"\n\" & COUNTIF(AM73:AM114,\"NON COMPLIANT\") & \" Level AA Non-compliance\" & IF(COUNTIF(AM73:AM114,\"NON COMPLIANT\")=1,\"\",\"s\"),\"\") & IF(Statistics!$S5=\"Yes\",\"\n\" & COUNTIF(AM119:AM173,\"NON COMPLIANT\") & \" Level AAA Non-compliance\" & IF(COUNTIF(AM119:AM173,\"NON COMPLIANT\")=1,\"\",\"s\"),\"\")","v":"0 Level A Non-compliances\n0 Level AA Non-compliances"},{"$f":"IF(Statistics!$S3=\"Yes\",COUNTIF(AN7:AN68,\"NON COMPLIANT\") & \" Level A Non-compliance\" & IF(COUNTIF(AN7:AN68,\"NON COMPLIANT\")=1,\"\",\"s\"),\"\") & IF(Statistics!$S4=\"Yes\",\"\n\" & COUNTIF(AN73:AN114,\"NON COMPLIANT\") & \" Level AA Non-compliance\" & IF(COUNTIF(AN73:AN114,\"NON COMPLIANT\")=1,\"\",\"s\"),\"\") & IF(Statistics!$S5=\"Yes\",\"\n\" & COUNTIF(AN119:AN173,\"NON COMPLIANT\") & \" Level AAA Non-compliance\" & IF(COUNTIF(AN119:AN173,\"NON COMPLIANT\")=1,\"\",\"s\"),\"\")","v":"2 Level A Non-compliances\n0 Level AA Non-compliances"},{"$f":"IF(Statistics!$S3=\"Yes\",COUNTIF(AO7:AO68,\"NON COMPLIANT\") & \" Level A Non-compliance\" & IF(COUNTIF(AO7:AO68,\"NON COMPLIANT\")=1,\"\",\"s\"),\"\") & IF(Statistics!$S4=\"Yes\",\"\n\" & COUNTIF(AO73:AO114,\"NON COMPLIANT\") & \" Level AA Non-compliance\" & IF(COUNTIF(AO73:AO114,\"NON COMPLIANT\")=1,\"\",\"s\"),\"\") & IF(Statistics!$S5=\"Yes\",\"\n\" & COUNTIF(AO119:AO173,\"NON COMPLIANT\") & \" Level AAA Non-compliance\" & IF(COUNTIF(AO119:AO173,\"NON COMPLIANT\")=1,\"\",\"s\"),\"\")","v":"2 Level A Non-compliances\n0 Level AA Non-compliances"},{"$f":"IF(Statistics!$S3=\"Yes\",COUNTIF(AP7:AP68,\"NON COMPLIANT\") & \" Level A Non-compliance\" & IF(COUNTIF(AP7:AP68,\"NON COMPLIANT\")=1,\"\",\"s\"),\"\") & IF(Statistics!$S4=\"Yes\",\"\n\" & COUNTIF(AP73:AP114,\"NON COMPLIANT\") & \" Level AA Non-compliance\" & IF(COUNTIF(AP73:AP114,\"NON COMPLIANT\")=1,\"\",\"s\"),\"\") & IF(Statistics!$S5=\"Yes\",\"\n\" & COUNTIF(AP119:AP173,\"NON COMPLIANT\") & \" Level AAA Non-compliance\" & IF(COUNTIF(AP119:AP173,\"NON COMPLIANT\")=1,\"\",\"s\"),\"\")","v":"0 Level A Non-compliances\n0 Level AA Non-compliances"},{"$f":"IF(Statistics!$S3=\"Yes\",COUNTIF(AQ7:AQ68,\"NON COMPLIANT\") & \" Level A Non-compliance\" & IF(COUNTIF(AQ7:AQ68,\"NON COMPLIANT\")=1,\"\",\"s\"),\"\") & IF(Statistics!$S4=\"Yes\",\"\n\" & COUNTIF(AQ73:AQ114,\"NON COMPLIANT\") & \" Level AA Non-compliance\" & IF(COUNTIF(AQ73:AQ114,\"NON COMPLIANT\")=1,\"\",\"s\"),\"\") & IF(Statistics!$S5=\"Yes\",\"\n\" & COUNTIF(AQ119:AQ173,\"NON COMPLIANT\") & \" Level AAA Non-compliance\" & IF(COUNTIF(AQ119:AQ173,\"NON COMPLIANT\")=1,\"\",\"s\"),\"\")","v":"0 Level A Non-compliances\n0 Level AA Non-compliances"},{"$f":"IF(Statistics!$S3=\"Yes\",COUNTIF(AR7:AR68,\"NON COMPLIANT\") & \" Level A Non-compliance\" & IF(COUNTIF(AR7:AR68,\"NON COMPLIANT\")=1,\"\",\"s\"),\"\") & IF(Statistics!$S4=\"Yes\",\"\n\" & COUNTIF(AR73:AR114,\"NON COMPLIANT\") & \" Level AA Non-compliance\" & IF(COUNTIF(AR73:AR114,\"NON COMPLIANT\")=1,\"\",\"s\"),\"\") & IF(Statistics!$S5=\"Yes\",\"\n\" & COUNTIF(AR119:AR173,\"NON COMPLIANT\") & \" Level AAA Non-compliance\" & IF(COUNTIF(AR119:AR173,\"NON COMPLIANT\")=1,\"\",\"s\"),\"\")","v":"0 Level A Non-compliances\n0 Level AA Non-compliances"},{"$f":"IF(Statistics!$S3=\"Yes\",COUNTIF(AS7:AS68,\"NON COMPLIANT\") & \" Level A Non-compliance\" & IF(COUNTIF(AS7:AS68,\"NON COMPLIANT\")=1,\"\",\"s\"),\"\") & IF(Statistics!$S4=\"Yes\",\"\n\" & COUNTIF(AS73:AS114,\"NON COMPLIANT\") & \" Level AA Non-compliance\" & IF(COUNTIF(AS73:AS114,\"NON COMPLIANT\")=1,\"\",\"s\"),\"\") & IF(Statistics!$S5=\"Yes\",\"\n\" & COUNTIF(AS119:AS173,\"NON COMPLIANT\") & \" Level AAA Non-compliance\" & IF(COUNTIF(AS119:AS173,\"NON COMPLIANT\")=1,\"\",\"s\"),\"\")","v":"0 Level A Non-compliances\n0 Level AA Non-compliances"},{"$f":"IF(Statistics!$S3=\"Yes\",COUNTIF(AT7:AT68,\"NON COMPLIANT\") & \" Level A Non-compliance\" & IF(COUNTIF(AT7:AT68,\"NON COMPLIANT\")=1,\"\",\"s\"),\"\") & IF(Statistics!$S4=\"Yes\",\"\n\" & COUNTIF(AT73:AT114,\"NON COMPLIANT\") & \" Level AA Non-compliance\" & IF(COUNTIF(AT73:AT114,\"NON COMPLIANT\")=1,\"\",\"s\"),\"\") & IF(Statistics!$S5=\"Yes\",\"\n\" & COUNTIF(AT119:AT173,\"NON COMPLIANT\") & \" Level AAA Non-compliance\" & IF(COUNTIF(AT119:AT173,\"NON COMPLIANT\")=1,\"\",\"s\"),\"\")","v":"0 Level A Non-compliances\n0 Level AA Non-compliances"},{"$f":"IF(Statistics!$S3=\"Yes\",COUNTIF(AU7:AU68,\"NON COMPLIANT\") & \" Level A Non-compliance\" & IF(COUNTIF(AU7:AU68,\"NON COMPLIANT\")=1,\"\",\"s\"),\"\") & IF(Statistics!$S4=\"Yes\",\"\n\" & COUNTIF(AU73:AU114,\"NON COMPLIANT\") & \" Level AA Non-compliance\" & IF(COUNTIF(AU73:AU114,\"NON COMPLIANT\")=1,\"\",\"s\"),\"\") & IF(Statistics!$S5=\"Yes\",\"\n\" & COUNTIF(AU119:AU173,\"NON COMPLIANT\") & \" Level AAA Non-compliance\" & IF(COUNTIF(AU119:AU173,\"NON COMPLIANT\")=1,\"\",\"s\"),\"\")","v":"0 Level A Non-compliances\n0 Level AA Non-compliances"},{"$f":"IF(Statistics!$S3=\"Yes\",COUNTIF(AV7:AV68,\"NON COMPLIANT\") & \" Level A Non-compliance\" & IF(COUNTIF(AV7:AV68,\"NON COMPLIANT\")=1,\"\",\"s\"),\"\") & IF(Statistics!$S4=\"Yes\",\"\n\" & COUNTIF(AV73:AV114,\"NON COMPLIANT\") & \" Level AA Non-compliance\" & IF(COUNTIF(AV73:AV114,\"NON COMPLIANT\")=1,\"\",\"s\"),\"\") & IF(Statistics!$S5=\"Yes\",\"\n\" & COUNTIF(AV119:AV173,\"NON COMPLIANT\") & \" Level AAA Non-compliance\" & IF(COUNTIF(AV119:AV173,\"NON COMPLIANT\")=1,\"\",\"s\"),\"\")","v":"0 Level A Non-compliances\n0 Level AA Non-compliances"},{"$f":"IF(Statistics!$S3=\"Yes\",COUNTIF(AW7:AW68,\"NON COMPLIANT\") & \" Level A Non-compliance\" & IF(COUNTIF(AW7:AW68,\"NON COMPLIANT\")=1,\"\",\"s\"),\"\") & IF(Statistics!$S4=\"Yes\",\"\n\" & COUNTIF(AW73:AW114,\"NON COMPLIANT\") & \" Level AA Non-compliance\" & IF(COUNTIF(AW73:AW114,\"NON COMPLIANT\")=1,\"\",\"s\"),\"\") & IF(Statistics!$S5=\"Yes\",\"\n\" & COUNTIF(AW119:AW173,\"NON COMPLIANT\") & \" Level AAA Non-compliance\" & IF(COUNTIF(AW119:AW173,\"NON COMPLIANT\")=1,\"\",\"s\"),\"\")","v":"0 Level A Non-compliances\n0 Level AA Non-compliances"},{"$f":"IF(Statistics!$S3=\"Yes\",COUNTIF(AX7:AX68,\"NON COMPLIANT\") & \" Level A Non-compliance\" & IF(COUNTIF(AX7:AX68,\"NON COMPLIANT\")=1,\"\",\"s\"),\"\") & IF(Statistics!$S4=\"Yes\",\"\n\" & COUNTIF(AX73:AX114,\"NON COMPLIANT\") & \" Level AA Non-compliance\" & IF(COUNTIF(AX73:AX114,\"NON COMPLIANT\")=1,\"\",\"s\"),\"\") & IF(Statistics!$S5=\"Yes\",\"\n\" & COUNTIF(AX119:AX173,\"NON COMPLIANT\") & \" Level AAA Non-compliance\" & IF(COUNTIF(AX119:AX173,\"NON COMPLIANT\")=1,\"\",\"s\"),\"\")","v":"0 Level A Non-compliances\n0 Level AA Non-compliances"},{"$f":"IF(Statistics!$S3=\"Yes\",COUNTIF(AY7:AY68,\"NON COMPLIANT\") & \" Level A Non-compliance\" & IF(COUNTIF(AY7:AY68,\"NON COMPLIANT\")=1,\"\",\"s\"),\"\") & IF(Statistics!$S4=\"Yes\",\"\n\" & COUNTIF(AY73:AY114,\"NON COMPLIANT\") & \" Level AA Non-compliance\" & IF(COUNTIF(AY73:AY114,\"NON COMPLIANT\")=1,\"\",\"s\"),\"\") & IF(Statistics!$S5=\"Yes\",\"\n\" & COUNTIF(AY119:AY173,\"NON COMPLIANT\") & \" Level AAA Non-compliance\" & IF(COUNTIF(AY119:AY173,\"NON COMPLIANT\")=1,\"\",\"s\"),\"\")","v":"0 Level A Non-compliances\n0 Level AA Non-compliances"},{"$f":"IF(Statistics!$S3=\"Yes\",COUNTIF(AZ7:AZ68,\"NON COMPLIANT\") & \" Level A Non-compliance\" & IF(COUNTIF(AZ7:AZ68,\"NON COMPLIANT\")=1,\"\",\"s\"),\"\") & IF(Statistics!$S4=\"Yes\",\"\n\" & COUNTIF(AZ73:AZ114,\"NON COMPLIANT\") & \" Level AA Non-compliance\" & IF(COUNTIF(AZ73:AZ114,\"NON COMPLIANT\")=1,\"\",\"s\"),\"\") & IF(Statistics!$S5=\"Yes\",\"\n\" & COUNTIF(AZ119:AZ173,\"NON COMPLIANT\") & \" Level AAA Non-compliance\" & IF(COUNTIF(AZ119:AZ173,\"NON COMPLIANT\")=1,\"\",\"s\"),\"\")","v":"0 Level A Non-compliances\n0 Level AA Non-compliances"},{"$f":"IF(Statistics!$S3=\"Yes\",COUNTIF(BA7:BA68,\"NON COMPLIANT\") & \" Level A Non-compliance\" & IF(COUNTIF(BA7:BA68,\"NON COMPLIANT\")=1,\"\",\"s\"),\"\") & IF(Statistics!$S4=\"Yes\",\"\n\" & COUNTIF(BA73:BA114,\"NON COMPLIANT\") & \" Level AA Non-compliance\" & IF(COUNTIF(BA73:BA114,\"NON COMPLIANT\")=1,\"\",\"s\"),\"\") & IF(Statistics!$S5=\"Yes\",\"\n\" & COUNTIF(BA119:BA173,\"NON COMPLIANT\") & \" Level AAA Non-compliance\" & IF(COUNTIF(BA119:BA173,\"NON COMPLIANT\")=1,\"\",\"s\"),\"\")","v":"0 Level A Non-compliances\n0 Level AA Non-compliances"},{"$f":"IF(Statistics!$S3=\"Yes\",COUNTIF(BB7:BB68,\"NON COMPLIANT\") & \" Level A Non-compliance\" & IF(COUNTIF(BB7:BB68,\"NON COMPLIANT\")=1,\"\",\"s\"),\"\") & IF(Statistics!$S4=\"Yes\",\"\n\" & COUNTIF(BB73:BB114,\"NON COMPLIANT\") & \" Level AA Non-compliance\" & IF(COUNTIF(BB73:BB114,\"NON COMPLIANT\")=1,\"\",\"s\"),\"\") & IF(Statistics!$S5=\"Yes\",\"\n\" & COUNTIF(BB119:BB173,\"NON COMPLIANT\") & \" Level AAA Non-compliance\" & IF(COUNTIF(BB119:BB173,\"NON COMPLIANT\")=1,\"\",\"s\"),\"\")","v":"0 Level A Non-compliances\n0 Level AA Non-compliances"}]
["1.1.1","A","Non-text Content","All non-text content that is presented to the user has a text alternative that serves the equivalent purpose.","NON COMPLIANT","NON COMPLIANT","PASS","PASS",null,"NON COMPLIANT","NON COMPLIANT",null,null,"NON COMPLIANT",null,null,"NON COMPLIANT","NON COMPLIANT","NON COMPLIANT",null,null,null,null,null,null,null,null,null,null,null,null,null,null,null,null,null,null,null,null,"PASS","NON COMPLIANT"]
[null,null,null,null,"The logo is a link to the Talk London Home page, so the visually hidden text should say that. Amend it to \"Home page | Talk London\". ","The logo is a link to the Talk London Home page, so the visually hidden text should say that. Amend it to \"Home page | Talk London\".",null,null,null,"The image currently has a placeholder alt attribute of \"alt text\". It needs a descriptive  alt text if the image is informative and relates to the subject matter beside it, or an empty alt attribute if just a decorative image. For instance this image would be relevant to a \"Test Survey\" on COVID, but decorative in other situations. ","The green arrow and heart SVG icons need labels to say what they and the following numbers mean. Give the SVG elements <title> elements of \"Upvotes\" and \"Likes\" or similar respectively.",null,null,"The first of the 3 images has a valid alt text. The second image is purely decorative (has no relation to the subject of the display box) so needs an empty alt attribute alt=\"\". The third image needs an alt text of \"A crowd of people of all races and ethnic backgrounds.\" or similar.",null,null,"The images in this component have placeholder alt texts. They will need correct alt texts in real use, either an empty alt text if decorative, or an alt text descriptive of the image if relevant to the subject.","a) The thumbnail image currently has a placeholder alt text. It needs an alt attribute holding the person's name to tell screen readers their photo (or avatar) is present.\n\nb) Pinned comments have a background image of a pin icon in the top right corner of the comment header. Make this an <img> element with an alt text \"Comment is pinned\", and a title attribute with the same words. We recommend the best position in the markup would be following the date in the comment header, and use CSS to display it in the required position.\n\nc) The X Close icon on the Report popup dialog needs a text label. Give it an aria-label=\"Close dialog\" attribute.","The tick and circle SVG icons of various colours have no text label to say what they mean. Give each one a <title> element stating the meaning in each case. E.g. \"Stage completed\".",null,null,null,null,null,null,null,null,null,null,null,null,null,null,null,null,null,null,null,null,null,"This display box is an intro about City Hall, but the image currently says only \"City Hall\" without any description. It needs a full description in the alt text to convey what is seen. We recommend an alt attribute something like: \n\"City Hall, a futuristically designed eleven storey building beside the promenade along the river Thames embankment, with Tower Bridge just metres away in the background. It is a glass walled building, round at the base, but each floor leans away from the floor below to create a round building that leans far away from the vertical. It is surrounded by green lawns and trees on one side, the river on the other side, with wide steps and a sloping pathway beside it.\" or similar."]
["1.2.1","A","Audio-only and Video-only (Pre-recorded)","For pre-recorded audio-only and pre-recorded video-only media, an alternative for time-based media or an audio track is provided that presents equivalent information. ","N/A","N/A","N/A","N/A",null,"N/A","N/A",null,null,"N/A",null,null,"N/A","N/A","N/A",null,null,null,null,null,null,null,null,null,null,null,null,null,null,null,null,null,null,null,null,"N/A","N/A",null,null,"N/A"]
[]
["1.2.2","A","Captions (Pre-recorded)","Captions are provided for all pre-recorded audio content in synchronized media, except when the media is a media alternative for text and is clearly labelled as such. ","N/A","N/A","N/A","N/A",null,"N/A","N/A",null,null,"N/A",null,null,"N/A","N/A","N/A",null,null,null,null,null,null,null,null,null,null,null,null,null,null,null,null,null,null,null,null,"N/A","N/A",null,null,"N/A"]
[]
["1.2.3","A","Audio Description or Media Alternative (Pre-recorded)","An alternative for time-based media or audio description of the pre-recorded video content is provided for synchronized media, except when the media is a media alternative for text and is clearly labelled as such.","N/A","N/A","N/A","N/A",null,"N/A","N/A",null,null,"N/A",null,null,"N/A","N/A","N/A",null,null,null,null,null,null,null,null,null,null,null,null,null,null,null,null,null,null,null,null,"N/A","N/A",null,null,"N/A"]
[]
["1.3.1","A","Info and Relationships","Information, structure, and relationships conveyed through presentation can be programmatically determined or are available in text.","NON COMPLIANT","NON COMPLIANT","PASS","PASS",null,"PASS","NON COMPLIANT",null,null,"NON COMPLIANT",null,null,"PASS","NON COMPLIANT","NON COMPLIANT",null,null,null,null,null,null,null,null,null,null,null,null,null,null,null,null,null,null,null,null,"NON COMPLIANT","PASS"]
[null,null,null,null,"a) The Talk London logo should not be a heading (since it does not describe any of the following content, and exists on all pages anyway). Convert the h2 element round the logo to a <p> element. The Mayor of London logo text should likewise not be a heading.\n\nb) The main menu would benefit from being contained in a <nav> element, with an aria-label attribute of \"Main menu\".","a) The Talk London logo should not be a heading (since it does not describe any of the following content, and exists on all pages anyway). Convert the h2 element round the logo to a <p> element. The Mayor of London logo text should likewise not be a heading.\n\nb) The main menu would benefit from being contained in a <nav> element, with an aria-label attribute of \"Main menu\".",null,null,null,null,"The Have Your Say heading is an h2 heading, so the subheadings under that should be one heading level down. Convert the h2 subheadings over each discussion record to <h3> elements.",null,null,"This set of 3 display boxes should be placed in a <ul> list for screen readers with CSS to remove the bullets.",null,null,null,"a) The \"Comments (10)\" main heading over the Comments section is currently an <h3> element. So first check this level is going to be correct for the pages this section will show on. From the current look of a Discussion page, it looks like this heading should be an <h2> element as there are no higher level headings on the page between these comments and the h1 main heading.\n\nb) Once the correct level for the \"Comments (10)\" heading is decided in (a) above, then any subheadings under this heading should be one level down from it. So if \"Comments (10)\" is an <h2> element, then the \"Want to add a comment?\" heading, and also the person's name and organisation over each comment, all need to be <h3> elements (one level down from the parent \"Comments (10)\" heading regardless of what font size is wanted visually.\n\nc) The list of comments would be best placed in an <ol> ordered  list element, one comment per <li> element.","The first date (10 Dec 2017) in the timeline on the Issue page has a datetime attribute in an incorrect format, which may confuse some assistive technology. Either use a correct format or remove the attribute.",null,null,null,null,null,null,null,null,null,null,null,null,null,null,null,null,null,null,null,null,"a) (Assumption: the Topics/Collections links are intended to be a main content section under the h1 page heading, not subsections under an h2 or lower level subheading. If this will not be the case then ignore this issue.)\nThe Topics and Collections headings are h3 headings, which skips a heading level. Convert them to <h2> elements.\n\nb) The links under the Topics heading are marked up as two separate lists for the two columns. In fact they are a single list, ordered alphabetically from A to Z. Merge them into one <ul> list element, and use CSS to achieve the visual display in two columns."]
["1.3.2","A","Meaningful Sequence","When the sequence in which content is presented affects its meaning, a correct reading sequence can be programmatically determined.","PASS","PASS","PASS","PASS",null,"PASS","PASS",null,null,"PASS",null,null,"PASS","PASS","PASS",null,null,null,null,null,null,null,null,null,null,null,null,null,null,null,null,null,null,null,null,"PASS","PASS",null,null,"PASS"]
[]
["1.3.3","A","Sensory Characteristics","Instructions provided for understanding and operating content do not rely solely on sensory characteristics of components such as shape, size, visual location, orientation, or sound. ","PASS","PASS","PASS","PASS",null,"PASS","PASS",null,null,"PASS",null,null,"PASS","PASS","PASS",null,null,null,null,null,null,null,null,null,null,null,null,null,null,null,null,null,null,null,null,"PASS","PASS",null,null,"PASS"]
[]
["1.4.1","A","Use of Colour","Colour is not used as the only visual means of conveying information, indicating an action, prompting a response, or distinguishing a visual element.","PASS","PASS","PASS","PASS",null,"PASS","PASS",null,null,"PASS",null,null,"PASS","PASS","NON COMPLIANT",null,null,null,null,null,null,null,null,null,null,null,null,null,null,null,null,null,null,null,null,"PASS","PASS",null,null,"PASS"]
[null,null,null,null,null,null,null,null,null,null,null,null,null,null,null,null,null,null,"The timeline uses ticks in 2 shades of blue. This may just be a design bug, but if they are intended to mean different things then a structural indicator is also needed in addition to this very faint difference in colour. "]
["1.4.2","A","Audio Control","If any audio on a Web page plays automatically for more than 3 seconds, either a mechanism is available to pause or stop the audio, or a mechanism is available to control audio volume independently from the overall system volume level. ","N/A","N/A","N/A","N/A",null,"N/A","N/A",null,null,"N/A",null,null,"N/A","N/A","N/A",null,null,null,null,null,null,null,null,null,null,null,null,null,null,null,null,null,null,null,null,"N/A","N/A",null,null,"N/A"]
[]
["W3C Ref.","Level.",null,"Principle 2: Operable - User interface components and navigation must be operable."]
["2.1.1","A","Keyboard Navigation","All functionality of the content is operable through a keyboard interface without requiring specific timings for individual keystrokes, except where the underlying function requires input that depends on the path of the user's movement and not just the endpoints.","PASS","PASS","PASS","PASS",null,"PASS","PASS",null,null,"PASS",null,null,"PASS","NON COMPLIANT","PASS",null,null,null,null,null,null,null,null,null,null,null,null,null,null,null,null,null,null,null,null,"PASS","PASS"]
[null,null,null,null,null,null,null,null,null,null,null,null,null,null,null,null,null,"The Report button in each comment box is not operable from the keyboard and not in the keyboard tabbing order, because it is marked up as a div. Replace the div with a <button> element and use CSS to remove the button styling.."]
["2.1.2","A","No Keyboard Trap","If keyboard focus can be moved to a component of the page using a keyboard interface, then focus can be moved away from that component using only a keyboard interface, and, if it requires more than unmodified arrow or tab keys or other standard exit methods, the user is advised of the method for moving focus away.","PASS","PASS","PASS","PASS",null,"PASS","PASS",null,null,"PASS",null,null,"PASS","PASS","PASS",null,null,null,null,null,null,null,null,null,null,null,null,null,null,null,null,null,null,null,null,"PASS","PASS",null,null,"PASS"]
[]
["2.1.4","A","Character Key Shortcuts","If a keyboard shortcut is implemented in content using only letter (including upper- and lower-case letters), punctuation, number, or symbol characters, then at least one of the following is true:\n\nTurn off: A mechanism is available to turn the shortcut off;\nRemap: A mechanism is available to remap the shortcut to use one or more non-printable keyboard characters (e.g. Ctrl, Alt, etc.);\nActive only on focus: The keyboard shortcut for a user interface component is only active when that component has focus.","PASS","PASS","PASS","PASS",null,"PASS","PASS",null,null,"PASS",null,null,"PASS","PASS","PASS",null,null,null,null,null,null,null,null,null,null,null,null,null,null,null,null,null,null,null,null,"PASS","PASS",null,null,"PASS"]
[]
["2.2.1","A","Timing Adjustable","Provide users enough time to read and use content.","N/A","N/A","N/A","N/A",null,"N/A","N/A",null,null,"N/A",null,null,"N/A","N/A","N/A",null,null,null,null,null,null,null,null,null,null,null,null,null,null,null,null,null,null,null,null,"N/A","N/A",null,null,"N/A"]
[]
["2.2.2","A","Pause, Stop, Hide","For moving, blinking, scrolling, or auto-updating information.","PASS","PASS","PASS","PASS",null,"PASS","PASS",null,null,"PASS",null,null,"PASS","PASS","PASS",null,null,null,null,null,null,null,null,null,null,null,null,null,null,null,null,null,null,null,null,"PASS","PASS",null,null,"PASS"]
[]
["2.3.1","A","Three Flashes or Below Threshold","Web pages do not contain anything that flashes more than three times in any one second period, or the flash is below the general flash and red flash thresholds.","PASS","PASS","PASS","PASS",null,"PASS","PASS",null,null,"PASS",null,null,"PASS","PASS","PASS",null,null,null,null,null,null,null,null,null,null,null,null,null,null,null,null,null,null,null,null,"PASS","PASS",null,null,"PASS"]
[]
["2.4.1","A","Bypass Blocks","A mechanism is available to bypass blocks of content that are repeated on multiple Web pages.","N/A","N/A","PASS","PASS",null,"PASS","PASS",null,null,"PASS",null,null,"PASS","PASS","PASS",null,null,null,null,null,null,null,null,null,null,null,null,null,null,null,null,null,null,null,null,"PASS","PASS",null,null,"PASS"]
[]
["2.4.2","A","Page Titled","Web pages have titles that describe topic or purpose.","N/A","N/A","N/A","N/A",null,"N/A","N/A",null,null,"N/A",null,null,"N/A","N/A","N/A",null,null,null,null,null,null,null,null,null,null,null,null,null,null,null,null,null,null,null,null,"N/A","N/A",null,null,"N/A"]
[]
["2.4.3","A","Focus Order","If a Web page can be navigated sequentially and the navigation sequences affect meaning or operation, focusable components receive focus in an order that preserves meaning and operability.","NON COMPLIANT","NON COMPLIANT","PASS","PASS",null,"PASS","PASS",null,null,"PASS",null,null,"PASS","PASS","PASS",null,null,null,null,null,null,null,null,null,null,null,null,null,null,null,null,null,null,null,null,"PASS","PASS"]
[null,null,null,null,"At higher zoom levels the main menu becomes a hamburger button. However this button is in the wrong tabbing order. Tabbing moves from the Join and Login links on the right, then back to the Hamburger button on the left. Ensure this tabbing moves from left to right across the page.","At higher zoom levels the main menu becomes a hamburger button. However this button is in the wrong tabbing order. Tabbing moves from the Join and Login links on the right, then back to the Hamburger button on the left. Ensure this tabbing moves from left to right across the page."]
["2.4.4","A","Link Purpose (In Context)","The purpose of each link can be determined from the link text alone or from the link text together with its programmatically determined link context, except where the purpose of the link would be ambiguous to users in general.","PASS with comments","PASS with comments","PASS","PASS with comments",null,"NON COMPLIANT","NON COMPLIANT",null,null,"NON COMPLIANT",null,null,"PASS","PASS","NON COMPLIANT",null,null,null,null,null,null,null,null,null,null,null,null,null,null,null,null,null,null,null,null,"PASS","NON COMPLIANT",null,null,"PASS"]
[null,null,null,null,"See Ref 1.1.1 above.","See Ref 1.1.1 above.",null,"This hero image has two separate links to the same address, on the whole image and on the link. It would be better to remove the image and  just have one link, on the \"Join\" link. ",null,"a) The Have your say link does not say what it refers to. Give it an aria-describedby attribute referencing the discussion's heading above it.\n\nb) Also (recommended but not required for WCAG compliance) this Featured component has two separate links to the same address, on the whole component and on the link. It would be better to remove one link and just have one link. ","a) The See All link does not say what the \"all\" refers to. Append some visually hidden text \"discussions\" to the link text, inside the link, for screen readers.\n\nb) Likewise with the Join the Discussion link - give it an aria-describedby attribute referencing the discussion's heading, above it.\n\nc) Also (recommended but not required for WCAG compliance) this component has two separate links to the same address, on the whole component and on the link. It would be better to remove one link and just have one link. ",null,null,"The See All link has no other programmatically determinable context to explain it. Give it an aria-describedby attribute referencing the heading before it.",null,null,null,null,"The Show More link below the Timeline is not programatically associated with the other Timeline content, so it needs additional text. Append visually hidden screen reader text of \"Timeline stages\" to the link text.",null,null,null,null,null,null,null,null,null,null,null,null,null,null,null,null,null,null,null,null,null,"The Find Out More link is not prammatically associated with other text that explains it, so needs additional text to say what it is for. Append hidden text \"City Hall\" inside the link."]
["2.5.1","A","Pointer Gestures","All functionality that uses multipoint or path-based gestures for operation can be operated with a single pointer without a path-based gesture, unless a multipoint or path-based gesture is essential.","PASS","PASS","PASS","PASS",null,"PASS","PASS",null,null,"PASS",null,null,"PASS","PASS","PASS",null,null,null,null,null,null,null,null,null,null,null,null,null,null,null,null,null,null,null,null,"PASS","PASS",null,null,"PASS"]
[]
["2.5.2","A","Pointer Cancellation","For functionality that can be operated using a single pointer, at least one of the following is true:\n\nNo Down-Event: The down-event of the pointer is not used to execute any part of the function;\nAbort or Undo: Completion of the function is on the up-event, and a mechanism is available to abort the function before completion or to undo the function after completion;\nUp Reversal: The up-event reverses any outcome of the preceding down-event;\nEssential: Completing the function on the down-event is essential.","PASS","PASS","PASS","PASS",null,"PASS","PASS",null,null,"PASS",null,null,"PASS","PASS","PASS",null,null,null,null,null,null,null,null,null,null,null,null,null,null,null,null,null,null,null,null,"PASS","PASS",null,null,"PASS"]
[]
["2.5.3","A","Label in Name","For user interface components with labels that include text or images of text, the name contains the text that is presented visually.","PASS","PASS","PASS","PASS",null,"PASS","PASS",null,null,"PASS",null,null,"PASS","PASS","PASS",null,null,null,null,null,null,null,null,null,null,null,null,null,null,null,null,null,null,null,null,"PASS","PASS",null,null,"PASS"]
[]
["2.5.4","A","Motion Actuation","Functionality that can be operated by device motion or user motion can also be operated by user interface components and responding to the motion can be disabled to prevent accidental actuation, except when:\n\nSupported Interface: The motion is used to operate functionality through an accessibility supported interface;\nEssential: The motion is essential for the function and doing so would invalidate the activity.","PASS","PASS","PASS","PASS",null,"PASS","PASS",null,null,"PASS",null,null,"PASS","PASS","PASS",null,null,null,null,null,null,null,null,null,null,null,null,null,null,null,null,null,null,null,null,"PASS","PASS",null,null,"PASS"]
[]
["W3C Ref.","Level.",null,"Principle 3: Understandable - Information and the operation of user interface must be understandable."]
["3.1.1","A","Language of Page","The default human language of each Web page can be programmatically determined. ","N/A","N/A","N/A","N/A",null,"N/A","N/A",null,null,"N/A",null,null,"N/A","N/A","N/A",null,null,null,null,null,null,null,null,null,null,null,null,null,null,null,null,null,null,null,null,"N/A","N/A",null,null,"N/A"]
[]
["3.2.1","A","On Focus","When any component receives focus, it does not initiate a change of context.","PASS","PASS","PASS","PASS",null,"PASS","PASS",null,null,"PASS",null,null,"PASS","PASS","PASS",null,null,null,null,null,null,null,null,null,null,null,null,null,null,null,null,null,null,null,null,"PASS","PASS",null,null,"PASS"]
[]
["3.2.2","A","On Input","Changing the setting of any user interface component does not automatically cause a change of context unless the user has been advised of the behaviour before using the component","PASS","PASS","PASS","PASS",null,"PASS","PASS",null,null,"PASS",null,null,"PASS","PASS","PASS",null,null,null,null,null,null,null,null,null,null,null,null,null,null,null,null,null,null,null,null,"PASS","PASS",null,null,"PASS"]
[]
["3.3.1","A","Error Identification","If an input error is automatically detected, the item that is in error is identified and the error is described to the user in text.","PASS","PASS","PASS","PASS",null,"PASS","PASS",null,null,"PASS",null,null,"PASS","PASS","PASS",null,null,null,null,null,null,null,null,null,null,null,null,null,null,null,null,null,null,null,null,"PASS","PASS",null,null,"PASS"]
[]
["3.3.2","A","Labels or Instructions","Labels or instructions are provided when content requires user input.","NON COMPLIANT","NON COMPLIANT","PASS","PASS",null,"PASS","PASS",null,null,"PASS",null,null,"PASS","PASS","NON COMPLIANT",null,null,null,null,null,null,null,null,null,null,null,null,null,null,null,null,null,null,null,null,"NON COMPLIANT","PASS"]
[null,null,null,null,"At higher zoom levels the main menu becomes a hamburger button. However this button is hidden labelled only \"Toggle navigation\" without saying which navigation. We suggest making it more specific as in \"Open main menu\", and \"Close main menu\" for the X Close button.","At higher zoom levels the main menu becomes a hamburger button. However this button has a hidden label of only \"Toggle navigation\" without saying which navigation. We suggest making it more specific as in \"Open main menu\", and \"Close main menu\" for the X Close button.",null,null,null,null,null,null,null,null,null,null,null,null,"The tick and circle SVG icons of various colours would benefit from either a key list somewhere by the component to explain the meanings, or else a link to a Help dialog or page.",null,null,null,null,null,null,null,null,null,null,null,null,null,null,null,null,null,null,null,null,"The Collections heading is not meaningful on its own. A sentence of explanation about collections would clarify."]
["W3C Ref.","Level.",null,"Guideline 4.1 Compatible: Maximize compatibility with current and future user agents, including assistive technologies."]
["4.1.1","A","Parsing","In content implemented using mark-up languages, elements have complete start and end tags, elements are nested according to their specifications, elements do not contain duplicate attributes, and any IDs are unique, except where the specifications allow these features.","N/A","N/A","N/A","N/A",null,"N/A","N/A",null,null,"N/A",null,null,"N/A","N/A","N/A",null,null,null,null,null,null,null,null,null,null,null,null,null,null,null,null,null,null,null,null,"N/A","N/A",null,null,"N/A"]
[]
["4.1.2","A","Name, Role, Value","For all user interface components (including but not limited to: form elements, links and components generated by scripts), the name and role can be programmatically determined; states, properties, and values that can be set by the user can be programmatically set; and notification of changes to these items is available to user agents, including assistive technologies. ","NON COMPLIANT","NON COMPLIANT","PASS","PASS",null,"PASS","PASS",null,null,"PASS",null,null,"PASS","PASS","PASS",null,null,null,null,null,null,null,null,null,null,null,null,null,null,null,null,null,null,null,null,"PASS","PASS"]
[null,null,null,null,"The main menu's container should not have an aria-expanded attribute. (If, later, some of the menu options are given a submenu to open, then this attribute would go on those individual options, not on the container of the whole menu.)","The main menu's container should not have an aria-expanded attribute. (If, later, some of the menu options are given a submenu to open, then this attribute would go on those individual options, not on the container of the whole menu.)"]
[]
[null,null,"Level AA Success Criteria"]
["W3C Ref.","Level.",null,"Principle 1: Perceivable - Information and user interface components must be presentable to users in ways they can perceive."]
["1.2.4","AA","Captions","Captions are provided for all live audio content in synchronized media. ","N/A","N/A","N/A","N/A",null,"N/A","N/A",null,null,"N/A",null,null,"N/A","N/A","N/A",null,null,null,null,null,null,null,null,null,null,null,null,null,null,null,null,null,null,null,null,"N/A","N/A",null,null,"N/A"]
[]
["1.2.5","AA","Audio Description (Pre-recorded)","Audio description is provided for all pre-recorded video content in synchronized media.","N/A","N/A","N/A","N/A",null,"N/A","N/A",null,null,"N/A",null,null,"N/A","N/A","N/A",null,null,null,null,null,null,null,null,null,null,null,null,null,null,null,null,null,null,null,null,"N/A","N/A",null,null,"N/A"]
[]
["1.3.4","AA","Orientation","Content does not restrict its view and operation to a single display orientation, such as portrait or landscape, unless a specific display orientation is essential.","N/A","N/A","N/A","N/A",null,"N/A","N/A",null,null,"N/A",null,null,"N/A","N/A","N/A",null,null,null,null,null,null,null,null,null,null,null,null,null,null,null,null,null,null,null,null,"N/A","N/A",null,null,"N/A"]
[]
["1.3.5","AA"," Identify Input Purpose","The purpose of each input field collecting information about the user can be programmatically determined when:\n\nThe input field serves a purpose identified in the Input Purposes for User Interface Components section; and\nThe content is implemented using technologies with support for identifying the expected meaning for form input data.","PASS","PASS","PASS","PASS",null,"PASS","PASS",null,null,"PASS",null,null,"PASS","PASS","PASS",null,null,null,null,null,null,null,null,null,null,null,null,null,null,null,null,null,null,null,null,"PASS","PASS",null,null,"PASS"]
[]
["1.4.3","AA","Colour Contrast","The visual presentation of text and images of text has a contrast ratio of at least 4.5:1",{"$f":"IF('Colour Contrast Analysis'!Y3=\"0 Faults\",\"PASS\",\"NON COMPLIANT\")","v":"PASS"},{"$f":"IF('Colour Contrast Analysis'!Z3=\"0 Faults\",\"PASS\",\"NON COMPLIANT\")","v":"PASS"},{"$f":"IF('Colour Contrast Analysis'!AA3=\"0 Faults\",\"PASS\",\"NON COMPLIANT\")","v":"PASS"},{"$f":"IF('Colour Contrast Analysis'!AB3=\"0 Faults\",\"PASS\",\"NON COMPLIANT\")","v":"NON COMPLIANT"},{"$f":"IF('Colour Contrast Analysis'!AC3=\"0 Faults\",\"PASS\",\"NON COMPLIANT\")","v":"PASS"},{"$f":"IF('Colour Contrast Analysis'!AD3=\"0 Faults\",\"PASS\",\"NON COMPLIANT\")","v":"PASS"},{"$f":"IF('Colour Contrast Analysis'!AE3=\"0 Faults\",\"PASS\",\"NON COMPLIANT\")","v":"PASS"},{"$f":"IF('Colour Contrast Analysis'!AF3=\"0 Faults\",\"PASS\",\"NON COMPLIANT\")","v":"PASS"},{"$f":"IF('Colour Contrast Analysis'!AG3=\"0 Faults\",\"PASS\",\"NON COMPLIANT\")","v":"PASS"},{"$f":"IF('Colour Contrast Analysis'!AH3=\"0 Faults\",\"PASS\",\"NON COMPLIANT\")","v":"PASS"},{"$f":"IF('Colour Contrast Analysis'!AI3=\"0 Faults\",\"PASS\",\"NON COMPLIANT\")","v":"PASS"},{"$f":"IF('Colour Contrast Analysis'!AJ3=\"0 Faults\",\"PASS\",\"NON COMPLIANT\")","v":"PASS"},{"$f":"IF('Colour Contrast Analysis'!AK3=\"0 Faults\",\"PASS\",\"NON COMPLIANT\")","v":"PASS"},{"$f":"IF('Colour Contrast Analysis'!AL3=\"0 Faults\",\"PASS\",\"NON COMPLIANT\")","v":"PASS"},{"$f":"IF('Colour Contrast Analysis'!AM3=\"0 Faults\",\"PASS\",\"NON COMPLIANT\")","v":"NON COMPLIANT"},{"$f":"IF('Colour Contrast Analysis'!AN3=\"0 Faults\",\"PASS\",\"NON COMPLIANT\")","v":"PASS"},{"$f":"IF('Colour Contrast Analysis'!AO3=\"0 Faults\",\"PASS\",\"NON COMPLIANT\")","v":"PASS"},{"$f":"IF('Colour Contrast Analysis'!AP3=\"0 Faults\",\"PASS\",\"NON COMPLIANT\")","v":"PASS"},{"$f":"IF('Colour Contrast Analysis'!AQ3=\"0 Faults\",\"PASS\",\"NON COMPLIANT\")","v":"PASS"},{"$f":"IF('Colour Contrast Analysis'!AR3=\"0 Faults\",\"PASS\",\"NON COMPLIANT\")","v":"PASS"},{"$f":"IF('Colour Contrast Analysis'!AS3=\"0 Faults\",\"PASS\",\"NON COMPLIANT\")","v":"PASS"},{"$f":"IF('Colour Contrast Analysis'!AT3=\"0 Faults\",\"PASS\",\"NON COMPLIANT\")","v":"PASS"},{"$f":"IF('Colour Contrast Analysis'!AU3=\"0 Faults\",\"PASS\",\"NON COMPLIANT\")","v":"PASS"},{"$f":"IF('Colour Contrast Analysis'!AV3=\"0 Faults\",\"PASS\",\"NON COMPLIANT\")","v":"PASS"},{"$f":"IF('Colour Contrast Analysis'!AW3=\"0 Faults\",\"PASS\",\"NON COMPLIANT\")","v":"PASS"},{"$f":"IF('Colour Contrast Analysis'!AX3=\"0 Faults\",\"PASS\",\"NON COMPLIANT\")","v":"PASS"},{"$f":"IF('Colour Contrast Analysis'!AY3=\"0 Faults\",\"PASS\",\"NON COMPLIANT\")","v":"PASS"},{"$f":"IF('Colour Contrast Analysis'!AZ3=\"0 Faults\",\"PASS\",\"NON COMPLIANT\")","v":"PASS"},{"$f":"IF('Colour Contrast Analysis'!BA3=\"0 Faults\",\"PASS\",\"NON COMPLIANT\")","v":"PASS"},{"$f":"IF('Colour Contrast Analysis'!BB3=\"0 Faults\",\"PASS\",\"NON COMPLIANT\")","v":"PASS"},{"$f":"IF('Colour Contrast Analysis'!BC3=\"0 Faults\",\"PASS\",\"NON COMPLIANT\")","v":"PASS"},{"$f":"IF('Colour Contrast Analysis'!BD3=\"0 Faults\",\"PASS\",\"NON COMPLIANT\")","v":"PASS"},{"$f":"IF('Colour Contrast Analysis'!BE3=\"0 Faults\",\"PASS\",\"NON COMPLIANT\")","v":"PASS"},{"$f":"IF('Colour Contrast Analysis'!BF3=\"0 Faults\",\"PASS\",\"NON COMPLIANT\")","v":"PASS"},{"$f":"IF('Colour Contrast Analysis'!BG3=\"0 Faults\",\"PASS\",\"NON COMPLIANT\")","v":"PASS"},{"$f":"IF('Colour Contrast Analysis'!BH3=\"0 Faults\",\"PASS\",\"NON COMPLIANT\")","v":"PASS"},{"$f":"IF('Colour Contrast Analysis'!BI3=\"0 Faults\",\"PASS\",\"NON COMPLIANT\")","v":"PASS"},{"$f":"IF('Colour Contrast Analysis'!BJ3=\"0 Faults\",\"PASS\",\"NON COMPLIANT\")","v":"PASS"},{"$f":"IF('Colour Contrast Analysis'!BK3=\"0 Faults\",\"PASS\",\"NON COMPLIANT\")","v":"PASS"},{"$f":"IF('Colour Contrast Analysis'!BL3=\"0 Faults\",\"PASS\",\"NON COMPLIANT\")","v":"PASS"},{"$f":"IF('Colour Contrast Analysis'!BM3=\"0 Faults\",\"PASS\",\"NON COMPLIANT\")","v":"PASS"},{"$f":"IF('Colour Contrast Analysis'!BN3=\"0 Faults\",\"PASS\",\"NON COMPLIANT\")","v":"PASS"},{"$f":"IF('Colour Contrast Analysis'!BO3=\"0 Faults\",\"PASS\",\"NON COMPLIANT\")","v":"PASS"},{"$f":"IF('Colour Contrast Analysis'!BP3=\"0 Faults\",\"PASS\",\"NON COMPLIANT\")","v":"PASS"},{"$f":"IF('Colour Contrast Analysis'!BQ3=\"0 Faults\",\"PASS\",\"NON COMPLIANT\")","v":"PASS"},{"$f":"IF('Colour Contrast Analysis'!BR3=\"0 Faults\",\"PASS\",\"NON COMPLIANT\")","v":"PASS"},{"$f":"IF('Colour Contrast Analysis'!BS3=\"0 Faults\",\"PASS\",\"NON COMPLIANT\")","v":"PASS"},{"$f":"IF('Colour Contrast Analysis'!BT3=\"0 Faults\",\"PASS\",\"NON COMPLIANT\")","v":"PASS"},{"$f":"IF('Colour Contrast Analysis'!BU3=\"0 Faults\",\"PASS\",\"NON COMPLIANT\")","v":"PASS"},{"$f":"IF('Colour Contrast Analysis'!BV3=\"0 Faults\",\"PASS\",\"NON COMPLIANT\")","v":"PASS"}]
[null,null,null,null,{"$f":"IF('Colour Contrast Analysis'!Y3=\"0 Faults\",\"\",LEFT('Colour Contrast Analysis'!Y3,FIND(\" \",'Colour Contrast Analysis'!Y3)-1) &\" combination\" & IF('Colour Contrast Analysis'!Y3=\"1 Fault\",\"\",\"s\") & \" of foreground and background colours do\" & IF('Colour Contrast Analysis'!Y3=\"1 Fault\",\"es\",\"\") & \" not have sufficient contrast. Please see the Colour Contrast Analysis worksheet.\")","v":""},{"$f":"IF('Colour Contrast Analysis'!Z3=\"0 Faults\",\"\",LEFT('Colour Contrast Analysis'!Z3,FIND(\" \",'Colour Contrast Analysis'!Z3)-1) &\" combination\" & IF('Colour Contrast Analysis'!Z3=\"1 Fault\",\"\",\"s\") & \" of foreground and background colours do\" & IF('Colour Contrast Analysis'!Z3=\"1 Fault\",\"es\",\"\") & \" not have sufficient contrast. Please see the Colour Contrast Analysis worksheet.\")","v":""},{"$f":"IF('Colour Contrast Analysis'!AA3=\"0 Faults\",\"\",LEFT('Colour Contrast Analysis'!AA3,FIND(\" \",'Colour Contrast Analysis'!AA3)-1) &\" combination\" & IF('Colour Contrast Analysis'!AA3=\"1 Fault\",\"\",\"s\") & \" of foreground and background colours do\" & IF('Colour Contrast Analysis'!AA3=\"1 Fault\",\"es\",\"\") & \" not have sufficient contrast. Please see the Colour Contrast Analysis worksheet.\")","v":""},{"$f":"IF('Colour Contrast Analysis'!AB3=\"0 Faults\",\"\",LEFT('Colour Contrast Analysis'!AB3,FIND(\" \",'Colour Contrast Analysis'!AB3)-1) &\" combination\" & IF('Colour Contrast Analysis'!AB3=\"1 Fault\",\"\",\"s\") & \" of foreground and background colours do\" & IF('Colour Contrast Analysis'!AB3=\"1 Fault\",\"es\",\"\") & \" not have sufficient contrast. Please see the Colour Contrast Analysis worksheet.\")","v":"1 combination of foreground and background colours does not have sufficient contrast. Please see the Colour Contrast Analysis worksheet."},{"$f":"IF('Colour Contrast Analysis'!AC3=\"0 Faults\",\"\",LEFT('Colour Contrast Analysis'!AC3,FIND(\" \",'Colour Contrast Analysis'!AC3)-1) &\" combination\" & IF('Colour Contrast Analysis'!AC3=\"1 Fault\",\"\",\"s\") & \" of foreground and background colours do\" & IF('Colour Contrast Analysis'!AC3=\"1 Fault\",\"es\",\"\") & \" not have sufficient contrast. Please see the Colour Contrast Analysis worksheet.\")","v":""},{"$f":"IF('Colour Contrast Analysis'!AD3=\"0 Faults\",\"\",LEFT('Colour Contrast Analysis'!AD3,FIND(\" \",'Colour Contrast Analysis'!AD3)-1) &\" combination\" & IF('Colour Contrast Analysis'!AD3=\"1 Fault\",\"\",\"s\") & \" of foreground and background colours do\" & IF('Colour Contrast Analysis'!AD3=\"1 Fault\",\"es\",\"\") & \" not have sufficient contrast. Please see the Colour Contrast Analysis worksheet.\")","v":""},{"$f":"IF('Colour Contrast Analysis'!AE3=\"0 Faults\",\"\",LEFT('Colour Contrast Analysis'!AE3,FIND(\" \",'Colour Contrast Analysis'!AE3)-1) &\" combination\" & IF('Colour Contrast Analysis'!AE3=\"1 Fault\",\"\",\"s\") & \" of foreground and background colours do\" & IF('Colour Contrast Analysis'!AE3=\"1 Fault\",\"es\",\"\") & \" not have sufficient contrast. Please see the Colour Contrast Analysis worksheet.\")","v":""},{"$f":"IF('Colour Contrast Analysis'!AF3=\"0 Faults\",\"\",LEFT('Colour Contrast Analysis'!AF3,FIND(\" \",'Colour Contrast Analysis'!AF3)-1) &\" combination\" & IF('Colour Contrast Analysis'!AF3=\"1 Fault\",\"\",\"s\") & \" of foreground and background colours do\" & IF('Colour Contrast Analysis'!AF3=\"1 Fault\",\"es\",\"\") & \" not have sufficient contrast. Please see the Colour Contrast Analysis worksheet.\")","v":""},{"$f":"IF('Colour Contrast Analysis'!AG3=\"0 Faults\",\"\",LEFT('Colour Contrast Analysis'!AG3,FIND(\" \",'Colour Contrast Analysis'!AG3)-1) &\" combination\" & IF('Colour Contrast Analysis'!AG3=\"1 Fault\",\"\",\"s\") & \" of foreground and background colours do\" & IF('Colour Contrast Analysis'!AG3=\"1 Fault\",\"es\",\"\") & \" not have sufficient contrast. Please see the Colour Contrast Analysis worksheet.\")","v":""},{"$f":"IF('Colour Contrast Analysis'!AH3=\"0 Faults\",\"\",LEFT('Colour Contrast Analysis'!AH3,FIND(\" \",'Colour Contrast Analysis'!AH3)-1) &\" combination\" & IF('Colour Contrast Analysis'!AH3=\"1 Fault\",\"\",\"s\") & \" of foreground and background colours do\" & IF('Colour Contrast Analysis'!AH3=\"1 Fault\",\"es\",\"\") & \" not have sufficient contrast. Please see the Colour Contrast Analysis worksheet.\")","v":""},{"$f":"IF('Colour Contrast Analysis'!AI3=\"0 Faults\",\"\",LEFT('Colour Contrast Analysis'!AI3,FIND(\" \",'Colour Contrast Analysis'!AI3)-1) &\" combination\" & IF('Colour Contrast Analysis'!AI3=\"1 Fault\",\"\",\"s\") & \" of foreground and background colours do\" & IF('Colour Contrast Analysis'!AI3=\"1 Fault\",\"es\",\"\") & \" not have sufficient contrast. Please see the Colour Contrast Analysis worksheet.\")","v":""},{"$f":"IF('Colour Contrast Analysis'!AJ3=\"0 Faults\",\"\",LEFT('Colour Contrast Analysis'!AJ3,FIND(\" \",'Colour Contrast Analysis'!AJ3)-1) &\" combination\" & IF('Colour Contrast Analysis'!AJ3=\"1 Fault\",\"\",\"s\") & \" of foreground and background colours do\" & IF('Colour Contrast Analysis'!AJ3=\"1 Fault\",\"es\",\"\") & \" not have sufficient contrast. Please see the Colour Contrast Analysis worksheet.\")","v":""},{"$f":"IF('Colour Contrast Analysis'!AK3=\"0 Faults\",\"\",LEFT('Colour Contrast Analysis'!AK3,FIND(\" \",'Colour Contrast Analysis'!AK3)-1) &\" combination\" & IF('Colour Contrast Analysis'!AK3=\"1 Fault\",\"\",\"s\") & \" of foreground and background colours do\" & IF('Colour Contrast Analysis'!AK3=\"1 Fault\",\"es\",\"\") & \" not have sufficient contrast. Please see the Colour Contrast Analysis worksheet.\")","v":""},{"$f":"IF('Colour Contrast Analysis'!AL3=\"0 Faults\",\"\",LEFT('Colour Contrast Analysis'!AL3,FIND(\" \",'Colour Contrast Analysis'!AL3)-1) &\" combination\" & IF('Colour Contrast Analysis'!AL3=\"1 Fault\",\"\",\"s\") & \" of foreground and background colours do\" & IF('Colour Contrast Analysis'!AL3=\"1 Fault\",\"es\",\"\") & \" not have sufficient contrast. Please see the Colour Contrast Analysis worksheet.\")","v":""},{"$f":"IF('Colour Contrast Analysis'!AM3=\"0 Faults\",\"\",LEFT('Colour Contrast Analysis'!AM3,FIND(\" \",'Colour Contrast Analysis'!AM3)-1) &\" combination\" & IF('Colour Contrast Analysis'!AM3=\"1 Fault\",\"\",\"s\") & \" of foreground and background colours do\" & IF('Colour Contrast Analysis'!AM3=\"1 Fault\",\"es\",\"\") & \" not have sufficient contrast. Please see the Colour Contrast Analysis worksheet.\")","v":"1 combination of foreground and background colours does not have sufficient contrast. Please see the Colour Contrast Analysis worksheet."},{"$f":"IF('Colour Contrast Analysis'!AN3=\"0 Faults\",\"\",LEFT('Colour Contrast Analysis'!AN3,FIND(\" \",'Colour Contrast Analysis'!AN3)-1) &\" combination\" & IF('Colour Contrast Analysis'!AN3=\"1 Fault\",\"\",\"s\") & \" of foreground and background colours do\" & IF('Colour Contrast Analysis'!AN3=\"1 Fault\",\"es\",\"\") & \" not have sufficient contrast. Please see the Colour Contrast Analysis worksheet.\")","v":""},{"$f":"IF('Colour Contrast Analysis'!AO3=\"0 Faults\",\"\",LEFT('Colour Contrast Analysis'!AO3,FIND(\" \",'Colour Contrast Analysis'!AO3)-1) &\" combination\" & IF('Colour Contrast Analysis'!AO3=\"1 Fault\",\"\",\"s\") & \" of foreground and background colours do\" & IF('Colour Contrast Analysis'!AO3=\"1 Fault\",\"es\",\"\") & \" not have sufficient contrast. Please see the Colour Contrast Analysis worksheet.\")","v":""},{"$f":"IF('Colour Contrast Analysis'!AP3=\"0 Faults\",\"\",LEFT('Colour Contrast Analysis'!AP3,FIND(\" \",'Colour Contrast Analysis'!AP3)-1) &\" combination\" & IF('Colour Contrast Analysis'!AP3=\"1 Fault\",\"\",\"s\") & \" of foreground and background colours do\" & IF('Colour Contrast Analysis'!AP3=\"1 Fault\",\"es\",\"\") & \" not have sufficient contrast. Please see the Colour Contrast Analysis worksheet.\")","v":""},{"$f":"IF('Colour Contrast Analysis'!AQ3=\"0 Faults\",\"\",LEFT('Colour Contrast Analysis'!AQ3,FIND(\" \",'Colour Contrast Analysis'!AQ3)-1) &\" combination\" & IF('Colour Contrast Analysis'!AQ3=\"1 Fault\",\"\",\"s\") & \" of foreground and background colours do\" & IF('Colour Contrast Analysis'!AQ3=\"1 Fault\",\"es\",\"\") & \" not have sufficient contrast. Please see the Colour Contrast Analysis worksheet.\")","v":""},{"$f":"IF('Colour Contrast Analysis'!AR3=\"0 Faults\",\"\",LEFT('Colour Contrast Analysis'!AR3,FIND(\" \",'Colour Contrast Analysis'!AR3)-1) &\" combination\" & IF('Colour Contrast Analysis'!AR3=\"1 Fault\",\"\",\"s\") & \" of foreground and background colours do\" & IF('Colour Contrast Analysis'!AR3=\"1 Fault\",\"es\",\"\") & \" not have sufficient contrast. Please see the Colour Contrast Analysis worksheet.\")","v":""},{"$f":"IF('Colour Contrast Analysis'!AS3=\"0 Faults\",\"\",LEFT('Colour Contrast Analysis'!AS3,FIND(\" \",'Colour Contrast Analysis'!AS3)-1) &\" combination\" & IF('Colour Contrast Analysis'!AS3=\"1 Fault\",\"\",\"s\") & \" of foreground and background colours do\" & IF('Colour Contrast Analysis'!AS3=\"1 Fault\",\"es\",\"\") & \" not have sufficient contrast. Please see the Colour Contrast Analysis worksheet.\")","v":""},{"$f":"IF('Colour Contrast Analysis'!AT3=\"0 Faults\",\"\",LEFT('Colour Contrast Analysis'!AT3,FIND(\" \",'Colour Contrast Analysis'!AT3)-1) &\" combination\" & IF('Colour Contrast Analysis'!AT3=\"1 Fault\",\"\",\"s\") & \" of foreground and background colours do\" & IF('Colour Contrast Analysis'!AT3=\"1 Fault\",\"es\",\"\") & \" not have sufficient contrast. Please see the Colour Contrast Analysis worksheet.\")","v":""},{"$f":"IF('Colour Contrast Analysis'!AU3=\"0 Faults\",\"\",LEFT('Colour Contrast Analysis'!AU3,FIND(\" \",'Colour Contrast Analysis'!AU3)-1) &\" combination\" & IF('Colour Contrast Analysis'!AU3=\"1 Fault\",\"\",\"s\") & \" of foreground and background colours do\" & IF('Colour Contrast Analysis'!AU3=\"1 Fault\",\"es\",\"\") & \" not have sufficient contrast. Please see the Colour Contrast Analysis worksheet.\")","v":""},{"$f":"IF('Colour Contrast Analysis'!AV3=\"0 Faults\",\"\",LEFT('Colour Contrast Analysis'!AV3,FIND(\" \",'Colour Contrast Analysis'!AV3)-1) &\" combination\" & IF('Colour Contrast Analysis'!AV3=\"1 Fault\",\"\",\"s\") & \" of foreground and background colours do\" & IF('Colour Contrast Analysis'!AV3=\"1 Fault\",\"es\",\"\") & \" not have sufficient contrast. Please see the Colour Contrast Analysis worksheet.\")","v":""},{"$f":"IF('Colour Contrast Analysis'!AW3=\"0 Faults\",\"\",LEFT('Colour Contrast Analysis'!AW3,FIND(\" \",'Colour Contrast Analysis'!AW3)-1) &\" combination\" & IF('Colour Contrast Analysis'!AW3=\"1 Fault\",\"\",\"s\") & \" of foreground and background colours do\" & IF('Colour Contrast Analysis'!AW3=\"1 Fault\",\"es\",\"\") & \" not have sufficient contrast. Please see the Colour Contrast Analysis worksheet.\")","v":""},{"$f":"IF('Colour Contrast Analysis'!AX3=\"0 Faults\",\"\",LEFT('Colour Contrast Analysis'!AX3,FIND(\" \",'Colour Contrast Analysis'!AX3)-1) &\" combination\" & IF('Colour Contrast Analysis'!AX3=\"1 Fault\",\"\",\"s\") & \" of foreground and background colours do\" & IF('Colour Contrast Analysis'!AX3=\"1 Fault\",\"es\",\"\") & \" not have sufficient contrast. Please see the Colour Contrast Analysis worksheet.\")","v":""},{"$f":"IF('Colour Contrast Analysis'!AY3=\"0 Faults\",\"\",LEFT('Colour Contrast Analysis'!AY3,FIND(\" \",'Colour Contrast Analysis'!AY3)-1) &\" combination\" & IF('Colour Contrast Analysis'!AY3=\"1 Fault\",\"\",\"s\") & \" of foreground and background colours do\" & IF('Colour Contrast Analysis'!AY3=\"1 Fault\",\"es\",\"\") & \" not have sufficient contrast. Please see the Colour Contrast Analysis worksheet.\")","v":""},{"$f":"IF('Colour Contrast Analysis'!AZ3=\"0 Faults\",\"\",LEFT('Colour Contrast Analysis'!AZ3,FIND(\" \",'Colour Contrast Analysis'!AZ3)-1) &\" combination\" & IF('Colour Contrast Analysis'!AZ3=\"1 Fault\",\"\",\"s\") & \" of foreground and background colours do\" & IF('Colour Contrast Analysis'!AZ3=\"1 Fault\",\"es\",\"\") & \" not have sufficient contrast. Please see the Colour Contrast Analysis worksheet.\")","v":""},{"$f":"IF('Colour Contrast Analysis'!BA3=\"0 Faults\",\"\",LEFT('Colour Contrast Analysis'!BA3,FIND(\" \",'Colour Contrast Analysis'!BA3)-1) &\" combination\" & IF('Colour Contrast Analysis'!BA3=\"1 Fault\",\"\",\"s\") & \" of foreground and background colours do\" & IF('Colour Contrast Analysis'!BA3=\"1 Fault\",\"es\",\"\") & \" not have sufficient contrast. Please see the Colour Contrast Analysis worksheet.\")","v":""},{"$f":"IF('Colour Contrast Analysis'!BB3=\"0 Faults\",\"\",LEFT('Colour Contrast Analysis'!BB3,FIND(\" \",'Colour Contrast Analysis'!BB3)-1) &\" combination\" & IF('Colour Contrast Analysis'!BB3=\"1 Fault\",\"\",\"s\") & \" of foreground and background colours do\" & IF('Colour Contrast Analysis'!BB3=\"1 Fault\",\"es\",\"\") & \" not have sufficient contrast. Please see the Colour Contrast Analysis worksheet.\")","v":""},{"$f":"IF('Colour Contrast Analysis'!BC3=\"0 Faults\",\"\",LEFT('Colour Contrast Analysis'!BC3,FIND(\" \",'Colour Contrast Analysis'!BC3)-1) &\" combination\" & IF('Colour Contrast Analysis'!BC3=\"1 Fault\",\"\",\"s\") & \" of foreground and background colours do\" & IF('Colour Contrast Analysis'!BC3=\"1 Fault\",\"es\",\"\") & \" not have sufficient contrast. Please see the Colour Contrast Analysis worksheet.\")","v":""},{"$f":"IF('Colour Contrast Analysis'!BD3=\"0 Faults\",\"\",LEFT('Colour Contrast Analysis'!BD3,FIND(\" \",'Colour Contrast Analysis'!BD3)-1) &\" combination\" & IF('Colour Contrast Analysis'!BD3=\"1 Fault\",\"\",\"s\") & \" of foreground and background colours do\" & IF('Colour Contrast Analysis'!BD3=\"1 Fault\",\"es\",\"\") & \" not have sufficient contrast. Please see the Colour Contrast Analysis worksheet.\")","v":""},{"$f":"IF('Colour Contrast Analysis'!BE3=\"0 Faults\",\"\",LEFT('Colour Contrast Analysis'!BE3,FIND(\" \",'Colour Contrast Analysis'!BE3)-1) &\" combination\" & IF('Colour Contrast Analysis'!BE3=\"1 Fault\",\"\",\"s\") & \" of foreground and background colours do\" & IF('Colour Contrast Analysis'!BE3=\"1 Fault\",\"es\",\"\") & \" not have sufficient contrast. Please see the Colour Contrast Analysis worksheet.\")","v":""},{"$f":"IF('Colour Contrast Analysis'!BF3=\"0 Faults\",\"\",LEFT('Colour Contrast Analysis'!BF3,FIND(\" \",'Colour Contrast Analysis'!BF3)-1) &\" combination\" & IF('Colour Contrast Analysis'!BF3=\"1 Fault\",\"\",\"s\") & \" of foreground and background colours do\" & IF('Colour Contrast Analysis'!BF3=\"1 Fault\",\"es\",\"\") & \" not have sufficient contrast. Please see the Colour Contrast Analysis worksheet.\")","v":""},{"$f":"IF('Colour Contrast Analysis'!BG3=\"0 Faults\",\"\",LEFT('Colour Contrast Analysis'!BG3,FIND(\" \",'Colour Contrast Analysis'!BG3)-1) &\" combination\" & IF('Colour Contrast Analysis'!BG3=\"1 Fault\",\"\",\"s\") & \" of foreground and background colours do\" & IF('Colour Contrast Analysis'!BG3=\"1 Fault\",\"es\",\"\") & \" not have sufficient contrast. Please see the Colour Contrast Analysis worksheet.\")","v":""},{"$f":"IF('Colour Contrast Analysis'!BH3=\"0 Faults\",\"\",LEFT('Colour Contrast Analysis'!BH3,FIND(\" \",'Colour Contrast Analysis'!BH3)-1) &\" combination\" & IF('Colour Contrast Analysis'!BH3=\"1 Fault\",\"\",\"s\") & \" of foreground and background colours do\" & IF('Colour Contrast Analysis'!BH3=\"1 Fault\",\"es\",\"\") & \" not have sufficient contrast. Please see the Colour Contrast Analysis worksheet.\")","v":""},{"$f":"IF('Colour Contrast Analysis'!BI3=\"0 Faults\",\"\",LEFT('Colour Contrast Analysis'!BI3,FIND(\" \",'Colour Contrast Analysis'!BI3)-1) &\" combination\" & IF('Colour Contrast Analysis'!BI3=\"1 Fault\",\"\",\"s\") & \" of foreground and background colours do\" & IF('Colour Contrast Analysis'!BI3=\"1 Fault\",\"es\",\"\") & \" not have sufficient contrast. Please see the Colour Contrast Analysis worksheet.\")","v":""},{"$f":"IF('Colour Contrast Analysis'!BJ3=\"0 Faults\",\"\",LEFT('Colour Contrast Analysis'!BJ3,FIND(\" \",'Colour Contrast Analysis'!BJ3)-1) &\" combination\" & IF('Colour Contrast Analysis'!BJ3=\"1 Fault\",\"\",\"s\") & \" of foreground and background colours do\" & IF('Colour Contrast Analysis'!BJ3=\"1 Fault\",\"es\",\"\") & \" not have sufficient contrast. Please see the Colour Contrast Analysis worksheet.\")","v":""},{"$f":"IF('Colour Contrast Analysis'!BK3=\"0 Faults\",\"\",LEFT('Colour Contrast Analysis'!BK3,FIND(\" \",'Colour Contrast Analysis'!BK3)-1) &\" combination\" & IF('Colour Contrast Analysis'!BK3=\"1 Fault\",\"\",\"s\") & \" of foreground and background colours do\" & IF('Colour Contrast Analysis'!BK3=\"1 Fault\",\"es\",\"\") & \" not have sufficient contrast. Please see the Colour Contrast Analysis worksheet.\")","v":""},{"$f":"IF('Colour Contrast Analysis'!BL3=\"0 Faults\",\"\",LEFT('Colour Contrast Analysis'!BL3,FIND(\" \",'Colour Contrast Analysis'!BL3)-1) &\" combination\" & IF('Colour Contrast Analysis'!BL3=\"1 Fault\",\"\",\"s\") & \" of foreground and background colours do\" & IF('Colour Contrast Analysis'!BL3=\"1 Fault\",\"es\",\"\") & \" not have sufficient contrast. Please see the Colour Contrast Analysis worksheet.\")","v":""},{"$f":"IF('Colour Contrast Analysis'!BM3=\"0 Faults\",\"\",LEFT('Colour Contrast Analysis'!BM3,FIND(\" \",'Colour Contrast Analysis'!BM3)-1) &\" combination\" & IF('Colour Contrast Analysis'!BM3=\"1 Fault\",\"\",\"s\") & \" of foreground and background colours do\" & IF('Colour Contrast Analysis'!BM3=\"1 Fault\",\"es\",\"\") & \" not have sufficient contrast. Please see the Colour Contrast Analysis worksheet.\")","v":""},{"$f":"IF('Colour Contrast Analysis'!BN3=\"0 Faults\",\"\",LEFT('Colour Contrast Analysis'!BN3,FIND(\" \",'Colour Contrast Analysis'!BN3)-1) &\" combination\" & IF('Colour Contrast Analysis'!BN3=\"1 Fault\",\"\",\"s\") & \" of foreground and background colours do\" & IF('Colour Contrast Analysis'!BN3=\"1 Fault\",\"es\",\"\") & \" not have sufficient contrast. Please see the Colour Contrast Analysis worksheet.\")","v":""},{"$f":"IF('Colour Contrast Analysis'!BO3=\"0 Faults\",\"\",LEFT('Colour Contrast Analysis'!BO3,FIND(\" \",'Colour Contrast Analysis'!BO3)-1) &\" combination\" & IF('Colour Contrast Analysis'!BO3=\"1 Fault\",\"\",\"s\") & \" of foreground and background colours do\" & IF('Colour Contrast Analysis'!BO3=\"1 Fault\",\"es\",\"\") & \" not have sufficient contrast. Please see the Colour Contrast Analysis worksheet.\")","v":""},{"$f":"IF('Colour Contrast Analysis'!BP3=\"0 Faults\",\"\",LEFT('Colour Contrast Analysis'!BP3,FIND(\" \",'Colour Contrast Analysis'!BP3)-1) &\" combination\" & IF('Colour Contrast Analysis'!BP3=\"1 Fault\",\"\",\"s\") & \" of foreground and background colours do\" & IF('Colour Contrast Analysis'!BP3=\"1 Fault\",\"es\",\"\") & \" not have sufficient contrast. Please see the Colour Contrast Analysis worksheet.\")","v":""},{"$f":"IF('Colour Contrast Analysis'!BQ3=\"0 Faults\",\"\",LEFT('Colour Contrast Analysis'!BQ3,FIND(\" \",'Colour Contrast Analysis'!BQ3)-1) &\" combination\" & IF('Colour Contrast Analysis'!BQ3=\"1 Fault\",\"\",\"s\") & \" of foreground and background colours do\" & IF('Colour Contrast Analysis'!BQ3=\"1 Fault\",\"es\",\"\") & \" not have sufficient contrast. Please see the Colour Contrast Analysis worksheet.\")","v":""},{"$f":"IF('Colour Contrast Analysis'!BR3=\"0 Faults\",\"\",LEFT('Colour Contrast Analysis'!BR3,FIND(\" \",'Colour Contrast Analysis'!BR3)-1) &\" combination\" & IF('Colour Contrast Analysis'!BR3=\"1 Fault\",\"\",\"s\") & \" of foreground and background colours do\" & IF('Colour Contrast Analysis'!BR3=\"1 Fault\",\"es\",\"\") & \" not have sufficient contrast. Please see the Colour Contrast Analysis worksheet.\")","v":""},{"$f":"IF('Colour Contrast Analysis'!BS3=\"0 Faults\",\"\",LEFT('Colour Contrast Analysis'!BS3,FIND(\" \",'Colour Contrast Analysis'!BS3)-1) &\" combination\" & IF('Colour Contrast Analysis'!BS3=\"1 Fault\",\"\",\"s\") & \" of foreground and background colours do\" & IF('Colour Contrast Analysis'!BS3=\"1 Fault\",\"es\",\"\") & \" not have sufficient contrast. Please see the Colour Contrast Analysis worksheet.\")","v":""},{"$f":"IF('Colour Contrast Analysis'!BT3=\"0 Faults\",\"\",LEFT('Colour Contrast Analysis'!BT3,FIND(\" \",'Colour Contrast Analysis'!BT3)-1) &\" combination\" & IF('Colour Contrast Analysis'!BT3=\"1 Fault\",\"\",\"s\") & \" of foreground and background colours do\" & IF('Colour Contrast Analysis'!BT3=\"1 Fault\",\"es\",\"\") & \" not have sufficient contrast. Please see the Colour Contrast Analysis worksheet.\")","v":""},{"$f":"IF('Colour Contrast Analysis'!BU3=\"0 Faults\",\"\",LEFT('Colour Contrast Analysis'!BU3,FIND(\" \",'Colour Contrast Analysis'!BU3)-1) &\" combination\" & IF('Colour Contrast Analysis'!BU3=\"1 Fault\",\"\",\"s\") & \" of foreground and background colours do\" & IF('Colour Contrast Analysis'!BU3=\"1 Fault\",\"es\",\"\") & \" not have sufficient contrast. Please see the Colour Contrast Analysis worksheet.\")","v":""},{"$f":"IF('Colour Contrast Analysis'!BV3=\"0 Faults\",\"\",LEFT('Colour Contrast Analysis'!BV3,FIND(\" \",'Colour Contrast Analysis'!BV3)-1) &\" combination\" & IF('Colour Contrast Analysis'!BV3=\"1 Fault\",\"\",\"s\") & \" of foreground and background colours do\" & IF('Colour Contrast Analysis'!BV3=\"1 Fault\",\"es\",\"\") & \" not have sufficient contrast. Please see the Colour Contrast Analysis worksheet.\")","v":""}]
["1.4.4","AA","Resize Text","Except for captions and images of text, text can be resized without assistive technology up to 200 percent without loss of content or functionality.","PASS","PASS","PASS","PASS",null,"PASS","PASS",null,null,"PASS",null,null,"PASS","PASS","PASS",null,null,null,null,null,null,null,null,null,null,null,null,null,null,null,null,null,null,null,null,"PASS with comments","PASS"]
[null,null,null,null,null,null,null,null,null,null,null,null,null,null,null,null,null,null,null,null,null,null,null,null,null,null,null,null,null,null,null,null,null,null,null,null,null,null,null,"When zoom causes menu options to wrap onto a second line, they look like two menu options. Suggest using CSS text-indent to avoid this."]
["1.4.5","AA","Images of Text","If the technologies being used can achieve the visual presentation, text is used to convey information rather than images of text except for the following:\n\nCustomizable: The image of text can be visually customized to the user's requirements;\nEssential: A particular presentation of text is essential to the information being conveyed.","PASS","PASS","PASS","PASS",null,"PASS","PASS",null,null,"PASS",null,null,"PASS","PASS","PASS",null,null,null,null,null,null,null,null,null,null,null,null,null,null,null,null,null,null,null,null,"PASS","PASS"]
[]
["1.4.10","AA","Reflow","Content can be presented without loss of information or functionality, and without requiring scrolling in two dimensions for:\n\nVertical scrolling content at a width equivalent to 320 CSS pixels;\nHorizontal scrolling content at a height equivalent to 256 CSS pixels.\nExcept for parts of the content which require two-dimensional layout for usage or meaning.","PASS","PASS","PASS","PASS",null,"PASS","PASS with comments",null,null,"PASS with comments",null,null,"PASS","PASS","PASS with comments",null,null,null,null,null,null,null,null,null,null,null,null,null,null,null,null,null,null,null,null,"PASS","PASS"]
[null,null,null,null,null,null,null,null,null,null,"At 400% zoom, no content has been lost, but the discussion headings and the \"N comments\" are pushed up against each other, making it difficult to understand they are two separate items and what they are saying.",null,null,"At 400% zoom the See All label is too big for its container so wraps onto a second line, so the focus outline (which is the size of the icon) cuts through the text, looking untidy. Make the label container longer for it.",null,null,null,null,"At zoom levels above 250%, the bottom border of the Show More button is overwritten by the following content (the Featured image). This is not strictly a WCAG failure, but gives the impression that the button applies to the Featured content rather than to the Timeline above."]
["1.4.11","AA","Non-text Contrast","The visual presentation of the following have a contrast ratio of at least 3:1 against adjacent colour(s):\n\nUser Interface Components: Visual information required to identify user interface components and states, except for inactive components or where the appearance of the component is determined by the user agent and not modified by the author;\nGraphical Objects: Parts of graphics required to understand the content, except when a particular presentation of graphics is essential to the information being conveyed.",{"$f":"IF('Non-text Contrast'!Z3=\"0 Faults\",\"PASS\",\"NON COMPLIANT\")","v":"PASS"},{"$f":"IF('Non-text Contrast'!AA3=\"0 Faults\",\"PASS\",\"NON COMPLIANT\")","v":"PASS"},{"$f":"IF('Non-text Contrast'!AB3=\"0 Faults\",\"PASS\",\"NON COMPLIANT\")","v":"PASS"},{"$f":"IF('Non-text Contrast'!AC3=\"0 Faults\",\"PASS\",\"NON COMPLIANT\")","v":"PASS"},{"$f":"IF('Non-text Contrast'!AD3=\"0 Faults\",\"PASS\",\"NON COMPLIANT\")","v":"PASS"},{"$f":"IF('Non-text Contrast'!AE3=\"0 Faults\",\"PASS\",\"NON COMPLIANT\")","v":"PASS"},{"$f":"IF('Non-text Contrast'!AF3=\"0 Faults\",\"PASS\",\"NON COMPLIANT\")","v":"PASS"},{"$f":"IF('Non-text Contrast'!AG3=\"0 Faults\",\"PASS\",\"NON COMPLIANT\")","v":"PASS"},{"$f":"IF('Non-text Contrast'!AH3=\"0 Faults\",\"PASS\",\"NON COMPLIANT\")","v":"PASS"},{"$f":"IF('Non-text Contrast'!AI3=\"0 Faults\",\"PASS\",\"NON COMPLIANT\")","v":"PASS"},{"$f":"IF('Non-text Contrast'!AJ3=\"0 Faults\",\"PASS\",\"NON COMPLIANT\")","v":"PASS"},{"$f":"IF('Non-text Contrast'!AK3=\"0 Faults\",\"PASS\",\"NON COMPLIANT\")","v":"PASS"},{"$f":"IF('Non-text Contrast'!AL3=\"0 Faults\",\"PASS\",\"NON COMPLIANT\")","v":"PASS"},{"$f":"IF('Non-text Contrast'!AM3=\"0 Faults\",\"PASS\",\"NON COMPLIANT\")","v":"PASS"},{"$f":"IF('Non-text Contrast'!AN3=\"0 Faults\",\"PASS\",\"NON COMPLIANT\")","v":"NON COMPLIANT"},{"$f":"IF('Non-text Contrast'!AO3=\"0 Faults\",\"PASS\",\"NON COMPLIANT\")","v":"PASS"},{"$f":"IF('Non-text Contrast'!AP3=\"0 Faults\",\"PASS\",\"NON COMPLIANT\")","v":"PASS"},{"$f":"IF('Non-text Contrast'!AQ3=\"0 Faults\",\"PASS\",\"NON COMPLIANT\")","v":"PASS"},{"$f":"IF('Non-text Contrast'!AR3=\"0 Faults\",\"PASS\",\"NON COMPLIANT\")","v":"PASS"},{"$f":"IF('Non-text Contrast'!AS3=\"0 Faults\",\"PASS\",\"NON COMPLIANT\")","v":"PASS"},{"$f":"IF('Non-text Contrast'!AT3=\"0 Faults\",\"PASS\",\"NON COMPLIANT\")","v":"PASS"},{"$f":"IF('Non-text Contrast'!AU3=\"0 Faults\",\"PASS\",\"NON COMPLIANT\")","v":"PASS"},{"$f":"IF('Non-text Contrast'!AV3=\"0 Faults\",\"PASS\",\"NON COMPLIANT\")","v":"PASS"},{"$f":"IF('Non-text Contrast'!AW3=\"0 Faults\",\"PASS\",\"NON COMPLIANT\")","v":"PASS"},{"$f":"IF('Non-text Contrast'!AX3=\"0 Faults\",\"PASS\",\"NON COMPLIANT\")","v":"PASS"},{"$f":"IF('Non-text Contrast'!AY3=\"0 Faults\",\"PASS\",\"NON COMPLIANT\")","v":"PASS"},{"$f":"IF('Non-text Contrast'!AZ3=\"0 Faults\",\"PASS\",\"NON COMPLIANT\")","v":"PASS"},{"$f":"IF('Non-text Contrast'!BA3=\"0 Faults\",\"PASS\",\"NON COMPLIANT\")","v":"PASS"},{"$f":"IF('Non-text Contrast'!BB3=\"0 Faults\",\"PASS\",\"NON COMPLIANT\")","v":"PASS"},{"$f":"IF('Non-text Contrast'!BC3=\"0 Faults\",\"PASS\",\"NON COMPLIANT\")","v":"PASS"},{"$f":"IF('Non-text Contrast'!BD3=\"0 Faults\",\"PASS\",\"NON COMPLIANT\")","v":"PASS"},{"$f":"IF('Non-text Contrast'!BE3=\"0 Faults\",\"PASS\",\"NON COMPLIANT\")","v":"PASS"},{"$f":"IF('Non-text Contrast'!BF3=\"0 Faults\",\"PASS\",\"NON COMPLIANT\")","v":"PASS"},{"$f":"IF('Non-text Contrast'!BG3=\"0 Faults\",\"PASS\",\"NON COMPLIANT\")","v":"PASS"},{"$f":"IF('Non-text Contrast'!BH3=\"0 Faults\",\"PASS\",\"NON COMPLIANT\")","v":"PASS"},{"$f":"IF('Non-text Contrast'!BI3=\"0 Faults\",\"PASS\",\"NON COMPLIANT\")","v":"PASS"},{"$f":"IF('Non-text Contrast'!BJ3=\"0 Faults\",\"PASS\",\"NON COMPLIANT\")","v":"PASS"},{"$f":"IF('Non-text Contrast'!BK3=\"0 Faults\",\"PASS\",\"NON COMPLIANT\")","v":"PASS"},{"$f":"IF('Non-text Contrast'!BL3=\"0 Faults\",\"PASS\",\"NON COMPLIANT\")","v":"PASS"},{"$f":"IF('Non-text Contrast'!BM3=\"0 Faults\",\"PASS\",\"NON COMPLIANT\")","v":"PASS"},{"$f":"IF('Non-text Contrast'!BN3=\"0 Faults\",\"PASS\",\"NON COMPLIANT\")","v":"PASS"},{"$f":"IF('Non-text Contrast'!BO3=\"0 Faults\",\"PASS\",\"NON COMPLIANT\")","v":"PASS"},{"$f":"IF('Non-text Contrast'!BP3=\"0 Faults\",\"PASS\",\"NON COMPLIANT\")","v":"PASS"},{"$f":"IF('Non-text Contrast'!BQ3=\"0 Faults\",\"PASS\",\"NON COMPLIANT\")","v":"PASS"},{"$f":"IF('Non-text Contrast'!BR3=\"0 Faults\",\"PASS\",\"NON COMPLIANT\")","v":"PASS"},{"$f":"IF('Non-text Contrast'!BS3=\"0 Faults\",\"PASS\",\"NON COMPLIANT\")","v":"PASS"},{"$f":"IF('Non-text Contrast'!BT3=\"0 Faults\",\"PASS\",\"NON COMPLIANT\")","v":"PASS"},{"$f":"IF('Non-text Contrast'!BU3=\"0 Faults\",\"PASS\",\"NON COMPLIANT\")","v":"PASS"},{"$f":"IF('Non-text Contrast'!BV3=\"0 Faults\",\"PASS\",\"NON COMPLIANT\")","v":"PASS"},{"$f":"IF('Non-text Contrast'!BW3=\"0 Faults\",\"PASS\",\"NON COMPLIANT\")","v":"PASS"}]
[null,null,null,null,{"$f":"IF('Non-text Contrast'!Z3=\"0 Faults\",\"\",LEFT('Non-text Contrast'!Z3,FIND(\" \",'Non-text Contrast'!Z3)-1) &\" combination\" & IF('Non-text Contrast'!Z3=\"1 Fault\",\"\",\"s\") & \" of adjacent colours do\" & IF('Non-text Contrast'!Z3=\"1 Fault\",\"es\",\"\") & \" not have sufficient contrast. Please see the Non-text Contrast worksheet.\")","v":""},{"$f":"IF('Non-text Contrast'!AA3=\"0 Faults\",\"\",LEFT('Non-text Contrast'!AA3,FIND(\" \",'Non-text Contrast'!AA3)-1) &\" combination\" & IF('Non-text Contrast'!AA3=\"1 Fault\",\"\",\"s\") & \" of adjacent colours do\" & IF('Non-text Contrast'!AA3=\"1 Fault\",\"es\",\"\") & \" not have sufficient contrast. Please see the Non-text Contrast worksheet.\")","v":""},{"$f":"IF('Non-text Contrast'!AB3=\"0 Faults\",\"\",LEFT('Non-text Contrast'!AB3,FIND(\" \",'Non-text Contrast'!AB3)-1) &\" combination\" & IF('Non-text Contrast'!AB3=\"1 Fault\",\"\",\"s\") & \" of adjacent colours do\" & IF('Non-text Contrast'!AB3=\"1 Fault\",\"es\",\"\") & \" not have sufficient contrast. Please see the Non-text Contrast worksheet.\")","v":""},{"$f":"IF('Non-text Contrast'!AC3=\"0 Faults\",\"\",LEFT('Non-text Contrast'!AC3,FIND(\" \",'Non-text Contrast'!AC3)-1) &\" combination\" & IF('Non-text Contrast'!AC3=\"1 Fault\",\"\",\"s\") & \" of adjacent colours do\" & IF('Non-text Contrast'!AC3=\"1 Fault\",\"es\",\"\") & \" not have sufficient contrast. Please see the Non-text Contrast worksheet.\")","v":""},{"$f":"IF('Non-text Contrast'!AD3=\"0 Faults\",\"\",LEFT('Non-text Contrast'!AD3,FIND(\" \",'Non-text Contrast'!AD3)-1) &\" combination\" & IF('Non-text Contrast'!AD3=\"1 Fault\",\"\",\"s\") & \" of adjacent colours do\" & IF('Non-text Contrast'!AD3=\"1 Fault\",\"es\",\"\") & \" not have sufficient contrast. Please see the Non-text Contrast worksheet.\")","v":""},{"$f":"IF('Non-text Contrast'!AE3=\"0 Faults\",\"\",LEFT('Non-text Contrast'!AE3,FIND(\" \",'Non-text Contrast'!AE3)-1) &\" combination\" & IF('Non-text Contrast'!AE3=\"1 Fault\",\"\",\"s\") & \" of adjacent colours do\" & IF('Non-text Contrast'!AE3=\"1 Fault\",\"es\",\"\") & \" not have sufficient contrast. Please see the Non-text Contrast worksheet.\")","v":""},{"$f":"IF('Non-text Contrast'!AF3=\"0 Faults\",\"\",LEFT('Non-text Contrast'!AF3,FIND(\" \",'Non-text Contrast'!AF3)-1) &\" combination\" & IF('Non-text Contrast'!AF3=\"1 Fault\",\"\",\"s\") & \" of adjacent colours do\" & IF('Non-text Contrast'!AF3=\"1 Fault\",\"es\",\"\") & \" not have sufficient contrast. Please see the Non-text Contrast worksheet.\")","v":""},{"$f":"IF('Non-text Contrast'!AG3=\"0 Faults\",\"\",LEFT('Non-text Contrast'!AG3,FIND(\" \",'Non-text Contrast'!AG3)-1) &\" combination\" & IF('Non-text Contrast'!AG3=\"1 Fault\",\"\",\"s\") & \" of adjacent colours do\" & IF('Non-text Contrast'!AG3=\"1 Fault\",\"es\",\"\") & \" not have sufficient contrast. Please see the Non-text Contrast worksheet.\")","v":""},{"$f":"IF('Non-text Contrast'!AH3=\"0 Faults\",\"\",LEFT('Non-text Contrast'!AH3,FIND(\" \",'Non-text Contrast'!AH3)-1) &\" combination\" & IF('Non-text Contrast'!AH3=\"1 Fault\",\"\",\"s\") & \" of adjacent colours do\" & IF('Non-text Contrast'!AH3=\"1 Fault\",\"es\",\"\") & \" not have sufficient contrast. Please see the Non-text Contrast worksheet.\")","v":""},{"$f":"IF('Non-text Contrast'!AI3=\"0 Faults\",\"\",LEFT('Non-text Contrast'!AI3,FIND(\" \",'Non-text Contrast'!AI3)-1) &\" combination\" & IF('Non-text Contrast'!AI3=\"1 Fault\",\"\",\"s\") & \" of adjacent colours do\" & IF('Non-text Contrast'!AI3=\"1 Fault\",\"es\",\"\") & \" not have sufficient contrast. Please see the Non-text Contrast worksheet.\")","v":""},{"$f":"IF('Non-text Contrast'!AJ3=\"0 Faults\",\"\",LEFT('Non-text Contrast'!AJ3,FIND(\" \",'Non-text Contrast'!AJ3)-1) &\" combination\" & IF('Non-text Contrast'!AJ3=\"1 Fault\",\"\",\"s\") & \" of adjacent colours do\" & IF('Non-text Contrast'!AJ3=\"1 Fault\",\"es\",\"\") & \" not have sufficient contrast. Please see the Non-text Contrast worksheet.\")","v":""},{"$f":"IF('Non-text Contrast'!AK3=\"0 Faults\",\"\",LEFT('Non-text Contrast'!AK3,FIND(\" \",'Non-text Contrast'!AK3)-1) &\" combination\" & IF('Non-text Contrast'!AK3=\"1 Fault\",\"\",\"s\") & \" of adjacent colours do\" & IF('Non-text Contrast'!AK3=\"1 Fault\",\"es\",\"\") & \" not have sufficient contrast. Please see the Non-text Contrast worksheet.\")","v":""},{"$f":"IF('Non-text Contrast'!AL3=\"0 Faults\",\"\",LEFT('Non-text Contrast'!AL3,FIND(\" \",'Non-text Contrast'!AL3)-1) &\" combination\" & IF('Non-text Contrast'!AL3=\"1 Fault\",\"\",\"s\") & \" of adjacent colours do\" & IF('Non-text Contrast'!AL3=\"1 Fault\",\"es\",\"\") & \" not have sufficient contrast. Please see the Non-text Contrast worksheet.\")","v":""},{"$f":"IF('Non-text Contrast'!AM3=\"0 Faults\",\"\",LEFT('Non-text Contrast'!AM3,FIND(\" \",'Non-text Contrast'!AM3)-1) &\" combination\" & IF('Non-text Contrast'!AM3=\"1 Fault\",\"\",\"s\") & \" of adjacent colours do\" & IF('Non-text Contrast'!AM3=\"1 Fault\",\"es\",\"\") & \" not have sufficient contrast. Please see the Non-text Contrast worksheet.\")","v":""},{"$f":"IF('Non-text Contrast'!AN3=\"0 Faults\",\"\",LEFT('Non-text Contrast'!AN3,FIND(\" \",'Non-text Contrast'!AN3)-1) &\" combination\" & IF('Non-text Contrast'!AN3=\"1 Fault\",\"\",\"s\") & \" of adjacent colours do\" & IF('Non-text Contrast'!AN3=\"1 Fault\",\"es\",\"\") & \" not have sufficient contrast. Please see the Non-text Contrast worksheet.\")","v":"2 combinations of adjacent colours do not have sufficient contrast. Please see the Non-text Contrast worksheet."},{"$f":"IF('Non-text Contrast'!AO3=\"0 Faults\",\"\",LEFT('Non-text Contrast'!AO3,FIND(\" \",'Non-text Contrast'!AO3)-1) &\" combination\" & IF('Non-text Contrast'!AO3=\"1 Fault\",\"\",\"s\") & \" of adjacent colours do\" & IF('Non-text Contrast'!AO3=\"1 Fault\",\"es\",\"\") & \" not have sufficient contrast. Please see the Non-text Contrast worksheet.\")","v":""},{"$f":"IF('Non-text Contrast'!AP3=\"0 Faults\",\"\",LEFT('Non-text Contrast'!AP3,FIND(\" \",'Non-text Contrast'!AP3)-1) &\" combination\" & IF('Non-text Contrast'!AP3=\"1 Fault\",\"\",\"s\") & \" of adjacent colours do\" & IF('Non-text Contrast'!AP3=\"1 Fault\",\"es\",\"\") & \" not have sufficient contrast. Please see the Non-text Contrast worksheet.\")","v":""},{"$f":"IF('Non-text Contrast'!AQ3=\"0 Faults\",\"\",LEFT('Non-text Contrast'!AQ3,FIND(\" \",'Non-text Contrast'!AQ3)-1) &\" combination\" & IF('Non-text Contrast'!AQ3=\"1 Fault\",\"\",\"s\") & \" of adjacent colours do\" & IF('Non-text Contrast'!AQ3=\"1 Fault\",\"es\",\"\") & \" not have sufficient contrast. Please see the Non-text Contrast worksheet.\")","v":""},{"$f":"IF('Non-text Contrast'!AR3=\"0 Faults\",\"\",LEFT('Non-text Contrast'!AR3,FIND(\" \",'Non-text Contrast'!AR3)-1) &\" combination\" & IF('Non-text Contrast'!AR3=\"1 Fault\",\"\",\"s\") & \" of adjacent colours do\" & IF('Non-text Contrast'!AR3=\"1 Fault\",\"es\",\"\") & \" not have sufficient contrast. Please see the Non-text Contrast worksheet.\")","v":""},{"$f":"IF('Non-text Contrast'!AS3=\"0 Faults\",\"\",LEFT('Non-text Contrast'!AS3,FIND(\" \",'Non-text Contrast'!AS3)-1) &\" combination\" & IF('Non-text Contrast'!AS3=\"1 Fault\",\"\",\"s\") & \" of adjacent colours do\" & IF('Non-text Contrast'!AS3=\"1 Fault\",\"es\",\"\") & \" not have sufficient contrast. Please see the Non-text Contrast worksheet.\")","v":""},{"$f":"IF('Non-text Contrast'!AT3=\"0 Faults\",\"\",LEFT('Non-text Contrast'!AT3,FIND(\" \",'Non-text Contrast'!AT3)-1) &\" combination\" & IF('Non-text Contrast'!AT3=\"1 Fault\",\"\",\"s\") & \" of adjacent colours do\" & IF('Non-text Contrast'!AT3=\"1 Fault\",\"es\",\"\") & \" not have sufficient contrast. Please see the Non-text Contrast worksheet.\")","v":""},{"$f":"IF('Non-text Contrast'!AU3=\"0 Faults\",\"\",LEFT('Non-text Contrast'!AU3,FIND(\" \",'Non-text Contrast'!AU3)-1) &\" combination\" & IF('Non-text Contrast'!AU3=\"1 Fault\",\"\",\"s\") & \" of adjacent colours do\" & IF('Non-text Contrast'!AU3=\"1 Fault\",\"es\",\"\") & \" not have sufficient contrast. Please see the Non-text Contrast worksheet.\")","v":""},{"$f":"IF('Non-text Contrast'!AV3=\"0 Faults\",\"\",LEFT('Non-text Contrast'!AV3,FIND(\" \",'Non-text Contrast'!AV3)-1) &\" combination\" & IF('Non-text Contrast'!AV3=\"1 Fault\",\"\",\"s\") & \" of adjacent colours do\" & IF('Non-text Contrast'!AV3=\"1 Fault\",\"es\",\"\") & \" not have sufficient contrast. Please see the Non-text Contrast worksheet.\")","v":""},{"$f":"IF('Non-text Contrast'!AW3=\"0 Faults\",\"\",LEFT('Non-text Contrast'!AW3,FIND(\" \",'Non-text Contrast'!AW3)-1) &\" combination\" & IF('Non-text Contrast'!AW3=\"1 Fault\",\"\",\"s\") & \" of adjacent colours do\" & IF('Non-text Contrast'!AW3=\"1 Fault\",\"es\",\"\") & \" not have sufficient contrast. Please see the Non-text Contrast worksheet.\")","v":""},{"$f":"IF('Non-text Contrast'!AX3=\"0 Faults\",\"\",LEFT('Non-text Contrast'!AX3,FIND(\" \",'Non-text Contrast'!AX3)-1) &\" combination\" & IF('Non-text Contrast'!AX3=\"1 Fault\",\"\",\"s\") & \" of adjacent colours do\" & IF('Non-text Contrast'!AX3=\"1 Fault\",\"es\",\"\") & \" not have sufficient contrast. Please see the Non-text Contrast worksheet.\")","v":""},{"$f":"IF('Non-text Contrast'!AY3=\"0 Faults\",\"\",LEFT('Non-text Contrast'!AY3,FIND(\" \",'Non-text Contrast'!AY3)-1) &\" combination\" & IF('Non-text Contrast'!AY3=\"1 Fault\",\"\",\"s\") & \" of adjacent colours do\" & IF('Non-text Contrast'!AY3=\"1 Fault\",\"es\",\"\") & \" not have sufficient contrast. Please see the Non-text Contrast worksheet.\")","v":""},{"$f":"IF('Non-text Contrast'!AZ3=\"0 Faults\",\"\",LEFT('Non-text Contrast'!AZ3,FIND(\" \",'Non-text Contrast'!AZ3)-1) &\" combination\" & IF('Non-text Contrast'!AZ3=\"1 Fault\",\"\",\"s\") & \" of adjacent colours do\" & IF('Non-text Contrast'!AZ3=\"1 Fault\",\"es\",\"\") & \" not have sufficient contrast. Please see the Non-text Contrast worksheet.\")","v":""},{"$f":"IF('Non-text Contrast'!BA3=\"0 Faults\",\"\",LEFT('Non-text Contrast'!BA3,FIND(\" \",'Non-text Contrast'!BA3)-1) &\" combination\" & IF('Non-text Contrast'!BA3=\"1 Fault\",\"\",\"s\") & \" of adjacent colours do\" & IF('Non-text Contrast'!BA3=\"1 Fault\",\"es\",\"\") & \" not have sufficient contrast. Please see the Non-text Contrast worksheet.\")","v":""},{"$f":"IF('Non-text Contrast'!BB3=\"0 Faults\",\"\",LEFT('Non-text Contrast'!BB3,FIND(\" \",'Non-text Contrast'!BB3)-1) &\" combination\" & IF('Non-text Contrast'!BB3=\"1 Fault\",\"\",\"s\") & \" of adjacent colours do\" & IF('Non-text Contrast'!BB3=\"1 Fault\",\"es\",\"\") & \" not have sufficient contrast. Please see the Non-text Contrast worksheet.\")","v":""},{"$f":"IF('Non-text Contrast'!BC3=\"0 Faults\",\"\",LEFT('Non-text Contrast'!BC3,FIND(\" \",'Non-text Contrast'!BC3)-1) &\" combination\" & IF('Non-text Contrast'!BC3=\"1 Fault\",\"\",\"s\") & \" of adjacent colours do\" & IF('Non-text Contrast'!BC3=\"1 Fault\",\"es\",\"\") & \" not have sufficient contrast. Please see the Non-text Contrast worksheet.\")","v":""},{"$f":"IF('Non-text Contrast'!BD3=\"0 Faults\",\"\",LEFT('Non-text Contrast'!BD3,FIND(\" \",'Non-text Contrast'!BD3)-1) &\" combination\" & IF('Non-text Contrast'!BD3=\"1 Fault\",\"\",\"s\") & \" of adjacent colours do\" & IF('Non-text Contrast'!BD3=\"1 Fault\",\"es\",\"\") & \" not have sufficient contrast. Please see the Non-text Contrast worksheet.\")","v":""},{"$f":"IF('Non-text Contrast'!BE3=\"0 Faults\",\"\",LEFT('Non-text Contrast'!BE3,FIND(\" \",'Non-text Contrast'!BE3)-1) &\" combination\" & IF('Non-text Contrast'!BE3=\"1 Fault\",\"\",\"s\") & \" of adjacent colours do\" & IF('Non-text Contrast'!BE3=\"1 Fault\",\"es\",\"\") & \" not have sufficient contrast. Please see the Non-text Contrast worksheet.\")","v":""},{"$f":"IF('Non-text Contrast'!BF3=\"0 Faults\",\"\",LEFT('Non-text Contrast'!BF3,FIND(\" \",'Non-text Contrast'!BF3)-1) &\" combination\" & IF('Non-text Contrast'!BF3=\"1 Fault\",\"\",\"s\") & \" of adjacent colours do\" & IF('Non-text Contrast'!BF3=\"1 Fault\",\"es\",\"\") & \" not have sufficient contrast. Please see the Non-text Contrast worksheet.\")","v":""},{"$f":"IF('Non-text Contrast'!BG3=\"0 Faults\",\"\",LEFT('Non-text Contrast'!BG3,FIND(\" \",'Non-text Contrast'!BG3)-1) &\" combination\" & IF('Non-text Contrast'!BG3=\"1 Fault\",\"\",\"s\") & \" of adjacent colours do\" & IF('Non-text Contrast'!BG3=\"1 Fault\",\"es\",\"\") & \" not have sufficient contrast. Please see the Non-text Contrast worksheet.\")","v":""},{"$f":"IF('Non-text Contrast'!BH3=\"0 Faults\",\"\",LEFT('Non-text Contrast'!BH3,FIND(\" \",'Non-text Contrast'!BH3)-1) &\" combination\" & IF('Non-text Contrast'!BH3=\"1 Fault\",\"\",\"s\") & \" of adjacent colours do\" & IF('Non-text Contrast'!BH3=\"1 Fault\",\"es\",\"\") & \" not have sufficient contrast. Please see the Non-text Contrast worksheet.\")","v":""},{"$f":"IF('Non-text Contrast'!BI3=\"0 Faults\",\"\",LEFT('Non-text Contrast'!BI3,FIND(\" \",'Non-text Contrast'!BI3)-1) &\" combination\" & IF('Non-text Contrast'!BI3=\"1 Fault\",\"\",\"s\") & \" of adjacent colours do\" & IF('Non-text Contrast'!BI3=\"1 Fault\",\"es\",\"\") & \" not have sufficient contrast. Please see the Non-text Contrast worksheet.\")","v":""},{"$f":"IF('Non-text Contrast'!BJ3=\"0 Faults\",\"\",LEFT('Non-text Contrast'!BJ3,FIND(\" \",'Non-text Contrast'!BJ3)-1) &\" combination\" & IF('Non-text Contrast'!BJ3=\"1 Fault\",\"\",\"s\") & \" of adjacent colours do\" & IF('Non-text Contrast'!BJ3=\"1 Fault\",\"es\",\"\") & \" not have sufficient contrast. Please see the Non-text Contrast worksheet.\")","v":""},{"$f":"IF('Non-text Contrast'!BK3=\"0 Faults\",\"\",LEFT('Non-text Contrast'!BK3,FIND(\" \",'Non-text Contrast'!BK3)-1) &\" combination\" & IF('Non-text Contrast'!BK3=\"1 Fault\",\"\",\"s\") & \" of adjacent colours do\" & IF('Non-text Contrast'!BK3=\"1 Fault\",\"es\",\"\") & \" not have sufficient contrast. Please see the Non-text Contrast worksheet.\")","v":""},{"$f":"IF('Non-text Contrast'!BL3=\"0 Faults\",\"\",LEFT('Non-text Contrast'!BL3,FIND(\" \",'Non-text Contrast'!BL3)-1) &\" combination\" & IF('Non-text Contrast'!BL3=\"1 Fault\",\"\",\"s\") & \" of adjacent colours do\" & IF('Non-text Contrast'!BL3=\"1 Fault\",\"es\",\"\") & \" not have sufficient contrast. Please see the Non-text Contrast worksheet.\")","v":""},{"$f":"IF('Non-text Contrast'!BM3=\"0 Faults\",\"\",LEFT('Non-text Contrast'!BM3,FIND(\" \",'Non-text Contrast'!BM3)-1) &\" combination\" & IF('Non-text Contrast'!BM3=\"1 Fault\",\"\",\"s\") & \" of adjacent colours do\" & IF('Non-text Contrast'!BM3=\"1 Fault\",\"es\",\"\") & \" not have sufficient contrast. Please see the Non-text Contrast worksheet.\")","v":""},{"$f":"IF('Non-text Contrast'!BN3=\"0 Faults\",\"\",LEFT('Non-text Contrast'!BN3,FIND(\" \",'Non-text Contrast'!BN3)-1) &\" combination\" & IF('Non-text Contrast'!BN3=\"1 Fault\",\"\",\"s\") & \" of adjacent colours do\" & IF('Non-text Contrast'!BN3=\"1 Fault\",\"es\",\"\") & \" not have sufficient contrast. Please see the Non-text Contrast worksheet.\")","v":""},{"$f":"IF('Non-text Contrast'!BO3=\"0 Faults\",\"\",LEFT('Non-text Contrast'!BO3,FIND(\" \",'Non-text Contrast'!BO3)-1) &\" combination\" & IF('Non-text Contrast'!BO3=\"1 Fault\",\"\",\"s\") & \" of adjacent colours do\" & IF('Non-text Contrast'!BO3=\"1 Fault\",\"es\",\"\") & \" not have sufficient contrast. Please see the Non-text Contrast worksheet.\")","v":""},{"$f":"IF('Non-text Contrast'!BP3=\"0 Faults\",\"\",LEFT('Non-text Contrast'!BP3,FIND(\" \",'Non-text Contrast'!BP3)-1) &\" combination\" & IF('Non-text Contrast'!BP3=\"1 Fault\",\"\",\"s\") & \" of adjacent colours do\" & IF('Non-text Contrast'!BP3=\"1 Fault\",\"es\",\"\") & \" not have sufficient contrast. Please see the Non-text Contrast worksheet.\")","v":""},{"$f":"IF('Non-text Contrast'!BQ3=\"0 Faults\",\"\",LEFT('Non-text Contrast'!BQ3,FIND(\" \",'Non-text Contrast'!BQ3)-1) &\" combination\" & IF('Non-text Contrast'!BQ3=\"1 Fault\",\"\",\"s\") & \" of adjacent colours do\" & IF('Non-text Contrast'!BQ3=\"1 Fault\",\"es\",\"\") & \" not have sufficient contrast. Please see the Non-text Contrast worksheet.\")","v":""},{"$f":"IF('Non-text Contrast'!BR3=\"0 Faults\",\"\",LEFT('Non-text Contrast'!BR3,FIND(\" \",'Non-text Contrast'!BR3)-1) &\" combination\" & IF('Non-text Contrast'!BR3=\"1 Fault\",\"\",\"s\") & \" of adjacent colours do\" & IF('Non-text Contrast'!BR3=\"1 Fault\",\"es\",\"\") & \" not have sufficient contrast. Please see the Non-text Contrast worksheet.\")","v":""},{"$f":"IF('Non-text Contrast'!BS3=\"0 Faults\",\"\",LEFT('Non-text Contrast'!BS3,FIND(\" \",'Non-text Contrast'!BS3)-1) &\" combination\" & IF('Non-text Contrast'!BS3=\"1 Fault\",\"\",\"s\") & \" of adjacent colours do\" & IF('Non-text Contrast'!BS3=\"1 Fault\",\"es\",\"\") & \" not have sufficient contrast. Please see the Non-text Contrast worksheet.\")","v":""},{"$f":"IF('Non-text Contrast'!BT3=\"0 Faults\",\"\",LEFT('Non-text Contrast'!BT3,FIND(\" \",'Non-text Contrast'!BT3)-1) &\" combination\" & IF('Non-text Contrast'!BT3=\"1 Fault\",\"\",\"s\") & \" of adjacent colours do\" & IF('Non-text Contrast'!BT3=\"1 Fault\",\"es\",\"\") & \" not have sufficient contrast. Please see the Non-text Contrast worksheet.\")","v":""},{"$f":"IF('Non-text Contrast'!BU3=\"0 Faults\",\"\",LEFT('Non-text Contrast'!BU3,FIND(\" \",'Non-text Contrast'!BU3)-1) &\" combination\" & IF('Non-text Contrast'!BU3=\"1 Fault\",\"\",\"s\") & \" of adjacent colours do\" & IF('Non-text Contrast'!BU3=\"1 Fault\",\"es\",\"\") & \" not have sufficient contrast. Please see the Non-text Contrast worksheet.\")","v":""},{"$f":"IF('Non-text Contrast'!BV3=\"0 Faults\",\"\",LEFT('Non-text Contrast'!BV3,FIND(\" \",'Non-text Contrast'!BV3)-1) &\" combination\" & IF('Non-text Contrast'!BV3=\"1 Fault\",\"\",\"s\") & \" of adjacent colours do\" & IF('Non-text Contrast'!BV3=\"1 Fault\",\"es\",\"\") & \" not have sufficient contrast. Please see the Non-text Contrast worksheet.\")","v":""},{"$f":"IF('Non-text Contrast'!BW3=\"0 Faults\",\"\",LEFT('Non-text Contrast'!BW3,FIND(\" \",'Non-text Contrast'!BW3)-1) &\" combination\" & IF('Non-text Contrast'!BW3=\"1 Fault\",\"\",\"s\") & \" of adjacent colours do\" & IF('Non-text Contrast'!BW3=\"1 Fault\",\"es\",\"\") & \" not have sufficient contrast. Please see the Non-text Contrast worksheet.\")","v":""}]
["1.4.12","AA","Text Spacing","In content implemented using mark-up languages that support the following text style properties, no loss of content or functionality occurs by setting all of the following and by changing no other style property:\n\nLine height (line spacing) to at least 1.5 times the font size;\nSpacing following paragraphs to at least 2 times the font size;\nLetter spacing (tracking) to at least 0.12 times the font size;\nWord spacing to at least 0.16 times the font size.\nException: Human languages and scripts that do not make use of one or more of these text style properties in written text can conform using only the properties that exist for that combination of language and script.","PASS","PASS","PASS","PASS",null,"PASS","PASS",null,null,"PASS",null,null,"PASS","PASS","PASS",null,null,null,null,null,null,null,null,null,null,null,null,null,null,null,null,null,null,null,null,"PASS","PASS",null,null,"PASS"]
[]
["1.4.13","AA","Content on Hover or Focus","Where receiving and then removing pointer hover or keyboard focus triggers additional content to become visible and then hidden, the following are true:\n\nDismissable: A mechanism is available to dismiss the additional content without moving pointer hover or keyboard focus, unless the additional content communicates an input error or does not obscure or replace other content;\nHoverable: If pointer hover can trigger the additional content, then the pointer can be moved over the additional content without the additional content disappearing;\nPersistent: The additional content remains visible until the hover or focus trigger is removed, the user dismisses it, or its information is no longer valid.\nException: The visual presentation of the additional content is controlled by the user agent and is not modified by the author.\n","PASS","PASS","PASS","PASS",null,"PASS","PASS",null,null,"PASS",null,null,"PASS","PASS","PASS",null,null,null,null,null,null,null,null,null,null,null,null,null,null,null,null,null,null,null,null,"PASS","PASS",null,null,"PASS"]
[]
["W3C Ref.","Level.",null,"Principle 2: Operable - User interface components and navigation must be operable."]
["2.4.5","AA","Multiple Ways","More than one way is available to locate a Web page within a set of Web pages except where the Web Page is the result of, or a step in, a process. ","N/A","N/A","N/A","N/A",null,"N/A","N/A",null,null,"N/A",null,null,"N/A","N/A","N/A",null,null,null,null,null,null,null,null,null,null,null,null,null,null,null,null,null,null,null,null,"N/A","N/A",null,null,"N/A"]
[]
["2.4.6","AA","Headings and Labels","Headings and labels describe topic or purpose.","PASS","PASS","PASS","PASS",null,"PASS","PASS",null,null,"PASS",null,null,"NON COMPLIANT","PASS","PASS",null,null,null,null,null,null,null,null,null,null,null,null,null,null,null,null,null,null,null,null,"PASS","PASS",null,null,"PASS"]
[null,null,null,null,null,null,null,null,null,null,null,null,null,null,null,null,"The visually hidden text on the Next button says \"Next element\", which is not accurate and implies just the next slide will be shown. Amend it to \"Next four [items/slides/etc.]\", and likewise for the Previous button. In the mobile tablet and mobile phone responsive layouts, change this to \"Next two items \" and \"Next item\" respectively."]
["2.4.7","AA","Focus Visible","Any keyboard operable user interface has a mode of operation where the keyboard focus indicator is visible.","NON COMPLIANT","NON COMPLIANT","PASS","PASS",null,"PASS","PASS",null,null,"PASS",null,null,"PASS with comments","PASS","PASS",null,null,null,null,null,null,null,null,null,null,null,null,null,null,null,null,null,null,null,null,"PASS","PASS"]
[null,null,null,null,"At higher zoom levels the main menu becomes a hamburger button. However this button, and the X Close button that replaces it in the expanded menu, have no focus indicator. Give them both the same keyboard focus indicator as other components.","At higher zoom levels the main menu becomes a hamburger button. However this button, and the X Close button that replaces it in the expanded menu, have no focus indicator. Give them both the same keyboard focus indicator as other components.",null,null,null,null,null,null,null,null,null,null,"The focus indicator, on the first and last of the four items shown, loses two sides of the focus outline. This is not a WCAG fail, but looks bad."]
["W3C Ref.","Level.",null,"Principle 3: Understandable - Information and the operation of user interface must be understandable."]
["3.1.2","AA","Language of Parts","The human language of each passage or phrase in the content can be programmatically determined except for proper names, technical terms, words of indeterminate language, and words or phrases that have become part of the vernacular of the immediately surrounding text.","PASS","PASS","PASS","PASS",null,"PASS","PASS",null,null,"PASS",null,null,"PASS","PASS","PASS",null,null,null,null,null,null,null,null,null,null,null,null,null,null,null,null,null,null,null,null,"PASS","PASS",null,null,"PASS"]
[]
["3.2.3","AA","Consistent Navigation","Navigational mechanisms that are repeated on multiple Web pages within a set of Web pages occur in the same relative order each time they are repeated, unless a change is initiated by the user.","PASS","PASS","PASS","PASS",null,"PASS","PASS",null,null,"PASS",null,null,"PASS","PASS","PASS",null,null,null,null,null,null,null,null,null,null,null,null,null,null,null,null,null,null,null,null,"PASS","PASS",null,null,"PASS"]
[]
["3.2.4","AA","Consistent Identification","Components that have the same functionality within a set of Web pages are identified consistently.","PASS","PASS","PASS","PASS",null,"PASS","PASS",null,null,"PASS",null,null,"PASS","PASS","PASS",null,null,null,null,null,null,null,null,null,null,null,null,null,null,null,null,null,null,null,null,"PASS","PASS",null,null,"PASS"]
[]
["3.3.3","AA","Error Suggestion","If an input error is automatically detected and suggestions for correction are known, then the suggestions are provided to the user, unless it would jeopardize the security or purpose of the content.","PASS","PASS","PASS","PASS",null,"PASS","PASS",null,null,"PASS",null,null,"PASS","PASS","PASS",null,null,null,null,null,null,null,null,null,null,null,null,null,null,null,null,null,null,null,null,"PASS","PASS",null,null,"PASS"]
[]
["3.3.4","AA","Error Prevention (Legal, Financial, Data)","For Web pages that cause legal commitments or financial transactions for the user to occur, that modify or delete user-controllable data in data storage systems, or that submit user test responses, at least one of the following is true: Reversible, Checked, Confirmed.","PASS","PASS","PASS","PASS",null,"PASS","PASS",null,null,"PASS",null,null,"PASS","PASS","PASS",null,null,null,null,null,null,null,null,null,null,null,null,null,null,null,null,null,null,null,null,"PASS","PASS",null,null,"PASS"]
[]
["W3C Ref.","Level.",null,"Guideline 4.1 Compatible: Maximize compatibility with current and future user agents, including assistive technologies."]
["4.1.3","AA","Status Messages","In content implemented using mark-up languages, status messages can be programmatically determined through role or properties such that they can be presented to the user by assistive technologies without receiving focus.","PASS","PASS","PASS","PASS",null,"PASS","PASS",null,null,"PASS",null,null,"PASS","PASS","PASS",null,null,null,null,null,null,null,null,null,null,null,null,null,null,null,null,null,null,null,null,"PASS","PASS",null,null,"PASS"]
[]
[]
[null,null,"Level AAA Success Criteria"]
["W3C Ref.","Level.",null,"Principle 1: Perceivable - Information and user interface components must be presentable to users in ways they can perceive."]
["1.2.6","AAA","Sign Language (Prerecorded)","Sign language interpretation is provided for all prerecorded audio content in synchronized media.","NOT TESTED","NOT TESTED","NOT TESTED","NOT TESTED","NOT TESTED","NOT TESTED","NOT TESTED","NOT TESTED","NOT TESTED","NOT TESTED","NOT TESTED","NOT TESTED","NOT TESTED","NOT TESTED","NOT TESTED","NOT TESTED","NOT TESTED","NOT TESTED","NOT TESTED","NOT TESTED","NOT TESTED","NOT TESTED","NOT TESTED","NOT TESTED","NOT TESTED","NOT TESTED","NOT TESTED","NOT TESTED","NOT TESTED","NOT TESTED","NOT TESTED","NOT TESTED","NOT TESTED","NOT TESTED","NOT TESTED","NOT TESTED","NOT TESTED","NOT TESTED","NOT TESTED","NOT TESTED","NOT TESTED","NOT TESTED","NOT TESTED","NOT TESTED","NOT TESTED","NOT TESTED","NOT TESTED","NOT TESTED","NOT TESTED","NOT TESTED"]
[null,null,null,null,"When testing for compliance with AA, leave all AAA results set to Not Tested.\n\nWhen testing for compliance with AAA, delete the Not Tested result setting from all 50 columns even if fewer than 50 are being tested."]
["1.2.7","AAA","Extended Audio Description (Prerecorded)","Where pauses in foreground audio are insufficient to allow audio descriptions to convey the sense of the video, extended audio description is provided for all prerecorded video content in synchronized media.","NOT TESTED","NOT TESTED","NOT TESTED","NOT TESTED","NOT TESTED","NOT TESTED","NOT TESTED","NOT TESTED","NOT TESTED","NOT TESTED","NOT TESTED","NOT TESTED","NOT TESTED","NOT TESTED","NOT TESTED","NOT TESTED","NOT TESTED","NOT TESTED","NOT TESTED","NOT TESTED","NOT TESTED","NOT TESTED","NOT TESTED","NOT TESTED","NOT TESTED","NOT TESTED","NOT TESTED","NOT TESTED","NOT TESTED","NOT TESTED","NOT TESTED","NOT TESTED","NOT TESTED","NOT TESTED","NOT TESTED","NOT TESTED","NOT TESTED","NOT TESTED","NOT TESTED","NOT TESTED","NOT TESTED","NOT TESTED","NOT TESTED","NOT TESTED","NOT TESTED","NOT TESTED","NOT TESTED","NOT TESTED","NOT TESTED","NOT TESTED"]
[]
["1.2.8","AAA","Media Alternative (Prerecorded)","An alternative for time-based media is provided for all prerecorded synchronized media and for all prerecorded video-only media.","NOT TESTED","NOT TESTED","NOT TESTED","NOT TESTED","NOT TESTED","NOT TESTED","NOT TESTED","NOT TESTED","NOT TESTED","NOT TESTED","NOT TESTED","NOT TESTED","NOT TESTED","NOT TESTED","NOT TESTED","NOT TESTED","NOT TESTED","NOT TESTED","NOT TESTED","NOT TESTED","NOT TESTED","NOT TESTED","NOT TESTED","NOT TESTED","NOT TESTED","NOT TESTED","NOT TESTED","NOT TESTED","NOT TESTED","NOT TESTED","NOT TESTED","NOT TESTED","NOT TESTED","NOT TESTED","NOT TESTED","NOT TESTED","NOT TESTED","NOT TESTED","NOT TESTED","NOT TESTED","NOT TESTED","NOT TESTED","NOT TESTED","NOT TESTED","NOT TESTED","NOT TESTED","NOT TESTED","NOT TESTED","NOT TESTED","NOT TESTED"]
[]
["1.2.9","AAA","Audio-only (Live)","An alternative for time-based media that presents equivalent information for live audio-only content is provided.","NOT TESTED","NOT TESTED","NOT TESTED","NOT TESTED","NOT TESTED","NOT TESTED","NOT TESTED","NOT TESTED","NOT TESTED","NOT TESTED","NOT TESTED","NOT TESTED","NOT TESTED","NOT TESTED","NOT TESTED","NOT TESTED","NOT TESTED","NOT TESTED","NOT TESTED","NOT TESTED","NOT TESTED","NOT TESTED","NOT TESTED","NOT TESTED","NOT TESTED","NOT TESTED","NOT TESTED","NOT TESTED","NOT TESTED","NOT TESTED","NOT TESTED","NOT TESTED","NOT TESTED","NOT TESTED","NOT TESTED","NOT TESTED","NOT TESTED","NOT TESTED","NOT TESTED","NOT TESTED","NOT TESTED","NOT TESTED","NOT TESTED","NOT TESTED","NOT TESTED","NOT TESTED","NOT TESTED","NOT TESTED","NOT TESTED","NOT TESTED"]
[]
["1.3.6","AAA","Identify Purpose","In content implemented using markup languages, the purpose of User Interface Components, icons, and regions can be programmatically determined.","NOT TESTED","NOT TESTED","NOT TESTED","NOT TESTED","NOT TESTED","NOT TESTED","NOT TESTED","NOT TESTED","NOT TESTED","NOT TESTED","NOT TESTED","NOT TESTED","NOT TESTED","NOT TESTED","NOT TESTED","NOT TESTED","NOT TESTED","NOT TESTED","NOT TESTED","NOT TESTED","NOT TESTED","NOT TESTED","NOT TESTED","NOT TESTED","NOT TESTED","NOT TESTED","NOT TESTED","NOT TESTED","NOT TESTED","NOT TESTED","NOT TESTED","NOT TESTED","NOT TESTED","NOT TESTED","NOT TESTED","NOT TESTED","NOT TESTED","NOT TESTED","NOT TESTED","NOT TESTED","NOT TESTED","NOT TESTED","NOT TESTED","NOT TESTED","NOT TESTED","NOT TESTED","NOT TESTED","NOT TESTED","NOT TESTED","NOT TESTED"]
[]
["1.4.6","AAA","Contrast (Enhanced)","The visual presentation of text and images of text has a contrast ratio of at least 7:1, except for the following:\n\nLarge Text: Large-scale text and images of large-scale text have a contrast ratio of at least 4.5:1;\nIncidental: Text or images of text that are part of an inactive user interface component, that are pure decoration, that are not visible to anyone, or that are part of a picture that contains significant other visual content, have no contrast requirement.\nLogotypes: Text that is part of a logo or brand name has no contrast requirement.","NOT TESTED","NOT TESTED","NOT TESTED","NOT TESTED","NOT TESTED","NOT TESTED","NOT TESTED","NOT TESTED","NOT TESTED","NOT TESTED","NOT TESTED","NOT TESTED","NOT TESTED","NOT TESTED","NOT TESTED","NOT TESTED","NOT TESTED","NOT TESTED","NOT TESTED","NOT TESTED","NOT TESTED","NOT TESTED","NOT TESTED","NOT TESTED","NOT TESTED","NOT TESTED","NOT TESTED","NOT TESTED","NOT TESTED","NOT TESTED","NOT TESTED","NOT TESTED","NOT TESTED","NOT TESTED","NOT TESTED","NOT TESTED","NOT TESTED","NOT TESTED","NOT TESTED","NOT TESTED","NOT TESTED","NOT TESTED","NOT TESTED","NOT TESTED","NOT TESTED","NOT TESTED","NOT TESTED","NOT TESTED","NOT TESTED","NOT TESTED"]
[]
["1.4.7","AAA","Low or No Background Audio","For prerecorded audio-only content that (1) contains primarily speech in the foreground, (2) is not an audio CAPTCHA or audio logo, and (3) is not vocalization intended to be primarily musical expression such as singing or rapping, at least one of the following is true:\n\nNo Background: The audio does not contain background sounds.\nTurn Off: The background sounds can be turned off.\n20 dB: The background sounds are at least 20 decibels lower than the foreground speech content, with the exception of occasional sounds that last for only one or two seconds.","NOT TESTED","NOT TESTED","NOT TESTED","NOT TESTED","NOT TESTED","NOT TESTED","NOT TESTED","NOT TESTED","NOT TESTED","NOT TESTED","NOT TESTED","NOT TESTED","NOT TESTED","NOT TESTED","NOT TESTED","NOT TESTED","NOT TESTED","NOT TESTED","NOT TESTED","NOT TESTED","NOT TESTED","NOT TESTED","NOT TESTED","NOT TESTED","NOT TESTED","NOT TESTED","NOT TESTED","NOT TESTED","NOT TESTED","NOT TESTED","NOT TESTED","NOT TESTED","NOT TESTED","NOT TESTED","NOT TESTED","NOT TESTED","NOT TESTED","NOT TESTED","NOT TESTED","NOT TESTED","NOT TESTED","NOT TESTED","NOT TESTED","NOT TESTED","NOT TESTED","NOT TESTED","NOT TESTED","NOT TESTED","NOT TESTED","NOT TESTED"]
[]
["1.4.8","AAA","Visual Presentation","For the visual presentation of blocks of text, a mechanism is available to achieve the following:\n\na) Foreground and background colors can be selected by the user.\nb) Width is no more than 80 characters or glyphs (40 if CJK).\nc) Text is not justified (aligned to both the left and the right margins).\nd) Line spacing (leading) is at least space-and-a-half within paragraphs, and paragraph spacing is at least 1.5 times larger than the line spacing.\ne) Text can be resized without assistive technology up to 200 percent in a way that does not require the user to scroll horizontally to read a line of text on a full-screen window.","NOT TESTED","NOT TESTED","NOT TESTED","NOT TESTED","NOT TESTED","NOT TESTED","NOT TESTED","NOT TESTED","NOT TESTED","NOT TESTED","NOT TESTED","NOT TESTED","NOT TESTED","NOT TESTED","NOT TESTED","NOT TESTED","NOT TESTED","NOT TESTED","NOT TESTED","NOT TESTED","NOT TESTED","NOT TESTED","NOT TESTED","NOT TESTED","NOT TESTED","NOT TESTED","NOT TESTED","NOT TESTED","NOT TESTED","NOT TESTED","NOT TESTED","NOT TESTED","NOT TESTED","NOT TESTED","NOT TESTED","NOT TESTED","NOT TESTED","NOT TESTED","NOT TESTED","NOT TESTED","NOT TESTED","NOT TESTED","NOT TESTED","NOT TESTED","NOT TESTED","NOT TESTED","NOT TESTED","NOT TESTED","NOT TESTED","NOT TESTED"]
[]
["1.4.9","AAA","Images of Text (No Exception)","Images of text are only used for pure decoration or where a particular presentation of text is essential to the information being conveyed.","NOT TESTED","NOT TESTED","NOT TESTED","NOT TESTED","NOT TESTED","NOT TESTED","NOT TESTED","NOT TESTED","NOT TESTED","NOT TESTED","NOT TESTED","NOT TESTED","NOT TESTED","NOT TESTED","NOT TESTED","NOT TESTED","NOT TESTED","NOT TESTED","NOT TESTED","NOT TESTED","NOT TESTED","NOT TESTED","NOT TESTED","NOT TESTED","NOT TESTED","NOT TESTED","NOT TESTED","NOT TESTED","NOT TESTED","NOT TESTED","NOT TESTED","NOT TESTED","NOT TESTED","NOT TESTED","NOT TESTED","NOT TESTED","NOT TESTED","NOT TESTED","NOT TESTED","NOT TESTED","NOT TESTED","NOT TESTED","NOT TESTED","NOT TESTED","NOT TESTED","NOT TESTED","NOT TESTED","NOT TESTED","NOT TESTED","NOT TESTED"]
[]
["2.1.3","AAA","Keyboard (No Exception)","All functionality of the content is operable through a keyboard interface without requiring specific timings for individual keystrokes.","NOT TESTED","NOT TESTED","NOT TESTED","NOT TESTED","NOT TESTED","NOT TESTED","NOT TESTED","NOT TESTED","NOT TESTED","NOT TESTED","NOT TESTED","NOT TESTED","NOT TESTED","NOT TESTED","NOT TESTED","NOT TESTED","NOT TESTED","NOT TESTED","NOT TESTED","NOT TESTED","NOT TESTED","NOT TESTED","NOT TESTED","NOT TESTED","NOT TESTED","NOT TESTED","NOT TESTED","NOT TESTED","NOT TESTED","NOT TESTED","NOT TESTED","NOT TESTED","NOT TESTED","NOT TESTED","NOT TESTED","NOT TESTED","NOT TESTED","NOT TESTED","NOT TESTED","NOT TESTED","NOT TESTED","NOT TESTED","NOT TESTED","NOT TESTED","NOT TESTED","NOT TESTED","NOT TESTED","NOT TESTED","NOT TESTED","NOT TESTED"]
[]
["2.2.3","AAA","No Timing","Timing is not an essential part of the event or activity presented by the content, except for non-interactive synchronized media and real-time events.","NOT TESTED","NOT TESTED","NOT TESTED","NOT TESTED","NOT TESTED","NOT TESTED","NOT TESTED","NOT TESTED","NOT TESTED","NOT TESTED","NOT TESTED","NOT TESTED","NOT TESTED","NOT TESTED","NOT TESTED","NOT TESTED","NOT TESTED","NOT TESTED","NOT TESTED","NOT TESTED","NOT TESTED","NOT TESTED","NOT TESTED","NOT TESTED","NOT TESTED","NOT TESTED","NOT TESTED","NOT TESTED","NOT TESTED","NOT TESTED","NOT TESTED","NOT TESTED","NOT TESTED","NOT TESTED","NOT TESTED","NOT TESTED","NOT TESTED","NOT TESTED","NOT TESTED","NOT TESTED","NOT TESTED","NOT TESTED","NOT TESTED","NOT TESTED","NOT TESTED","NOT TESTED","NOT TESTED","NOT TESTED","NOT TESTED","NOT TESTED"]
[]
["2.2.4","AAA","Interruptions","Interruptions can be postponed or suppressed by the user, except interruptions involving an emergency.","NOT TESTED","NOT TESTED","NOT TESTED","NOT TESTED","NOT TESTED","NOT TESTED","NOT TESTED","NOT TESTED","NOT TESTED","NOT TESTED","NOT TESTED","NOT TESTED","NOT TESTED","NOT TESTED","NOT TESTED","NOT TESTED","NOT TESTED","NOT TESTED","NOT TESTED","NOT TESTED","NOT TESTED","NOT TESTED","NOT TESTED","NOT TESTED","NOT TESTED","NOT TESTED","NOT TESTED","NOT TESTED","NOT TESTED","NOT TESTED","NOT TESTED","NOT TESTED","NOT TESTED","NOT TESTED","NOT TESTED","NOT TESTED","NOT TESTED","NOT TESTED","NOT TESTED","NOT TESTED","NOT TESTED","NOT TESTED","NOT TESTED","NOT TESTED","NOT TESTED","NOT TESTED","NOT TESTED","NOT TESTED","NOT TESTED","NOT TESTED"]
[]
["2.2.5","AAA","Re-authenticating","When an authenticated session expires, the user can continue the activity without loss of data after re-authenticating.","NOT TESTED","NOT TESTED","NOT TESTED","NOT TESTED","NOT TESTED","NOT TESTED","NOT TESTED","NOT TESTED","NOT TESTED","NOT TESTED","NOT TESTED","NOT TESTED","NOT TESTED","NOT TESTED","NOT TESTED","NOT TESTED","NOT TESTED","NOT TESTED","NOT TESTED","NOT TESTED","NOT TESTED","NOT TESTED","NOT TESTED","NOT TESTED","NOT TESTED","NOT TESTED","NOT TESTED","NOT TESTED","NOT TESTED","NOT TESTED","NOT TESTED","NOT TESTED","NOT TESTED","NOT TESTED","NOT TESTED","NOT TESTED","NOT TESTED","NOT TESTED","NOT TESTED","NOT TESTED","NOT TESTED","NOT TESTED","NOT TESTED","NOT TESTED","NOT TESTED","NOT TESTED","NOT TESTED","NOT TESTED","NOT TESTED","NOT TESTED"]
[]
["2.2.6","AAA","Timeouts","Users are warned of the duration of any user inactivity that could cause data loss, unless the data is preserved for more than 20 hours when the user does not take any actions.","NOT TESTED","NOT TESTED","NOT TESTED","NOT TESTED","NOT TESTED","NOT TESTED","NOT TESTED","NOT TESTED","NOT TESTED","NOT TESTED","NOT TESTED","NOT TESTED","NOT TESTED","NOT TESTED","NOT TESTED","NOT TESTED","NOT TESTED","NOT TESTED","NOT TESTED","NOT TESTED","NOT TESTED","NOT TESTED","NOT TESTED","NOT TESTED","NOT TESTED","NOT TESTED","NOT TESTED","NOT TESTED","NOT TESTED","NOT TESTED","NOT TESTED","NOT TESTED","NOT TESTED","NOT TESTED","NOT TESTED","NOT TESTED","NOT TESTED","NOT TESTED","NOT TESTED","NOT TESTED","NOT TESTED","NOT TESTED","NOT TESTED","NOT TESTED","NOT TESTED","NOT TESTED","NOT TESTED","NOT TESTED","NOT TESTED","NOT TESTED"]
[]
["2.3.2","AAA","Three Flashes","Web pages do not contain anything that flashes more than three times in any one second period.","NOT TESTED","NOT TESTED","NOT TESTED","NOT TESTED","NOT TESTED","NOT TESTED","NOT TESTED","NOT TESTED","NOT TESTED","NOT TESTED","NOT TESTED","NOT TESTED","NOT TESTED","NOT TESTED","NOT TESTED","NOT TESTED","NOT TESTED","NOT TESTED","NOT TESTED","NOT TESTED","NOT TESTED","NOT TESTED","NOT TESTED","NOT TESTED","NOT TESTED","NOT TESTED","NOT TESTED","NOT TESTED","NOT TESTED","NOT TESTED","NOT TESTED","NOT TESTED","NOT TESTED","NOT TESTED","NOT TESTED","NOT TESTED","NOT TESTED","NOT TESTED","NOT TESTED","NOT TESTED","NOT TESTED","NOT TESTED","NOT TESTED","NOT TESTED","NOT TESTED","NOT TESTED","NOT TESTED","NOT TESTED","NOT TESTED","NOT TESTED"]
[]
["2.3.3","AAA","Animation from Interactions","Motion animation triggered by interaction can be disabled, unless the animation is essential to the functionality or the information being conveyed.","NOT TESTED","NOT TESTED","NOT TESTED","NOT TESTED","NOT TESTED","NOT TESTED","NOT TESTED","NOT TESTED","NOT TESTED","NOT TESTED","NOT TESTED","NOT TESTED","NOT TESTED","NOT TESTED","NOT TESTED","NOT TESTED","NOT TESTED","NOT TESTED","NOT TESTED","NOT TESTED","NOT TESTED","NOT TESTED","NOT TESTED","NOT TESTED","NOT TESTED","NOT TESTED","NOT TESTED","NOT TESTED","NOT TESTED","NOT TESTED","NOT TESTED","NOT TESTED","NOT TESTED","NOT TESTED","NOT TESTED","NOT TESTED","NOT TESTED","NOT TESTED","NOT TESTED","NOT TESTED","NOT TESTED","NOT TESTED","NOT TESTED","NOT TESTED","NOT TESTED","NOT TESTED","NOT TESTED","NOT TESTED","NOT TESTED","NOT TESTED"]
[]
["2.4.8","AAA","Location","Information about the user's location within a set of Web pages is available.","NOT TESTED","NOT TESTED","NOT TESTED","NOT TESTED","NOT TESTED","NOT TESTED","NOT TESTED","NOT TESTED","NOT TESTED","NOT TESTED","NOT TESTED","NOT TESTED","NOT TESTED","NOT TESTED","NOT TESTED","NOT TESTED","NOT TESTED","NOT TESTED","NOT TESTED","NOT TESTED","NOT TESTED","NOT TESTED","NOT TESTED","NOT TESTED","NOT TESTED","NOT TESTED","NOT TESTED","NOT TESTED","NOT TESTED","NOT TESTED","NOT TESTED","NOT TESTED","NOT TESTED","NOT TESTED","NOT TESTED","NOT TESTED","NOT TESTED","NOT TESTED","NOT TESTED","NOT TESTED","NOT TESTED","NOT TESTED","NOT TESTED","NOT TESTED","NOT TESTED","NOT TESTED","NOT TESTED","NOT TESTED","NOT TESTED","NOT TESTED"]
[]
["2.4.9","AAA","Link Purpose (Link Only)","A mechanism is available to allow the purpose of each link to be identified from link text alone, except where the purpose of the link would be ambiguous to users in general.","NOT TESTED","NOT TESTED","NOT TESTED","NOT TESTED","NOT TESTED","NOT TESTED","NOT TESTED","NOT TESTED","NOT TESTED","NOT TESTED","NOT TESTED","NOT TESTED","NOT TESTED","NOT TESTED","NOT TESTED","NOT TESTED","NOT TESTED","NOT TESTED","NOT TESTED","NOT TESTED","NOT TESTED","NOT TESTED","NOT TESTED","NOT TESTED","NOT TESTED","NOT TESTED","NOT TESTED","NOT TESTED","NOT TESTED","NOT TESTED","NOT TESTED","NOT TESTED","NOT TESTED","NOT TESTED","NOT TESTED","NOT TESTED","NOT TESTED","NOT TESTED","NOT TESTED","NOT TESTED","NOT TESTED","NOT TESTED","NOT TESTED","NOT TESTED","NOT TESTED","NOT TESTED","NOT TESTED","NOT TESTED","NOT TESTED","NOT TESTED"]
[]
["2.4.10","AAA","Section Headings","Section headings are used to organize the content.","NOT TESTED","NOT TESTED","NOT TESTED","NOT TESTED","NOT TESTED","NOT TESTED","NOT TESTED","NOT TESTED","NOT TESTED","NOT TESTED","NOT TESTED","NOT TESTED","NOT TESTED","NOT TESTED","NOT TESTED","NOT TESTED","NOT TESTED","NOT TESTED","NOT TESTED","NOT TESTED","NOT TESTED","NOT TESTED","NOT TESTED","NOT TESTED","NOT TESTED","NOT TESTED","NOT TESTED","NOT TESTED","NOT TESTED","NOT TESTED","NOT TESTED","NOT TESTED","NOT TESTED","NOT TESTED","NOT TESTED","NOT TESTED","NOT TESTED","NOT TESTED","NOT TESTED","NOT TESTED","NOT TESTED","NOT TESTED","NOT TESTED","NOT TESTED","NOT TESTED","NOT TESTED","NOT TESTED","NOT TESTED","NOT TESTED","NOT TESTED"]
[]
["2.5.5","AAA","Target Size","The size of the target for pointer inputs is at least 44 by 44 CSS pixels except when:\n\nEquivalent: The target is available through an equivalent link or control on the same page that is at least 44 by 44 CSS pixels;\nInline: The target is in a sentence or block of text;\nUser Agent Control: The size of the target is determined by the user agent and is not modified by the author;\nEssential: A particular presentation of the target is essential to the information being conveyed.","NOT TESTED","NOT TESTED","NOT TESTED","NOT TESTED","NOT TESTED","NOT TESTED","NOT TESTED","NOT TESTED","NOT TESTED","NOT TESTED","NOT TESTED","NOT TESTED","NOT TESTED","NOT TESTED","NOT TESTED","NOT TESTED","NOT TESTED","NOT TESTED","NOT TESTED","NOT TESTED","NOT TESTED","NOT TESTED","NOT TESTED","NOT TESTED","NOT TESTED","NOT TESTED","NOT TESTED","NOT TESTED","NOT TESTED","NOT TESTED","NOT TESTED","NOT TESTED","NOT TESTED","NOT TESTED","NOT TESTED","NOT TESTED","NOT TESTED","NOT TESTED","NOT TESTED","NOT TESTED","NOT TESTED","NOT TESTED","NOT TESTED","NOT TESTED","NOT TESTED","NOT TESTED","NOT TESTED","NOT TESTED","NOT TESTED","NOT TESTED"]
[]
["2.5.6","AAA","Concurrent Input Mechanisms","Web content does not restrict use of input modalities available on a platform except where the restriction is essential, required to ensure the security of the content, or required to respect user settings.","NOT TESTED","NOT TESTED","NOT TESTED","NOT TESTED","NOT TESTED","NOT TESTED","NOT TESTED","NOT TESTED","NOT TESTED","NOT TESTED","NOT TESTED","NOT TESTED","NOT TESTED","NOT TESTED","NOT TESTED","NOT TESTED","NOT TESTED","NOT TESTED","NOT TESTED","NOT TESTED","NOT TESTED","NOT TESTED","NOT TESTED","NOT TESTED","NOT TESTED","NOT TESTED","NOT TESTED","NOT TESTED","NOT TESTED","NOT TESTED","NOT TESTED","NOT TESTED","NOT TESTED","NOT TESTED","NOT TESTED","NOT TESTED","NOT TESTED","NOT TESTED","NOT TESTED","NOT TESTED","NOT TESTED","NOT TESTED","NOT TESTED","NOT TESTED","NOT TESTED","NOT TESTED","NOT TESTED","NOT TESTED","NOT TESTED","NOT TESTED"]
[]
["3.1.3","AAA","Unusual Words","A mechanism is available for identifying specific definitions of words or phrases used in an unusual or restricted way, including idioms and jargon.","NOT TESTED","NOT TESTED","NOT TESTED","NOT TESTED","NOT TESTED","NOT TESTED","NOT TESTED","NOT TESTED","NOT TESTED","NOT TESTED","NOT TESTED","NOT TESTED","NOT TESTED","NOT TESTED","NOT TESTED","NOT TESTED","NOT TESTED","NOT TESTED","NOT TESTED","NOT TESTED","NOT TESTED","NOT TESTED","NOT TESTED","NOT TESTED","NOT TESTED","NOT TESTED","NOT TESTED","NOT TESTED","NOT TESTED","NOT TESTED","NOT TESTED","NOT TESTED","NOT TESTED","NOT TESTED","NOT TESTED","NOT TESTED","NOT TESTED","NOT TESTED","NOT TESTED","NOT TESTED","NOT TESTED","NOT TESTED","NOT TESTED","NOT TESTED","NOT TESTED","NOT TESTED","NOT TESTED","NOT TESTED","NOT TESTED","NOT TESTED"]
[]
["3.1.4","AAA","Abbreviations","A mechanism for identifying the expanded form or meaning of abbreviations is available.","NOT TESTED","NOT TESTED","NOT TESTED","NOT TESTED","NOT TESTED","NOT TESTED","NOT TESTED","NOT TESTED","NOT TESTED","NOT TESTED","NOT TESTED","NOT TESTED","NOT TESTED","NOT TESTED","NOT TESTED","NOT TESTED","NOT TESTED","NOT TESTED","NOT TESTED","NOT TESTED","NOT TESTED","NOT TESTED","NOT TESTED","NOT TESTED","NOT TESTED","NOT TESTED","NOT TESTED","NOT TESTED","NOT TESTED","NOT TESTED","NOT TESTED","NOT TESTED","NOT TESTED","NOT TESTED","NOT TESTED","NOT TESTED","NOT TESTED","NOT TESTED","NOT TESTED","NOT TESTED","NOT TESTED","NOT TESTED","NOT TESTED","NOT TESTED","NOT TESTED","NOT TESTED","NOT TESTED","NOT TESTED","NOT TESTED","NOT TESTED"]
[]
["3.1.5","AAA","Reading Level","When text requires reading ability more advanced than the lower secondary education level after removal of proper names and titles, supplemental content, or a version that does not require reading ability more advanced than the lower secondary education level, is available.","NOT TESTED","NOT TESTED","NOT TESTED","NOT TESTED","NOT TESTED","NOT TESTED","NOT TESTED","NOT TESTED","NOT TESTED","NOT TESTED","NOT TESTED","NOT TESTED","NOT TESTED","NOT TESTED","NOT TESTED","NOT TESTED","NOT TESTED","NOT TESTED","NOT TESTED","NOT TESTED","NOT TESTED","NOT TESTED","NOT TESTED","NOT TESTED","NOT TESTED","NOT TESTED","NOT TESTED","NOT TESTED","NOT TESTED","NOT TESTED","NOT TESTED","NOT TESTED","NOT TESTED","NOT TESTED","NOT TESTED","NOT TESTED","NOT TESTED","NOT TESTED","NOT TESTED","NOT TESTED","NOT TESTED","NOT TESTED","NOT TESTED","NOT TESTED","NOT TESTED","NOT TESTED","NOT TESTED","NOT TESTED","NOT TESTED","NOT TESTED"]
[]
["3.1.6","AAA","Pronunciation","A mechanism is available for identifying specific pronunciation of words where meaning of the words, in context, is ambiguous without knowing the pronunciation.","NOT TESTED","NOT TESTED","NOT TESTED","NOT TESTED","NOT TESTED","NOT TESTED","NOT TESTED","NOT TESTED","NOT TESTED","NOT TESTED","NOT TESTED","NOT TESTED","NOT TESTED","NOT TESTED","NOT TESTED","NOT TESTED","NOT TESTED","NOT TESTED","NOT TESTED","NOT TESTED","NOT TESTED","NOT TESTED","NOT TESTED","NOT TESTED","NOT TESTED","NOT TESTED","NOT TESTED","NOT TESTED","NOT TESTED","NOT TESTED","NOT TESTED","NOT TESTED","NOT TESTED","NOT TESTED","NOT TESTED","NOT TESTED","NOT TESTED","NOT TESTED","NOT TESTED","NOT TESTED","NOT TESTED","NOT TESTED","NOT TESTED","NOT TESTED","NOT TESTED","NOT TESTED","NOT TESTED","NOT TESTED","NOT TESTED","NOT TESTED"]
[]
["3.2.5","AAA","Change on Request","Changes of context are initiated only by user request or a mechanism is available to turn off such changes.","NOT TESTED","NOT TESTED","NOT TESTED","NOT TESTED","NOT TESTED","NOT TESTED","NOT TESTED","NOT TESTED","NOT TESTED","NOT TESTED","NOT TESTED","NOT TESTED","NOT TESTED","NOT TESTED","NOT TESTED","NOT TESTED","NOT TESTED","NOT TESTED","NOT TESTED","NOT TESTED","NOT TESTED","NOT TESTED","NOT TESTED","NOT TESTED","NOT TESTED","NOT TESTED","NOT TESTED","NOT TESTED","NOT TESTED","NOT TESTED","NOT TESTED","NOT TESTED","NOT TESTED","NOT TESTED","NOT TESTED","NOT TESTED","NOT TESTED","NOT TESTED","NOT TESTED","NOT TESTED","NOT TESTED","NOT TESTED","NOT TESTED","NOT TESTED","NOT TESTED","NOT TESTED","NOT TESTED","NOT TESTED","NOT TESTED","NOT TESTED"]
[]
["3.3.5","AAA","Help","Context-sensitive help is available.","NOT TESTED","NOT TESTED","NOT TESTED","NOT TESTED","NOT TESTED","NOT TESTED","NOT TESTED","NOT TESTED","NOT TESTED","NOT TESTED","NOT TESTED","NOT TESTED","NOT TESTED","NOT TESTED","NOT TESTED","NOT TESTED","NOT TESTED","NOT TESTED","NOT TESTED","NOT TESTED","NOT TESTED","NOT TESTED","NOT TESTED","NOT TESTED","NOT TESTED","NOT TESTED","NOT TESTED","NOT TESTED","NOT TESTED","NOT TESTED","NOT TESTED","NOT TESTED","NOT TESTED","NOT TESTED","NOT TESTED","NOT TESTED","NOT TESTED","NOT TESTED","NOT TESTED","NOT TESTED","NOT TESTED","NOT TESTED","NOT TESTED","NOT TESTED","NOT TESTED","NOT TESTED","NOT TESTED","NOT TESTED","NOT TESTED","NOT TESTED"]
[]
["3.3.6","AAA","Error Prevention (All)","For Web pages that require the user to submit information, at least one of the following is true:\n\nReversible: Submissions are reversible.\nChecked: Data entered by the user is checked for input errors and the user is provided an opportunity to correct them.\nConfirmed: A mechanism is available for reviewing, confirming, and correcting information before finalizing the submission.","NOT TESTED","NOT TESTED","NOT TESTED","NOT TESTED","NOT TESTED","NOT TESTED","NOT TESTED","NOT TESTED","NOT TESTED","NOT TESTED","NOT TESTED","NOT TESTED","NOT TESTED","NOT TESTED","NOT TESTED","NOT TESTED","NOT TESTED","NOT TESTED","NOT TESTED","NOT TESTED","NOT TESTED","NOT TESTED","NOT TESTED","NOT TESTED","NOT TESTED","NOT TESTED","NOT TESTED","NOT TESTED","NOT TESTED","NOT TESTED","NOT TESTED","NOT TESTED","NOT TESTED","NOT TESTED","NOT TESTED","NOT TESTED","NOT TESTED","NOT TESTED","NOT TESTED","NOT TESTED","NOT TESTED","NOT TESTED","NOT TESTED","NOT TESTED","NOT TESTED","NOT TESTED","NOT TESTED","NOT TESTED","NOT TESTED","NOT TESTED"]

{"sheet":"Colour Contrast Analysis","index":4,"n_rows":73,"n_cols":74,"rows_kept":73,"cut":false,"hidden":false,"merged":[[0,0,1,21]]}
["\nColour Contrast Analysis for combinations\nof background and foreground colours",null,null,null,null,null,null,null,null,null,null,null,null,null,null,null,null,null,null,null,null,null,null,null,{"$f":"(Statistics!B14)","v":"Header (logged out)"},{"$f":"(Statistics!B15)","v":"Header (logged in)"},{"$f":"(Statistics!B16)","v":"Footer"},{"$f":"(Statistics!B17)","v":"Hero area"},{"$f":"(Statistics!B18)","v":"Search"},{"$f":"(Statistics!B19)","v":"Featured"},{"$f":"(Statistics!B20)","v":"Have your say"},{"$f":"(Statistics!B21)","v":"Quick Poll"},{"$f":"(Statistics!B22)","v":"Quick Poll Results"},{"$f":"(Statistics!B23)","v":"Updates and impact"},{"$f":"(Statistics!B24)","v":"Start a discussion"},{"$f":"(Statistics!B25)","v":"Learn more"},{"$f":"(Statistics!B26)","v":"Related content "},{"$f":"(Statistics!B27)","v":"Comments"},{"$f":"(Statistics!B28)","v":"Timeline"},{"$f":"(Statistics!B29)","v":"Video"},{"$f":"(Statistics!B30)","v":"Next steps"},{"$f":"(Statistics!B31)","v":"Infographic"},{"$f":"(Statistics!B32)","v":"Search Results including Filter"},{"$f":"(Statistics!B33)","v":"Your impact"},{"$f":"(Statistics!B34)","v":"Survey form"},{"$f":"(Statistics!B35)","v":"Status"},{"$f":"(Statistics!B36)","v":"Invite members"},{"$f":"(Statistics!B37)","v":"Following"},{"$f":"(Statistics!B38)","v":"Supporting"},{"$f":"(Statistics!B39)","v":"Surveys"},{"$f":"(Statistics!B40)","v":"Ideas"},{"$f":"(Statistics!B41)","v":"Form: Register no engagement"},{"$f":"(Statistics!B42)","v":"Form: Register with engagement"},{"$f":"(Statistics!B43)","v":"Form: Log in"},{"$f":"(Statistics!B44)","v":"Form: Start discussion logged in"},{"$f":"(Statistics!B45)","v":"Form: Complete my profile"},{"$f":"(Statistics!B46)","v":"Form: Profile - about you"},{"$f":"(Statistics!B47)","v":"Form: Profile - interests"},{"$f":"(Statistics!B48)","v":"Form: Profile - account info"},{"$f":"(Statistics!B49)","v":"Topics"},{"$f":"(Statistics!B50)","v":"City Hall "},{"$f":"(Statistics!B51)","v":"Page 38"},{"$f":"(Statistics!B52)","v":"Page 39"},{"$f":"(Statistics!B53)","v":"Page 40"},{"$f":"(Statistics!B54)","v":"Page 41"},{"$f":"(Statistics!B55)","v":"Page 42"},{"$f":"(Statistics!B56)","v":"Page 43"},{"$f":"(Statistics!B57)","v":"Page 44"},{"$f":"(Statistics!B58)","v":"Page 45"},{"$f":"(Statistics!B59)","v":"Page 46"},{"$f":"(Statistics!B60)","v":"Page 47"},{"$f":"(Statistics!B61)","v":"Page 48"},{"$f":"(Statistics!B62)","v":"Page 49"},{"$f":"(Statistics!B63)","v":"Page 50"}]
[null,null,null,null,null,null,null,null,null,null,null,null,null,null,null,null,null,null,null,null,null,null,null,null,{"$f":"(Statistics!C14)","v":0},{"$f":"(Statistics!C15)","v":0},{"$f":"(Statistics!C16)","v":0},{"$f":"(Statistics!C17)","v":0},{"$f":"(Statistics!C18)","v":0},{"$f":"(Statistics!C19)","v":0},{"$f":"(Statistics!C20)","v":0},{"$f":"(Statistics!C21)","v":0},{"$f":"(Statistics!C22)","v":0},{"$f":"(Statistics!C23)","v":0},{"$f":"(Statistics!C24)","v":0},{"$f":"(Statistics!C25)","v":0},{"$f":"(Statistics!C26)","v":0},{"$f":"(Statistics!C27)","v":0},{"$f":"(Statistics!C28)","v":0},{"$f":"(Statistics!C29)","v":0},{"$f":"(Statistics!C30)","v":0},{"$f":"(Statistics!C31)","v":0},{"$f":"(Statistics!C32)","v":0},{"$f":"(Statistics!C33)","v":0},{"$f":"(Statistics!C34)","v":0},{"$f":"(Statistics!C35)","v":0},{"$f":"(Statistics!C36)","v":0},{"$f":"(Statistics!C37)","v":0},{"$f":"(Statistics!C38)","v":0},{"$f":"(Statistics!C39)","v":0},{"$f":"(Statistics!C40)","v":0},{"$f":"(Statistics!C41)","v":0},{"$f":"(Statistics!C42)","v":0},{"$f":"(Statistics!C43)","v":0},{"$f":"(Statistics!C44)","v":0},{"$f":"(Statistics!C45)","v":0},{"$f":"(Statistics!C46)","v":0},{"$f":"(Statistics!C47)","v":0},{"$f":"(Statistics!C48)","v":0},{"$f":"(Statistics!C49)","v":0},{"$f":"(Statistics!C50)","v":"URL 37"},{"$f":"(Statistics!C51)","v":"URL 38"},{"$f":"(Statistics!C52)","v":"URL 39"},{"$f":"(Statistics!C53)","v":"URL 40"},{"$f":"(Statistics!C54)","v":"URL 41"},{"$f":"(Statistics!C55)","v":"URL 42"},{"$f":"(Statistics!C56)","v":"URL 43"},{"$f":"(Statistics!C57)","v":"URL 44"},{"$f":"(Statistics!C58)","v":"URL 45"},{"$f":"(Statistics!C59)","v":"URL 46"},{"$f":"(Statistics!C60)","v":"URL 47"},{"$f":"(Statistics!C61)","v":"URL 48"},{"$f":"(Statistics!C62)","v":"URL 49"},{"$f":"(Statistics!C63)","v":"URL 50"}]
["Page Area","Image","Foreground Colour","Background\nColour","Large (18pt or 14pt bold)","Valid","R RGB","Fail Only","G RGB","G","B RGB","B","Luminance","Valid","R RGB","R","G RGB","G","B RGB","B","Luminance","Contrast Ratio","All Results","Image / Text / Flash",{"$f":"COUNTIF(Y4:Y1000,\"Fail\") & \" Fault\" & IF(COUNTIF(Y4:Y1000,\"Fail\")=1,\"\",\"s\")","v":"0 Faults"},"0 Faults","0 Faults","1 Fault","0 Faults","0 Faults","0 Faults","0 Faults","0 Faults","0 Faults","0 Faults","0 Faults","0 Faults","0 Faults","1 Fault","0 Faults","0 Faults","0 Faults","0 Faults","0 Faults","0 Faults","0 Faults","0 Faults","0 Faults","0 Faults","0 Faults","0 Faults","0 Faults","0 Faults","0 Faults","0 Faults","0 Faults",{"$f":"COUNTIF(BE4:BE1000,\"Fail\") & \" Fault\" & IF(COUNTIF(BE4:BE1000,\"Fail\")=1,\"\",\"s\")","v":"0 Faults"},"0 Faults","0 Faults","0 Faults","0 Faults","0 Faults","0 Faults","0 Faults","0 Faults","0 Faults","0 Faults","0 Faults","0 Faults","0 Faults","0 Faults","0 Faults","0 Faults","0 Faults"]
["Logo",null,"#191919","#FFFFFF","Yes",{"$f":"IF(LEN(D4)=0,\"\",AND(LEFT(D4,1)=\"#\",LEN(D4)=7))","v":true},{"$f":"HEX2DEC(RIGHT(LEFT(D4,3),2))","v":255},{"$f":"IF(G4/255<= 0.03928,G4/(255*12.92),(((G4/255)+0.055)/1.055)^2.4)","v":1},{"$f":"HEX2DEC(RIGHT(LEFT(D4,5),2))","v":255},{"$f":"IF(I4/255<= 0.03928,I4/(255*12.92),(((I4/255)+0.055)/1.055)^2.4)","v":1},{"$f":"HEX2DEC(RIGHT(D4,2))","v":255},{"$f":"IF(K4/255<= 0.03928,K4/(255*12.92),(((K4/255)+0.055)/1.055)^2.4)","v":1},{"$f":"(0.2126*H4)+(0.7152*J4)+(0.0722*L4)","v":1},{"$f":"IF(LEN(C4)=0,\"\",AND(LEFT(C4,1)=\"#\",LEN(C4)=7))","v":true},{"$f":"HEX2DEC(RIGHT(LEFT(C4,3),2))","v":25},{"$f":"IF(O4/255<= 0.03928,O4/(255*12.92),(((O4/255)+0.055)/1.055)^2.4)","v":9.7212173202378457E-3},{"$f":"HEX2DEC(RIGHT(LEFT(C4,5),2))","v":25},{"$f":"IF(Q4/255<= 0.03928,Q4/(255*12.92),(((Q4/255)+0.055)/1.055)^2.4)","v":9.7212173202378457E-3},{"$f":"HEX2DEC(RIGHT(C4,2))","v":25},{"$f":"IF(S4/255<= 0.03928,S4/(255*12.92),(((S4/255)+0.055)/1.055)^2.4)","v":9.7212173202378457E-3},{"$f":"(0.2126*P4)+(0.7152*R4)+(0.0722*T4)","v":9.7212173202378457E-3},{"$f":"IF(OR(F4=\"\",N4=\"\")=TRUE,\"\",IF(OR(F4=FALSE,N4=FALSE)=TRUE,\"ERROR\",ROUND(IF(M4>U4,(M4+0.05)/(U4+0.05),(U4+0.05)/(M4+0.05)),2)))","v":17.579999999999998},{"$f":"IF(V4=\"\",\"\",IF(V4>=Comboboxes!A$5,\"Pass\",IF(AND(V4>=Comboboxes!A$6,E4=\"Yes\"),\"Pass (large text)\",\"Fail\")))","v":"Pass"},"Text","Pass","Pass","N/A","N/A","N/A","N/A","N/A","N/A","N/A","N/A","N/A","N/A","N/A","N/A","N/A","N/A","N/A","N/A","N/A","N/A","N/A","N/A","N/A","N/A","N/A","N/A","N/A","N/A","N/A","N/A","N/A","N/A","N/A","N/A",null,"N/A","N/A"]
["Text",null,"#333333","#FFFFFF","No",true,255,{"$f":"IF(G5/255<= 0.03928,G5/(255*12.92),(((G5/255)+0.055)/1.055)^2.4)","v":1},255,{"$f":"IF(I5/255<= 0.03928,I5/(255*12.92),(((I5/255)+0.055)/1.055)^2.4)","v":1},255,{"$f":"IF(K5/255<= 0.03928,K5/(255*12.92),(((K5/255)+0.055)/1.055)^2.4)","v":1},{"$f":"(0.2126*H5)+(0.7152*J5)+(0.0722*L5)","v":1},true,51,{"$f":"IF(O5/255<= 0.03928,O5/(255*12.92),(((O5/255)+0.055)/1.055)^2.4)","v":3.3104766570885055E-2},51,{"$f":"IF(Q5/255<= 0.03928,Q5/(255*12.92),(((Q5/255)+0.055)/1.055)^2.4)","v":3.3104766570885055E-2},51,{"$f":"IF(S5/255<= 0.03928,S5/(255*12.92),(((S5/255)+0.055)/1.055)^2.4)","v":3.3104766570885055E-2},{"$f":"(0.2126*P5)+(0.7152*R5)+(0.0722*T5)","v":3.3104766570885055E-2},{"$f":"IF(OR(F5=\"\",N5=\"\")=TRUE,\"\",IF(OR(F5=FALSE,N5=FALSE)=TRUE,\"ERROR\",ROUND(IF(M5>U5,(M5+0.05)/(U5+0.05),(U5+0.05)/(M5+0.05)),2)))","v":12.63},{"$f":"IF(V5=\"\",\"\",IF(V5>=Comboboxes!A$5,\"Pass\",IF(AND(V5>=Comboboxes!A$6,E5=\"Yes\"),\"Pass (large text)\",\"Fail\")))","v":"Pass"},"Text","Pass","Pass","Pass","N/A",null,"Pass","Pass",null,null,"Pass",null,null,"Pass","Pass","Pass",null,null,null,null,null,null,null,null,null,null,null,null,null,null,null,null,null,null,null,null,"N/A","Pass"]
["Red links and text",null,"#de2365","#FFFFFF","No",true,255,{"$f":"IF(G6/255<= 0.03928,G6/(255*12.92),(((G6/255)+0.055)/1.055)^2.4)","v":1},255,{"$f":"IF(I6/255<= 0.03928,I6/(255*12.92),(((I6/255)+0.055)/1.055)^2.4)","v":1},255,{"$f":"IF(K6/255<= 0.03928,K6/(255*12.92),(((K6/255)+0.055)/1.055)^2.4)","v":1},{"$f":"(0.2126*H6)+(0.7152*J6)+(0.0722*L6)","v":1},true,222,{"$f":"IF(O6/255<= 0.03928,O6/(255*12.92),(((O6/255)+0.055)/1.055)^2.4)","v":0.73046074009035356},35,{"$f":"IF(Q6/255<= 0.03928,Q6/(255*12.92),(((Q6/255)+0.055)/1.055)^2.4)","v":1.6807375752887391E-2},101,{"$f":"IF(S6/255<= 0.03928,S6/(255*12.92),(((S6/255)+0.055)/1.055)^2.4)","v":0.13013647669036432},{"$f":"(0.2126*P6)+(0.7152*R6)+(0.0722*T6)","v":0.17671244209871856},4.63,{"$f":"IF(V6=\"\",\"\",IF(V6>=Comboboxes!A$5,\"Pass\",IF(AND(V6>=Comboboxes!A$6,E6=\"Yes\"),\"Pass (large text)\",\"Fail\")))","v":"Pass"},"Text","N/A","N/A","Pass","N/A",null,"N/A","N/A",null,null,"N/A",null,null,"N/A","N/A","Pass",null,null,null,null,null,null,null,null,null,null,null,null,null,null,null,null,null,null,null,null,"N/A","N/A"]
["Red buttons",null,"#FFFFFF","#DE2365","No",true,222,0.73046074009035356,35,1.6807375752887391E-2,101,0.13013647669036432,0.17671244209871856,true,255,1,255,1,255,1,1,4.63,{"$f":"IF(V7=\"\",\"\",IF(V7>=Comboboxes!A$5,\"Pass\",IF(AND(V7>=Comboboxes!A$6,E7=\"Yes\"),\"Pass (large text)\",\"Fail\")))","v":"Pass"},"Text","N/A","N/A","N/A","Pass",null,"N/A","N/A",null,null,"N/A",null,null,"N/A","Pass","N/A",null,null,null,null,null,null,null,null,null,null,null,null,null,null,null,null,null,null,null,null,"N/A","Pass"]
["Hero text",null,"#FFFFFF","#905B30","Yes",true,144,0.27889426347681034,91,0.10461648409110418,48,2.9556834437808807E-2,0.13624863328353737,true,255,1,255,1,255,1,1,5.64,{"$f":"IF(V8=\"\",\"\",IF(V8>=Comboboxes!A$5,\"Pass\",IF(AND(V8>=Comboboxes!A$6,E8=\"Yes\"),\"Pass (large text)\",\"Fail\")))","v":"Pass"},"Text","N/A","N/A","N/A","Pass",null,"N/A","N/A",null,null,"N/A",null,null,"N/A","N/A","N/A",null,null,null,null,null,null,null,null,null,null,null,null,null,null,null,null,null,null,null,null,"N/A","N/A"]
["Hero text at 300%+ zoom",null,"#FFFFFF","#353D42","Yes",true,53,3.5601314875020329E-2,61,4.6665086336880102E-2,66,5.4480276442442369E-2,4.4877185249710308E-2,true,255,1,255,1,255,1,1,11.07,{"$f":"IF(V9=\"\",\"\",IF(V9>=Comboboxes!A$5,\"Pass\",IF(AND(V9>=Comboboxes!A$6,E9=\"Yes\"),\"Pass (large text)\",\"Fail\")))","v":"Pass"},"Text","N/A","N/A","N/A","Pass",null,"N/A","N/A",null,null,"N/A",null,null,"N/A","N/A","N/A",null,null,null,null,null,null,null,null,null,null,null,null,null,null,null,null,null,null,null,null,"N/A","N/A"]
["Hero text at 175%+ zoom",null,"#FFFFFF","#AFA191","Yes",true,175,0.42869049661390662,161,0.35640014414594351,145,0.28314874042999211,0.36648032173234074,true,255,1,255,1,255,1,1,{"$f":"IF(OR(F10=\"\",N10=\"\")=TRUE,\"\",IF(OR(F10=FALSE,N10=FALSE)=TRUE,\"ERROR\",ROUND(IF(M10>U10,(M10+0.05)/(U10+0.05),(U10+0.05)/(M10+0.05)),2)))","v":2.52},{"$f":"IF(V10=\"\",\"\",IF(V10>=Comboboxes!A$5,\"Pass\",IF(AND(V10>=Comboboxes!A$6,E10=\"Yes\"),\"Pass (large text)\",\"Fail\")))","v":"Fail"},"Text","N/A","N/A","N/A","Fail",null,"N/A","N/A",null,null,"N/A",null,null,"N/A","N/A","N/A",null,null,null,null,null,null,null,null,null,null,null,null,null,null,null,null,null,null,null,null,"N/A","N/A"]
["Topics links",null,"#000000","#FFFFFF","Yes",true,255,{"$f":"IF(G11/255<= 0.03928,G11/(255*12.92),(((G11/255)+0.055)/1.055)^2.4)","v":1},255,{"$f":"IF(I11/255<= 0.03928,I11/(255*12.92),(((I11/255)+0.055)/1.055)^2.4)","v":1},255,{"$f":"IF(K11/255<= 0.03928,K11/(255*12.92),(((K11/255)+0.055)/1.055)^2.4)","v":1},{"$f":"(0.2126*H11)+(0.7152*J11)+(0.0722*L11)","v":1},true,0,{"$f":"IF(O11/255<= 0.03928,O11/(255*12.92),(((O11/255)+0.055)/1.055)^2.4)","v":0},0,{"$f":"IF(Q11/255<= 0.03928,Q11/(255*12.92),(((Q11/255)+0.055)/1.055)^2.4)","v":0},0,{"$f":"IF(S11/255<= 0.03928,S11/(255*12.92),(((S11/255)+0.055)/1.055)^2.4)","v":0},{"$f":"(0.2126*P11)+(0.7152*R11)+(0.0722*T11)","v":0},{"$f":"IF(OR(F11=\"\",N11=\"\")=TRUE,\"\",IF(OR(F11=FALSE,N11=FALSE)=TRUE,\"ERROR\",ROUND(IF(M11>U11,(M11+0.05)/(U11+0.05),(U11+0.05)/(M11+0.05)),2)))","v":21},{"$f":"IF(V11=\"\",\"\",IF(V11>=Comboboxes!A$5,\"Pass\",IF(AND(V11>=Comboboxes!A$6,E11=\"Yes\"),\"Pass (large text)\",\"Fail\")))","v":"Pass"},"Text","N/A","N/A","N/A","N/A",null,"N/A","N/A",null,null,"N/A",null,null,"N/A","N/A","N/A",null,null,null,null,null,null,null,null,null,null,null,null,null,null,null,null,null,null,null,null,"Pass","N/A"]
["Topics links on hover & focus",null,"#de2365","#FFFFFF","Yes",true,255,1,255,1,255,1,1,true,222,0.73046074009035356,35,1.6807375752887391E-2,101,0.13013647669036432,0.17671244209871856,4.63,{"$f":"IF(V12=\"\",\"\",IF(V12>=Comboboxes!A$5,\"Pass\",IF(AND(V12>=Comboboxes!A$6,E12=\"Yes\"),\"Pass (large text)\",\"Fail\")))","v":"Pass"},"Text","N/A","N/A","N/A","N/A",null,"N/A","N/A",null,null,"N/A",null,null,"N/A","N/A","N/A",null,null,null,null,null,null,null,null,null,null,null,null,null,null,null,null,null,null,null,null,"Pass","N/A"]
["Timeline stages",null,"#BABABA","#FFFFFF","No",true,255,1,255,1,255,1,1,true,186,0.49102084984783556,186,0.49102084984783556,186,0.49102084984783556,0.49102084984783551,1.94,{"$f":"IF(V13=\"\",\"\",IF(V13>=Comboboxes!A$5,\"Pass\",IF(AND(V13>=Comboboxes!A$6,E13=\"Yes\"),\"Pass (large text)\",\"Fail\")))","v":"Fail"},"Text","N/A","N/A","N/A","N/A",null,"N/A","N/A",null,null,"N/A",null,null,"N/A","N/A","Fail",null,null,null,null,null,null,null,null,null,null,null,null,null,null,null,null,null,null,null,null,"N/A","N/A"]
["Featured text",null,"#FFFFFF","#343D42","No",true,52,3.4339806808682156E-2,61,4.6665086336880102E-2,66,5.4480276442442369E-2,4.4608988634806807E-2,true,255,1,255,1,255,1,1,11.1,{"$f":"IF(V14=\"\",\"\",IF(V14>=Comboboxes!A$5,\"Pass\",IF(AND(V14>=Comboboxes!A$6,E14=\"Yes\"),\"Pass (large text)\",\"Fail\")))","v":"Pass"},"Text","N/A","N/A","N/A","N/A",null,"Pass","N/A",null,null,"N/A",null,null,"N/A","N/A","N/A",null,null,null,null,null,null,null,null,null,null,null,null,null,null,null,null,null,null,null,null,"N/A","N/A"]
[null,null,null,null,null,"",0,0,0,0,0,0,0,"",0,0,0,0,0,0,0,"",{"$f":"IF(V15=\"\",\"\",IF(V15>=Comboboxes!A$5,\"Pass\",IF(AND(V15>=Comboboxes!A$6,E15=\"Yes\"),\"Pass (large text)\",\"Fail\")))","v":""},"Text"]
[null,null,null,null,null,"",0,0,0,0,0,0,0,"",0,0,0,0,0,0,0,"",{"$f":"IF(V16=\"\",\"\",IF(V16>=Comboboxes!A$5,\"Pass\",IF(AND(V16>=Comboboxes!A$6,E16=\"Yes\"),\"Pass (large text)\",\"Fail\")))","v":""},"Text"]
[null,null,null,null,null,"",0,0,0,0,0,0,0,"",0,0,0,0,0,0,0,"",{"$f":"IF(V17=\"\",\"\",IF(V17>=Comboboxes!A$5,\"Pass\",IF(AND(V17>=Comboboxes!A$6,E17=\"Yes\"),\"Pass (large text)\",\"Fail\")))","v":""},"Text"]
[null,null,null,null,null,"",0,0,0,0,0,0,0,"",0,0,0,0,0,0,0,"",{"$f":"IF(V18=\"\",\"\",IF(V18>=Comboboxes!A$5,\"Pass\",IF(AND(V18>=Comboboxes!A$6,E18=\"Yes\"),\"Pass (large text)\",\"Fail\")))","v":""},"Text"]
[null,null,null,null,null,"",0,0,0,0,0,0,0,"",0,0,0,0,0,0,0,"",{"$f":"IF(V19=\"\",\"\",IF(V19>=Comboboxes!A$5,\"Pass\",IF(AND(V19>=Comboboxes!A$6,E19=\"Yes\"),\"Pass (large text)\",\"Fail\")))","v":""},"Text"]
[null,null,null,null,null,"",0,0,0,0,0,0,0,"",0,0,0,0,0,0,0,"",{"$f":"IF(V20=\"\",\"\",IF(V20>=Comboboxes!A$5,\"Pass\",IF(AND(V20>=Comboboxes!A$6,E20=\"Yes\"),\"Pass (large text)\",\"Fail\")))","v":""},"Text"]
[null,null,null,null,null,"",0,0,0,0,0,0,0,"",0,0,0,0,0,0,0,"",{"$f":"IF(V21=\"\",\"\",IF(V21>=Comboboxes!A$5,\"Pass\",IF(AND(V21>=Comboboxes!A$6,E21=\"Yes\"),\"Pass (large text)\",\"Fail\")))","v":""},"Text"]
[null,null,null,null,null,"",0,0,0,0,0,0,0,"",0,0,0,0,0,0,0,"",{"$f":"IF(V22=\"\",\"\",IF(V22>=Comboboxes!A$5,\"Pass\",IF(AND(V22>=Comboboxes!A$6,E22=\"Yes\"),\"Pass (large text)\",\"Fail\")))","v":""},"Text"]
[null,null,null,null,null,"",0,0,0,0,0,0,0,"",0,0,0,0,0,0,0,"",{"$f":"IF(V23=\"\",\"\",IF(V23>=Comboboxes!A$5,\"Pass\",IF(AND(V23>=Comboboxes!A$6,E23=\"Yes\"),\"Pass (large text)\",\"Fail\")))","v":""},"Text"]
[null,null,null,null,null,"",0,0,0,0,0,0,0,"",0,0,0,0,0,0,0,"",{"$f":"IF(V24=\"\",\"\",IF(V24>=Comboboxes!A$5,\"Pass\",IF(AND(V24>=Comboboxes!A$6,E24=\"Yes\"),\"Pass (large text)\",\"Fail\")))","v":""},"Text"]
[null,null,null,null,null,"",0,0,0,0,0,0,0,"",0,0,0,0,0,0,0,"",{"$f":"IF(V25=\"\",\"\",IF(V25>=Comboboxes!A$5,\"Pass\",IF(AND(V25>=Comboboxes!A$6,E25=\"Yes\"),\"Pass (large text)\",\"Fail\")))","v":""},"Text"]
[null,null,null,null,null,"",0,0,0,0,0,0,0,"",0,0,0,0,0,0,0,"",{"$f":"IF(V26=\"\",\"\",IF(V26>=Comboboxes!A$5,\"Pass\",IF(AND(V26>=Comboboxes!A$6,E26=\"Yes\"),\"Pass (large text)\",\"Fail\")))","v":""},"Text"]
[null,null,null,null,null,"",0,0,0,0,0,0,0,"",0,0,0,0,0,0,0,"",{"$f":"IF(V27=\"\",\"\",IF(V27>=Comboboxes!A$5,\"Pass\",IF(AND(V27>=Comboboxes!A$6,E27=\"Yes\"),\"Pass (large text)\",\"Fail\")))","v":""},"Text"]
[null,null,null,null,null,"",0,0,0,0,0,0,0,"",0,0,0,0,0,0,0,"",{"$f":"IF(V28=\"\",\"\",IF(V28>=Comboboxes!A$5,\"Pass\",IF(AND(V28>=Comboboxes!A$6,E28=\"Yes\"),\"Pass (large text)\",\"Fail\")))","v":""},"Text"]
[null,null,null,null,null,"",0,0,0,0,0,0,{"$f":"(0.2126*H29)+(0.7152*J29)+(0.0722*L29)","v":0},"",0,0,0,0,0,0,{"$f":"(0.2126*P29)+(0.7152*R29)+(0.0722*T29)","v":0},"",{"$f":"IF(V29=\"\",\"\",IF(V29>=Comboboxes!A$5,\"Pass\",IF(AND(V29>=Comboboxes!A$6,E29=\"Yes\"),\"Pass (large text)\",\"Fail\")))","v":""},"Text"]
[null,null,null,null,null,"",0,0,0,0,0,0,0,"",0,0,0,0,0,0,0,"",{"$f":"IF(V30=\"\",\"\",IF(V30>=Comboboxes!A$5,\"Pass\",IF(AND(V30>=Comboboxes!A$6,E30=\"Yes\"),\"Pass (large text)\",\"Fail\")))","v":""},"Text"]
[null,null,null,null,null,"",0,0,0,0,0,0,0,"",0,0,0,0,0,0,0,"",{"$f":"IF(V31=\"\",\"\",IF(V31>=Comboboxes!A$5,\"Pass\",IF(AND(V31>=Comboboxes!A$6,E31=\"Yes\"),\"Pass (large text)\",\"Fail\")))","v":""},"Text"]
[null,null,null,null,null,"",0,0,0,0,0,0,0,"",0,0,0,0,0,0,0,"",{"$f":"IF(V32=\"\",\"\",IF(V32>=Comboboxes!A$5,\"Pass\",IF(AND(V32>=Comboboxes!A$6,E32=\"Yes\"),\"Pass (large text)\",\"Fail\")))","v":""},"Text"]
[null,null,null,null,null,"",0,0,0,0,0,0,0,"",0,0,0,0,0,0,0,"",{"$f":"IF(V33=\"\",\"\",IF(V33>=Comboboxes!A$5,\"Pass\",IF(AND(V33>=Comboboxes!A$6,E33=\"Yes\"),\"Pass (large text)\",\"Fail\")))","v":""},"Text"]
[null,null,null,null,null,"",0,0,0,0,0,0,0,"",0,0,0,0,0,0,0,"",{"$f":"IF(V34=\"\",\"\",IF(V34>=Comboboxes!A$5,\"Pass\",IF(AND(V34>=Comboboxes!A$6,E34=\"Yes\"),\"Pass (large text)\",\"Fail\")))","v":""},"Text"]
[null,null,null,null,null,"",0,0,0,0,0,0,0,"",0,0,0,0,0,0,0,"",{"$f":"IF(V35=\"\",\"\",IF(V35>=Comboboxes!A$5,\"Pass\",IF(AND(V35>=Comboboxes!A$6,E35=\"Yes\"),\"Pass (large text)\",\"Fail\")))","v":""},"Text"]
[null,null,null,null,null,{"$f":"IF(LEN(D36)=0,\"\",AND(LEFT(D36,1)=\"#\",LEN(D36)=7))","v":""},{"$f":"HEX2DEC(RIGHT(LEFT(D36,3),2))","v":0},0,{"$f":"HEX2DEC(RIGHT(LEFT(D36,5),2))","v":0},0,{"$f":"HEX2DEC(RIGHT(D36,2))","v":0},0,0,{"$f":"IF(LEN(C36)=0,\"\",AND(LEFT(C36,1)=\"#\",LEN(C36)=7))","v":""},{"$f":"HEX2DEC(RIGHT(LEFT(C36,3),2))","v":0},0,{"$f":"HEX2DEC(RIGHT(LEFT(C36,5),2))","v":0},0,{"$f":"HEX2DEC(RIGHT(C36,2))","v":0},0,0,"",{"$f":"IF(V36=\"\",\"\",IF(V36>=Comboboxes!A$5,\"Pass\",IF(AND(V36>=Comboboxes!A$6,E36=\"Yes\"),\"Pass (large text)\",\"Fail\")))","v":""},"Text"]
[null,null,null,null,null,"",0,0,0,0,0,0,0,"",0,0,0,0,0,0,0,"",{"$f":"IF(V37=\"\",\"\",IF(V37>=Comboboxes!A$5,\"Pass\",IF(AND(V37>=Comboboxes!A$6,E37=\"Yes\"),\"Pass (large text)\",\"Fail\")))","v":""},"Text"]
[null,null,null,null,null,"",0,0,0,0,0,0,0,"",0,0,0,0,0,0,0,"",{"$f":"IF(V38=\"\",\"\",IF(V38>=Comboboxes!A$5,\"Pass\",IF(AND(V38>=Comboboxes!A$6,E38=\"Yes\"),\"Pass (large text)\",\"Fail\")))","v":""},"Text"]
[null,null,null,null,null,"",0,0,0,0,0,0,0,"",0,0,0,0,0,0,0,"",{"$f":"IF(V39=\"\",\"\",IF(V39>=Comboboxes!A$5,\"Pass\",IF(AND(V39>=Comboboxes!A$6,E39=\"Yes\"),\"Pass (large text)\",\"Fail\")))","v":""},"Text"]
[null,null,null,null,null,"",0,0,0,0,0,0,0,"",0,0,0,0,0,0,0,"",{"$f":"IF(V40=\"\",\"\",IF(V40>=Comboboxes!A$5,\"Pass\",IF(AND(V40>=Comboboxes!A$6,E40=\"Yes\"),\"Pass (large text)\",\"Fail\")))","v":""},"Text"]
[null,null,null,null,null,"",0,0,0,0,0,0,{"$f":"(0.2126*H41)+(0.7152*J41)+(0.0722*L41)","v":0},"",0,0,0,0,0,0,{"$f":"(0.2126*P41)+(0.7152*R41)+(0.0722*T41)","v":0},{"$f":"IF(OR(F41=\"\",N41=\"\")=TRUE,\"\",IF(OR(F41=FALSE,N41=FALSE)=TRUE,\"ERROR\",ROUND(IF(M41>U41,(M41+0.05)/(U41+0.05),(U41+0.05)/(M41+0.05)),2)))","v":""},{"$f":"IF(V41=\"\",\"\",IF(V41>=Comboboxes!A$5,\"Pass\",IF(AND(V41>=Comboboxes!A$6,E41=\"Yes\"),\"Pass (large text)\",\"Fail\")))","v":""}]
[null,null,null,null,null,"",0,0,0,0,0,0,0,"",0,0,0,0,0,0,0,"",{"$f":"IF(V42=\"\",\"\",IF(V42>=Comboboxes!A$5,\"Pass\",IF(AND(V42>=Comboboxes!A$6,E42=\"Yes\"),\"Pass (large text)\",\"Fail\")))","v":""}]
[null,null,null,null,null,"",0,0,0,0,0,0,0,"",0,0,0,0,0,0,0,"",{"$f":"IF(V43=\"\",\"\",IF(V43>=Comboboxes!A$5,\"Pass\",IF(AND(V43>=Comboboxes!A$6,E43=\"Yes\"),\"Pass (large text)\",\"Fail\")))","v":""}]
[null,null,null,null,null,"",0,0,0,0,0,0,0,"",0,0,0,0,0,0,0,"",{"$f":"IF(V44=\"\",\"\",IF(V44>=Comboboxes!A$5,\"Pass\",IF(AND(V44>=Comboboxes!A$6,E44=\"Yes\"),\"Pass (large text)\",\"Fail\")))","v":""}]
[null,null,null,null,null,"",0,0,0,0,0,0,0,"",0,0,0,0,0,0,0,"",{"$f":"IF(V45=\"\",\"\",IF(V45>=Comboboxes!A$5,\"Pass\",IF(AND(V45>=Comboboxes!A$6,E45=\"Yes\"),\"Pass (large text)\",\"Fail\")))","v":""}]
[null,null,null,null,null,"",0,0,0,0,0,0,0,"",0,0,0,0,0,0,0,"",{"$f":"IF(V46=\"\",\"\",IF(V46>=Comboboxes!A$5,\"Pass\",IF(AND(V46>=Comboboxes!A$6,E46=\"Yes\"),\"Pass (large text)\",\"Fail\")))","v":""}]
[null,null,null,null,null,"",0,0,0,0,0,0,0,"",0,0,0,0,0,0,0,"",{"$f":"IF(V47=\"\",\"\",IF(V47>=Comboboxes!A$5,\"Pass\",IF(AND(V47>=Comboboxes!A$6,E47=\"Yes\"),\"Pass (large text)\",\"Fail\")))","v":""}]
[null,null,null,null,null,"",0,0,0,0,0,0,0,"",0,0,0,0,0,0,0,"",{"$f":"IF(V48=\"\",\"\",IF(V48>=Comboboxes!A$5,\"Pass\",IF(AND(V48>=Comboboxes!A$6,E48=\"Yes\"),\"Pass (large text)\",\"Fail\")))","v":""}]
[null,null,null,null,null,"",0,0,0,0,0,0,0,"",0,0,0,0,0,0,0,"",{"$f":"IF(V49=\"\",\"\",IF(V49>=Comboboxes!A$5,\"Pass\",IF(AND(V49>=Comboboxes!A$6,E49=\"Yes\"),\"Pass (large text)\",\"Fail\")))","v":""}]
[null,null,null,null,null,"",0,0,0,0,0,0,0,"",0,0,0,0,0,0,0,"",{"$f":"IF(V50=\"\",\"\",IF(V50>=Comboboxes!A$5,\"Pass\",IF(AND(V50>=Comboboxes!A$6,E50=\"Yes\"),\"Pass (large text)\",\"Fail\")))","v":""}]
[null,null,null,null,null,"",0,0,0,0,0,0,0,"",0,0,0,0,0,0,0,"",{"$f":"IF(V51=\"\",\"\",IF(V51>=Comboboxes!A$5,\"Pass\",IF(AND(V51>=Comboboxes!A$6,E51=\"Yes\"),\"Pass (large text)\",\"Fail\")))","v":""}]
[null,null,null,null,null,"",0,0,0,0,0,0,0,"",0,0,0,0,0,0,0,"",{"$f":"IF(V52=\"\",\"\",IF(V52>=Comboboxes!A$5,\"Pass\",IF(AND(V52>=Comboboxes!A$6,E52=\"Yes\"),\"Pass (large text)\",\"Fail\")))","v":""}]
[null,null,null,null,null,"",0,0,0,0,0,0,0,"",0,0,0,0,0,0,0,"",{"$f":"IF(V53=\"\",\"\",IF(V53>=Comboboxes!A$5,\"Pass\",IF(AND(V53>=Comboboxes!A$6,E53=\"Yes\"),\"Pass (large text)\",\"Fail\")))","v":""}]
[null,null,null,null,null,"",0,0,0,0,0,0,0,"",0,0,0,0,0,0,0,"",{"$f":"IF(V54=\"\",\"\",IF(V54>=Comboboxes!A$5,\"Pass\",IF(AND(V54>=Comboboxes!A$6,E54=\"Yes\"),\"Pass (large text)\",\"Fail\")))","v":""}]
[null,null,null,null,null,"",0,0,0,0,0,0,0,"",0,0,0,0,0,0,0,"",{"$f":"IF(V55=\"\",\"\",IF(V55>=Comboboxes!A$5,\"Pass\",IF(AND(V55>=Comboboxes!A$6,E55=\"Yes\"),\"Pass (large text)\",\"Fail\")))","v":""}]
[null,null,null,null,null,"",0,0,0,0,0,0,0,"",0,0,0,0,0,0,0,"",{"$f":"IF(V56=\"\",\"\",IF(V56>=Comboboxes!A$5,\"Pass\",IF(AND(V56>=Comboboxes!A$6,E56=\"Yes\"),\"Pass (large text)\",\"Fail\")))","v":""}]
[null,null,null,null,null,"",0,0,0,0,0,0,0,"",0,0,0,0,0,0,0,"",{"$f":"IF(V57=\"\",\"\",IF(V57>=Comboboxes!A$5,\"Pass\",IF(AND(V57>=Comboboxes!A$6,E57=\"Yes\"),\"Pass (large text)\",\"Fail\")))","v":""}]
[null,null,null,null,null,"",0,0,0,0,0,0,0,"",0,0,0,0,0,0,0,"",{"$f":"IF(V58=\"\",\"\",IF(V58>=Comboboxes!A$5,\"Pass\",IF(AND(V58>=Comboboxes!A$6,E58=\"Yes\"),\"Pass (large text)\",\"Fail\")))","v":""}]
[null,null,null,null,null,"",0,0,0,0,0,0,0,"",0,0,0,0,0,0,0,"",{"$f":"IF(V59=\"\",\"\",IF(V59>=Comboboxes!A$5,\"Pass\",IF(AND(V59>=Comboboxes!A$6,E59=\"Yes\"),\"Pass (large text)\",\"Fail\")))","v":""}]
[null,null,null,null,null,"",0,0,0,0,0,0,0,"",0,0,0,0,0,0,0,"",{"$f":"IF(V60=\"\",\"\",IF(V60>=Comboboxes!A$5,\"Pass\",IF(AND(V60>=Comboboxes!A$6,E60=\"Yes\"),\"Pass (large text)\",\"Fail\")))","v":""}]
[null,null,null,null,null,"",0,0,0,0,0,0,0,"",0,0,0,0,0,0,0,"",{"$f":"IF(V61=\"\",\"\",IF(V61>=Comboboxes!A$5,\"Pass\",IF(AND(V61>=Comboboxes!A$6,E61=\"Yes\"),\"Pass (large text)\",\"Fail\")))","v":""}]
[null,null,null,null,null,"",0,0,0,0,0,0,0,"",0,0,0,0,0,0,0,"",{"$f":"IF(V62=\"\",\"\",IF(V62>=Comboboxes!A$5,\"Pass\",IF(AND(V62>=Comboboxes!A$6,E62=\"Yes\"),\"Pass (large text)\",\"Fail\")))","v":""}]
[null,null,null,null,null,"",0,0,0,0,0,0,0,"",0,0,0,0,0,0,0,"",{"$f":"IF(V63=\"\",\"\",IF(V63>=Comboboxes!A$5,\"Pass\",IF(AND(V63>=Comboboxes!A$6,E63=\"Yes\"),\"Pass (large text)\",\"Fail\")))","v":""}]
[null,null,null,null,null,"",0,0,0,0,0,0,0,"",0,0,0,0,0,0,0,"",{"$f":"IF(V64=\"\",\"\",IF(V64>=Comboboxes!A$5,\"Pass\",IF(AND(V64>=Comboboxes!A$6,E64=\"Yes\"),\"Pass (large text)\",\"Fail\")))","v":""}]
[null,null,null,null,null,"",0,0,0,0,0,0,0,"",0,0,0,0,0,0,0,"",{"$f":"IF(V65=\"\",\"\",IF(V65>=Comboboxes!A$5,\"Pass\",IF(AND(V65>=Comboboxes!A$6,E65=\"Yes\"),\"Pass (large text)\",\"Fail\")))","v":""}]
[null,null,null,null,null,"",0,0,0,0,0,0,0,"",0,0,0,0,0,0,0,"",{"$f":"IF(V66=\"\",\"\",IF(V66>=Comboboxes!A$5,\"Pass\",IF(AND(V66>=Comboboxes!A$6,E66=\"Yes\"),\"Pass (large text)\",\"Fail\")))","v":""}]
[null,null,null,null,null,"",0,0,0,0,0,0,0,"",0,0,0,0,0,0,0,"",{"$f":"IF(V67=\"\",\"\",IF(V67>=Comboboxes!A$5,\"Pass\",IF(AND(V67>=Comboboxes!A$6,E67=\"Yes\"),\"Pass (large text)\",\"Fail\")))","v":""}]
[null,null,null,null,null,"",0,0,0,0,0,0,{"$f":"(0.2126*H68)+(0.7152*J68)+(0.0722*L68)","v":0},"",0,0,0,0,0,0,{"$f":"(0.2126*P68)+(0.7152*R68)+(0.0722*T68)","v":0},{"$f":"IF(OR(F68=\"\",N68=\"\")=TRUE,\"\",IF(OR(F68=FALSE,N68=FALSE)=TRUE,\"ERROR\",ROUND(IF(M68>U68,(M68+0.05)/(U68+0.05),(U68+0.05)/(M68+0.05)),2)))","v":""},{"$f":"IF(V68=\"\",\"\",IF(V68>=Comboboxes!A$5,\"Pass\",IF(AND(V68>=Comboboxes!A$6,E68=\"Yes\"),\"Pass (large text)\",\"Fail\")))","v":""}]
[null,null,null,null,null,"",0,0,0,0,0,0,{"$f":"(0.2126*H69)+(0.7152*J69)+(0.0722*L69)","v":0},"",0,0,0,0,0,0,{"$f":"(0.2126*P69)+(0.7152*R69)+(0.0722*T69)","v":0},{"$f":"IF(OR(F69=\"\",N69=\"\")=TRUE,\"\",IF(OR(F69=FALSE,N69=FALSE)=TRUE,\"ERROR\",ROUND(IF(M69>U69,(M69+0.05)/(U69+0.05),(U69+0.05)/(M69+0.05)),2)))","v":""},{"$f":"IF(V69=\"\",\"\",IF(V69>=Comboboxes!A$5,\"Pass\",IF(AND(V69>=Comboboxes!A$6,E69=\"Yes\"),\"Pass (large text)\",\"Fail\")))","v":""}]
[]
["Colour combinations shown in pink do not meet the contrast ratio (4.5:1 Minimum) recommended by W3C WCAG 2.0"]
[]
["Note that a contrast ratio of 3:1 is acceptable for large text e.g. 14 point bold or 18 point normal weight."]

{"sheet":"Non-text Contrast","index":5,"n_rows":73,"n_cols":75,"rows_kept":73,"cut":false,"hidden":false,"merged":[[0,0,1,6]]}
["\nColour Contrast Analysis for combinations\nof adjacent colours",null,null,null,null,null,null,null,null,null,null,null,null,null,null,null,null,null,null,null,null,null,null,null,null,{"$f":"(Statistics!B14)","v":"Header (logged out)"},{"$f":"(Statistics!B15)","v":"Header (logged in)"},{"$f":"(Statistics!B16)","v":"Footer"},{"$f":"(Statistics!B17)","v":"Hero area"},{"$f":"(Statistics!B18)","v":"Search"},{"$f":"(Statistics!B19)","v":"Featured"},{"$f":"(Statistics!B20)","v":"Have your say"},{"$f":"(Statistics!B21)","v":"Quick Poll"},{"$f":"(Statistics!B22)","v":"Quick Poll Results"},{"$f":"(Statistics!B23)","v":"Updates and impact"},{"$f":"(Statistics!B24)","v":"Start a discussion"},{"$f":"(Statistics!B25)","v":"Learn more"},{"$f":"(Statistics!B26)","v":"Related content "},{"$f":"(Statistics!B27)","v":"Comments"},{"$f":"(Statistics!B28)","v":"Timeline"},{"$f":"(Statistics!B29)","v":"Video"},{"$f":"(Statistics!B30)","v":"Next steps"},{"$f":"(Statistics!B31)","v":"Infographic"},{"$f":"(Statistics!B32)","v":"Search Results including Filter"},{"$f":"(Statistics!B33)","v":"Your impact"},{"$f":"(Statistics!B34)","v":"Survey form"},{"$f":"(Statistics!B35)","v":"Status"},{"$f":"(Statistics!B36)","v":"Invite members"},{"$f":"(Statistics!B37)","v":"Following"},{"$f":"(Statistics!B38)","v":"Supporting"},{"$f":"(Statistics!B39)","v":"Surveys"},{"$f":"(Statistics!B40)","v":"Ideas"},{"$f":"(Statistics!B41)","v":"Form: Register no engagement"},{"$f":"(Statistics!B42)","v":"Form: Register with engagement"},{"$f":"(Statistics!B43)","v":"Form: Log in"},{"$f":"(Statistics!B44)","v":"Form: Start discussion logged in"},{"$f":"(Statistics!B45)","v":"Form: Complete my profile"},{"$f":"(Statistics!B46)","v":"Form: Profile - about you"},{"$f":"(Statistics!B47)","v":"Form: Profile - interests"},{"$f":"(Statistics!B48)","v":"Form: Profile - account info"},{"$f":"(Statistics!B49)","v":"Topics"},{"$f":"(Statistics!B50)","v":"City Hall "},{"$f":"(Statistics!B51)","v":"Page 38"},{"$f":"(Statistics!B52)","v":"Page 39"},{"$f":"(Statistics!B53)","v":"Page 40"},{"$f":"(Statistics!B54)","v":"Page 41"},{"$f":"(Statistics!B55)","v":"Page 42"},{"$f":"(Statistics!B56)","v":"Page 43"},{"$f":"(Statistics!B57)","v":"Page 44"},{"$f":"(Statistics!B58)","v":"Page 45"},{"$f":"(Statistics!B59)","v":"Page 46"},{"$f":"(Statistics!B60)","v":"Page 47"},{"$f":"(Statistics!B61)","v":"Page 48"},{"$f":"(Statistics!B62)","v":"Page 49"},{"$f":"(Statistics!B63)","v":"Page 50"}]
[null,null,null,null,null,null,null,null,null,null,null,null,null,null,null,null,null,null,null,null,null,null,null,null,null,{"$f":"(Statistics!C14)","v":0},{"$f":"(Statistics!C15)","v":0},{"$f":"(Statistics!C16)","v":0},{"$f":"(Statistics!C17)","v":0},{"$f":"(Statistics!C18)","v":0},{"$f":"(Statistics!C19)","v":0},{"$f":"(Statistics!C20)","v":0},{"$f":"(Statistics!C21)","v":0},{"$f":"(Statistics!C22)","v":0},{"$f":"(Statistics!C23)","v":0},{"$f":"(Statistics!C24)","v":0},{"$f":"(Statistics!C25)","v":0},{"$f":"(Statistics!C26)","v":0},{"$f":"(Statistics!C27)","v":0},{"$f":"(Statistics!C28)","v":0},{"$f":"(Statistics!C29)","v":0},{"$f":"(Statistics!C30)","v":0},{"$f":"(Statistics!C31)","v":0},{"$f":"(Statistics!C32)","v":0},{"$f":"(Statistics!C33)","v":0},{"$f":"(Statistics!C34)","v":0},{"$f":"(Statistics!C35)","v":0},{"$f":"(Statistics!C36)","v":0},{"$f":"(Statistics!C37)","v":0},{"$f":"(Statistics!C38)","v":0},{"$f":"(Statistics!C39)","v":0},{"$f":"(Statistics!C40)","v":0},{"$f":"(Statistics!C41)","v":0},{"$f":"(Statistics!C42)","v":0},{"$f":"(Statistics!C43)","v":0},{"$f":"(Statistics!C44)","v":0},{"$f":"(Statistics!C45)","v":0},{"$f":"(Statistics!C46)","v":0},{"$f":"(Statistics!C47)","v":0},{"$f":"(Statistics!C48)","v":0},{"$f":"(Statistics!C49)","v":0},{"$f":"(Statistics!C50)","v":"URL 37"},{"$f":"(Statistics!C51)","v":"URL 38"},{"$f":"(Statistics!C52)","v":"URL 39"},{"$f":"(Statistics!C53)","v":"URL 40"},{"$f":"(Statistics!C54)","v":"URL 41"},{"$f":"(Statistics!C55)","v":"URL 42"},{"$f":"(Statistics!C56)","v":"URL 43"},{"$f":"(Statistics!C57)","v":"URL 44"},{"$f":"(Statistics!C58)","v":"URL 45"},{"$f":"(Statistics!C59)","v":"URL 46"},{"$f":"(Statistics!C60)","v":"URL 47"},{"$f":"(Statistics!C61)","v":"URL 48"},{"$f":"(Statistics!C62)","v":"URL 49"},{"$f":"(Statistics!C63)","v":"URL 50"}]
["Page Area","What we are comparing","Image","Recommendation (image)","Recommendation (description)","Colour","Adjacent Colour","Valid","R RGB","Fail Only","G RGB","G","B RGB","B","Luminance","Valid","R RGB","R","G RGB","G","B RGB","B","Fail Only","Contrast Ratio","All Results",{"$f":"COUNTIF(Z4:Z1000,\"Fail\") & \" Fault\" & IF(COUNTIF(Z4:Z1000,\"Fail\")=1,\"\",\"s\")","v":"0 Faults"},{"$f":"COUNTIF(AA4:AA1000,\"Fail\") & \" Fault\" & IF(COUNTIF(AA4:AA1000,\"Fail\")=1,\"\",\"s\")","v":"0 Faults"},{"$f":"COUNTIF(AB4:AB1000,\"Fail\") & \" Fault\" & IF(COUNTIF(AB4:AB1000,\"Fail\")=1,\"\",\"s\")","v":"0 Faults"},{"$f":"COUNTIF(AC4:AC1000,\"Fail\") & \" Fault\" & IF(COUNTIF(AC4:AC1000,\"Fail\")=1,\"\",\"s\")","v":"0 Faults"},"0 Faults","0 Faults","0 Faults","0 Faults","0 Faults","0 Faults","0 Faults","0 Faults","0 Faults","0 Faults","2 Faults","0 Faults","0 Faults","0 Faults","0 Faults","0 Faults","0 Faults","0 Faults","0 Faults","0 Faults","0 Faults","0 Faults","0 Faults","0 Faults","0 Faults","0 Faults","0 Faults","0 Faults","0 Faults","0 Faults","0 Faults","0 Faults","0 Faults","0 Faults","0 Faults","0 Faults","0 Faults","0 Faults","0 Faults","0 Faults","0 Faults","0 Faults","0 Faults","0 Faults","0 Faults","0 Faults"]
["Link icons","red symbol on white",null,null,"no change","#EE266D","#FFFFFF",{"$f":"IF(LEN(F4)=0,\"\",AND(LEFT(F4,1)=\"#\",LEN(F4)=7))","v":true},{"$f":"HEX2DEC(RIGHT(LEFT(F4,3),2))","v":238},{"$f":"IF(I4/255<= 0.03928,I4/(255*12.92),(((I4/255)+0.055)/1.055)^2.4)","v":0.85499260812423383},{"$f":"HEX2DEC(RIGHT(LEFT(F4,5),2))","v":38},{"$f":"IF(K4/255<= 0.03928,K4/(255*12.92),(((K4/255)+0.055)/1.055)^2.4)","v":1.9382360956935723E-2},{"$f":"HEX2DEC(RIGHT(F4,2))","v":109},{"$f":"IF(M4/255<= 0.03928,M4/(255*12.92),(((M4/255)+0.055)/1.055)^2.4)","v":0.15292615199615014},{"$f":"(0.2126*J4)+(0.7152*L4)+(0.0722*N4)","v":0.2066749612177346},{"$f":"IF(LEN(G4)=0,\"\",AND(LEFT(G4,1)=\"#\",LEN(G4)=7))","v":true},{"$f":"HEX2DEC(RIGHT(LEFT(G4,3),2))","v":255},{"$f":"IF(Q4/255<= 0.03928,Q4/(255*12.92),(((Q4/255)+0.055)/1.055)^2.4)","v":1},{"$f":"HEX2DEC(RIGHT(LEFT(G4,5),2))","v":255},{"$f":"IF(S4/255<= 0.03928,S4/(255*12.92),(((S4/255)+0.055)/1.055)^2.4)","v":1},{"$f":"HEX2DEC(RIGHT(G4,2))","v":255},{"$f":"IF(U4/255<= 0.03928,U4/(255*12.92),(((U4/255)+0.055)/1.055)^2.4)","v":1},{"$f":"(0.2126*R4)+(0.7152*T4)+(0.0722*V4)","v":1},{"$f":"IF(OR(H4=\"\",P4=\"\")=TRUE,\"\",IF(OR(H4=FALSE,P4=FALSE)=TRUE,\"ERROR\",ROUND(IF(O4>W4,(O4+0.05)/(W4+0.05),(W4+0.05)/(O4+0.05)),2)))","v":4.09},{"$f":"IF(X4=\"\",\"\",IF(X4>=3,\"Pass\",\"Fail\"))","v":"Pass"},"N/A",null,"Pass","N/A",null,"N/A","N/A",null,null,null,null,null,"N/A",null,"Pass",null,null,null,null,null,null,null,null,null,null,null,null,null,null,null,null,null,null,null,null,"N/A"]
["Red buttons","button on dark background",null,null,"no change","#DE2365","#282015",true,222,{"$f":"IF(I5/255<= 0.03928,I5/(255*12.92),(((I5/255)+0.055)/1.055)^2.4)","v":0.73046074009035356},35,{"$f":"IF(K5/255<= 0.03928,K5/(255*12.92),(((K5/255)+0.055)/1.055)^2.4)","v":1.6807375752887391E-2},101,{"$f":"IF(M5/255<= 0.03928,M5/(255*12.92),(((M5/255)+0.055)/1.055)^2.4)","v":0.13013647669036432},{"$f":"(0.2126*J5)+(0.7152*L5)+(0.0722*N5)","v":0.17671244209871856},true,40,{"$f":"IF(Q5/255<= 0.03928,Q5/(255*12.92),(((Q5/255)+0.055)/1.055)^2.4)","v":2.1219010376003551E-2},32,{"$f":"IF(S5/255<= 0.03928,S5/(255*12.92),(((S5/255)+0.055)/1.055)^2.4)","v":1.4443843596092543E-2},21,{"$f":"IF(U5/255<= 0.03928,U5/(255*12.92),(((U5/255)+0.055)/1.055)^2.4)","v":7.4990320432261753E-3},{"$f":"(0.2126*R5)+(0.7152*T5)+(0.0722*V5)","v":1.5382828659384671E-2},{"$f":"IF(OR(H5=\"\",P5=\"\")=TRUE,\"\",IF(OR(H5=FALSE,P5=FALSE)=TRUE,\"ERROR\",ROUND(IF(O5>W5,(O5+0.05)/(W5+0.05),(W5+0.05)/(O5+0.05)),2)))","v":3.47},{"$f":"IF(X5=\"\",\"\",IF(X5>=3,\"Pass\",\"Fail\"))","v":"Pass"},"N/A",null,"N/A","Pass",null,"N/A","N/A",null,null,null,null,null,"N/A",null,"N/A",null,null,null,null,null,null,null,null,null,null,null,null,null,null,null,null,null,null,null,null,"N/A"]
["Red buttons on focus","black focus outline inside button",null,null,"no change","#090907","#DE2365",true,9,2.7317428519395377E-3,9,2.7317428519395377E-3,7,2.1246888848418626E-3,2.6879135555150854E-3,true,222,0.73046074009035356,35,1.6807375752887391E-2,101,0.13013647669036432,0.17671244209871856,4.3,{"$f":"IF(X6=\"\",\"\",IF(X6>=3,\"Pass\",\"Fail\"))","v":"Pass"},"N/A",null,"N/A","Pass",null,"N/A","N/A",null,null,null,null,null,"N/A",null,"N/A",null,null,null,null,null,null,null,null,null,null,null,null,null,null,null,null,null,null,null,null,"N/A"]
["Hamburger button","red lines on white",null,null,"use the same shade of red as other icons","#EE266D","#FFFFFF",true,238,0.85499260812423383,38,1.9382360956935723E-2,109,0.15292615199615014,0.2066749612177346,true,255,1,255,1,255,1,1,4.09,"Pass","Pass",null,"N/A","N/A",null,"N/A","N/A",null,null,null,null,null,"N/A",null,"N/A",null,null,null,null,null,null,null,null,null,null,null,null,null,null,null,null,null,null,null,null,"N/A"]
["Link icons","white symbol on red",null,null,"no change","#FFFFFF","#EE266D",true,255,{"$f":"IF(I8/255<= 0.03928,I8/(255*12.92),(((I8/255)+0.055)/1.055)^2.4)","v":1},255,{"$f":"IF(K8/255<= 0.03928,K8/(255*12.92),(((K8/255)+0.055)/1.055)^2.4)","v":1},255,{"$f":"IF(M8/255<= 0.03928,M8/(255*12.92),(((M8/255)+0.055)/1.055)^2.4)","v":1},{"$f":"(0.2126*J8)+(0.7152*L8)+(0.0722*N8)","v":1},true,238,{"$f":"IF(Q8/255<= 0.03928,Q8/(255*12.92),(((Q8/255)+0.055)/1.055)^2.4)","v":0.85499260812423383},38,{"$f":"IF(S8/255<= 0.03928,S8/(255*12.92),(((S8/255)+0.055)/1.055)^2.4)","v":1.9382360956935723E-2},109,{"$f":"IF(U8/255<= 0.03928,U8/(255*12.92),(((U8/255)+0.055)/1.055)^2.4)","v":0.15292615199615014},{"$f":"(0.2126*R8)+(0.7152*T8)+(0.0722*V8)","v":0.2066749612177346},{"$f":"IF(OR(H8=\"\",P8=\"\")=TRUE,\"\",IF(OR(H8=FALSE,P8=FALSE)=TRUE,\"ERROR\",ROUND(IF(O8>W8,(O8+0.05)/(W8+0.05),(W8+0.05)/(O8+0.05)),2)))","v":4.09},"Pass","N/A",null,"Pass","N/A",null,"N/A","Pass",null,null,null,null,null,"N/A",null,"Pass",null,null,null,null,null,null,null,null,null,null,null,null,null,null,null,null,null,null,null,null,"N/A"]
["Timeline blue ticks","white symbol on colour",null,null,"no change","#FFFFFF","#105EFF",true,255,1,255,1,255,1,1,true,16,5.1815167023383868E-3,94,0.11193242783690559,255,1,0.15335566283987201,5.16,"Pass","N/A",null,"N/A","N/A",null,"N/A","N/A",null,null,null,null,null,"N/A",null,"Pass",null,null,null,null,null,null,null,null,null,null,null,null,null,null,null,null,null,null,null,null,"N/A"]
["Timeline blue ticks","white symbol on colour",null,null,"no change","#FFFFFF","#1E87FF",true,255,{"$f":"IF(I10/255<= 0.03928,I10/(255*12.92),(((I10/255)+0.055)/1.055)^2.4)","v":1},255,{"$f":"IF(K10/255<= 0.03928,K10/(255*12.92),(((K10/255)+0.055)/1.055)^2.4)","v":1},255,{"$f":"IF(M10/255<= 0.03928,M10/(255*12.92),(((M10/255)+0.055)/1.055)^2.4)","v":1},{"$f":"(0.2126*J10)+(0.7152*L10)+(0.0722*N10)","v":1},true,30,{"$f":"IF(Q10/255<= 0.03928,Q10/(255*12.92),(((Q10/255)+0.055)/1.055)^2.4)","v":1.2983032342173016E-2},135,{"$f":"IF(S10/255<= 0.03928,S10/(255*12.92),(((S10/255)+0.055)/1.055)^2.4)","v":0.24228112246555489},255,{"$f":"IF(U10/255<= 0.03928,U10/(255*12.92),(((U10/255)+0.055)/1.055)^2.4)","v":1},{"$f":"(0.2126*R10)+(0.7152*T10)+(0.0722*V10)","v":0.24823965146331084},{"$f":"IF(OR(H10=\"\",P10=\"\")=TRUE,\"\",IF(OR(H10=FALSE,P10=FALSE)=TRUE,\"ERROR\",ROUND(IF(O10>W10,(O10+0.05)/(W10+0.05),(W10+0.05)/(O10+0.05)),2)))","v":3.52},"Pass","N/A",null,"N/A","N/A",null,"N/A","N/A",null,null,null,null,null,"N/A",null,"Pass",null,null,null,null,null,null,null,null,null,null,null,null,null,null,null,null,null,null,null,null,"N/A"]
["Timeline circles","symbol on white",null,null,"use a darker grey e.g. #666666","#BABABA","#FFFFFF",true,186,0.49102084984783556,186,0.49102084984783556,186,0.49102084984783556,0.49102084984783551,true,255,1,255,1,255,1,1,1.94,"Fail","N/A","N/A","N/A","N/A",null,"N/A","N/A",null,null,"N/A",null,null,"N/A","N/A","Fail",null,null,null,null,null,null,null,null,null,null,null,null,null,null,null,null,null,null,null,null,"N/A","N/A"]
["Timeline circles","symbol on white",null,null,"use a darker blue","#28A4FF","#FFFFFF",true,40,{"$f":"IF(I12/255<= 0.03928,I12/(255*12.92),(((I12/255)+0.055)/1.055)^2.4)","v":2.1219010376003551E-2},164,{"$f":"IF(K12/255<= 0.03928,K12/(255*12.92),(((K12/255)+0.055)/1.055)^2.4)","v":0.37123768047414912},255,{"$f":"IF(M12/255<= 0.03928,M12/(255*12.92),(((M12/255)+0.055)/1.055)^2.4)","v":1},{"$f":"(0.2126*J12)+(0.7152*L12)+(0.0722*N12)","v":0.34222035068104978},true,255,{"$f":"IF(Q12/255<= 0.03928,Q12/(255*12.92),(((Q12/255)+0.055)/1.055)^2.4)","v":1},255,{"$f":"IF(S12/255<= 0.03928,S12/(255*12.92),(((S12/255)+0.055)/1.055)^2.4)","v":1},255,{"$f":"IF(U12/255<= 0.03928,U12/(255*12.92),(((U12/255)+0.055)/1.055)^2.4)","v":1},{"$f":"(0.2126*R12)+(0.7152*T12)+(0.0722*V12)","v":1},{"$f":"IF(OR(H12=\"\",P12=\"\")=TRUE,\"\",IF(OR(H12=FALSE,P12=FALSE)=TRUE,\"ERROR\",ROUND(IF(O12>W12,(O12+0.05)/(W12+0.05),(W12+0.05)/(O12+0.05)),2)))","v":2.68},"Fail","N/A","N/A","N/A","N/A",null,"N/A","N/A",null,null,"N/A",null,null,"N/A","N/A","Fail",null,null,null,null,null,null,null,null,null,null,null,null,null,null,null,null,null,null,null,null,"N/A","N/A"]
["Have your say","symbol on white",null,null,"no change","#00AC2B","#FFFFFF",true,0,0,172,0.41254261348390375,43,2.4157632448504759E-2,0.29679465822647,true,255,1,255,1,255,1,1,3.03,"Pass","N/A","N/A","N/A","N/A",null,"N/A","Pass",null,null,"N/A",null,null,"N/A","Pass","N/A",null,null,null,null,null,null,null,null,null,null,null,null,null,null,null,null,null,null,null,null,"N/A","N/A"]
["Have your say","symbol on white",null,null,"no change","#FF0000","#FFFFFF",true,255,1,0,0,0,0,0.21260000000000001,true,255,1,255,1,255,1,1,4,"Pass","N/A","N/A","N/A","N/A",null,"N/A","Pass",null,null,"N/A",null,null,"N/A","Pass","N/A",null,null,null,null,null,null,null,null,null,null,null,null,null,null,null,null,null,null,null,null,"N/A","N/A"]
["Red icons","red pin on white",null,null,"no change","#EE266D","#FFFFFF",true,238,0.85499260812423383,38,1.9382360956935723E-2,109,0.15292615199615014,0.2066749612177346,true,255,1,255,1,255,1,1,4.09,"Pass","N/A","N/A","N/A","N/A",null,"N/A","N/A",null,null,"N/A",null,null,"Pass","Pass","N/A",null,null,null,null,null,null,null,null,null,null,null,null,null,null,null,null,null,null,null,null,"N/A","N/A"]
["Red buttons","button against white page",null,null,"no change","#DE2365","#FFFFFF",true,222,0.73046074009035356,35,1.6807375752887391E-2,101,0.13013647669036432,0.17671244209871856,true,255,1,255,1,255,1,1,4.63,"Pass","N/A","N/A","N/A","N/A",null,"N/A","N/A",null,null,"N/A",null,null,"N/A","Pass","N/A",null,null,null,null,null,null,null,null,null,null,null,null,null,null,null,null,null,null,null,null,"N/A","Pass"]
["Focus outline on buttons","outline against white page",null,null,"no change","#DE2366","#FFFFFF",true,222,0.73046074009035356,35,1.6807375752887391E-2,102,0.13286832155381798,0.17690968129785989,true,255,1,255,1,255,1,1,4.63,"Pass","N/A","N/A","N/A","N/A",null,"N/A","N/A",null,null,"N/A",null,null,"N/A","Pass","N/A",null,null,null,null,null,null,null,null,null,null,null,null,null,null,null,null,null,null,null,null,"N/A","Pass"]
["White on red red icons","white symbol on red",null,null,"no change","#FFFFFF","#EE266D",{"$f":"IF(LEN(F18)=0,\"\",AND(LEFT(F18,1)=\"#\",LEN(F18)=7))","v":true},{"$f":"HEX2DEC(RIGHT(LEFT(F18,3),2))","v":255},1,{"$f":"HEX2DEC(RIGHT(LEFT(F18,5),2))","v":255},1,{"$f":"HEX2DEC(RIGHT(F18,2))","v":255},1,1,{"$f":"IF(LEN(G18)=0,\"\",AND(LEFT(G18,1)=\"#\",LEN(G18)=7))","v":true},{"$f":"HEX2DEC(RIGHT(LEFT(G18,3),2))","v":238},0.85499260812423383,{"$f":"HEX2DEC(RIGHT(LEFT(G18,5),2))","v":38},1.9382360956935723E-2,{"$f":"HEX2DEC(RIGHT(G18,2))","v":109},0.15292615199615014,0.2066749612177346,4.09,"Pass","N/A","N/A","N/A","N/A",null,"N/A","N/A",null,null,"Pass",null,null,"N/A","N/A","N/A",null,null,null,null,null,null,null,null,null,null,null,null,null,null,null,null,null,null,null,null,"N/A","N/A"]
[null,null,null,null,null,null,null,"",0,0,0,0,0,0,0,"",0,0,0,0,0,0,0,"",""]
[null,null,null,null,null,null,null,"",0,0,0,0,0,0,0,"",0,0,0,0,0,0,0,"",""]
[null,null,null,null,null,null,null,"",0,0,0,0,0,0,0,"",0,0,0,0,0,0,0,"",""]
[null,null,null,null,null,null,null,"",0,0,0,0,0,0,0,"",0,0,0,0,0,0,0,"",""]
[null,null,null,null,null,null,null,"",0,0,0,0,0,0,0,"",0,0,0,0,0,0,0,"",""]
[null,null,null,null,null,null,null,"",0,0,0,0,0,0,0,"",0,0,0,0,0,0,0,"",""]
[null,null,null,null,null,null,null,"",0,0,0,0,0,0,0,"",0,0,0,0,0,0,0,"",""]
[null,null,null,null,null,null,null,"",0,0,0,0,0,0,0,"",0,0,0,0,0,0,0,"",""]
[null,null,null,null,null,null,null,"",0,0,0,0,0,0,0,"",0,0,0,0,0,0,0,"",""]
[null,null,null,null,null,null,null,"",0,0,0,0,0,0,0,"",0,0,0,0,0,0,0,"",""]
[null,null,null,null,null,null,null,"",0,0,0,0,0,0,0,"",0,0,0,0,0,0,0,"",""]
[null,null,null,null,null,null,null,"",0,0,0,0,0,0,0,"",0,0,0,0,0,0,0,"",""]
[null,null,null,null,null,null,null,"",0,0,0,0,0,0,0,"",0,0,0,0,0,0,0,"",""]
[null,null,null,null,null,null,null,"",0,0,0,0,0,0,0,"",0,0,0,0,0,0,0,"",""]
[null,null,null,null,null,null,null,"",0,0,0,0,0,0,0,"",0,0,0,0,0,0,0,"",""]
[null,null,null,null,null,null,null,"",0,0,0,0,0,0,0,"",0,0,0,0,0,0,0,"",""]
[null,null,null,null,null,null,null,"",0,0,0,0,0,0,0,"",0,0,0,0,0,0,0,"",""]
[null,null,null,null,null,null,null,{"$f":"IF(LEN(F36)=0,\"\",AND(LEFT(F36,1)=\"#\",LEN(F36)=7))","v":""},{"$f":"HEX2DEC(RIGHT(LEFT(F36,3),2))","v":0},0,{"$f":"HEX2DEC(RIGHT(LEFT(F36,5),2))","v":0},0,{"$f":"HEX2DEC(RIGHT(F36,2))","v":0},0,0,{"$f":"IF(LEN(G36)=0,\"\",AND(LEFT(G36,1)=\"#\",LEN(G36)=7))","v":""},{"$f":"HEX2DEC(RIGHT(LEFT(G36,3),2))","v":0},0,{"$f":"HEX2DEC(RIGHT(LEFT(G36,5),2))","v":0},0,{"$f":"HEX2DEC(RIGHT(G36,2))","v":0},0,0,"",""]
[null,null,null,null,null,null,null,"",0,0,0,0,0,0,0,"",0,0,0,0,0,0,0,"",""]
[null,null,null,null,null,null,null,"",0,0,0,0,0,0,0,"",0,0,0,0,0,0,0,"",""]
[null,null,null,null,null,null,null,"",0,0,0,0,0,0,0,"",0,0,0,0,0,0,0,"",""]
[null,null,null,null,null,null,null,"",0,0,0,0,0,0,0,"",0,0,0,0,0,0,0,"",""]
[null,null,null,null,null,null,null,"",0,0,0,0,0,0,0,"",0,0,0,0,0,0,0,"",""]
[null,null,null,null,null,null,null,"",0,0,0,0,0,0,0,"",0,0,0,0,0,0,0,"",""]
[null,null,null,null,null,null,null,"",0,0,0,0,0,0,0,"",0,0,0,0,0,0,0,"",""]
[null,null,null,null,null,null,null,"",0,0,0,0,0,0,0,"",0,0,0,0,0,0,0,"",""]
[null,null,null,null,null,null,null,"",0,0,0,0,0,0,0,"",0,0,0,0,0,0,0,"",""]
[null,null,null,null,null,null,null,"",0,0,0,0,0,0,0,"",0,0,0,0,0,0,0,"",""]
[null,null,null,null,null,null,null,"",0,0,0,0,0,0,0,"",0,0,0,0,0,0,0,"",""]
[null,null,null,null,null,null,null,"",0,0,0,0,0,0,0,"",0,0,0,0,0,0,0,"",""]
[null,null,null,null,null,null,null,"",0,0,0,0,0,0,0,"",0,0,0,0,0,0,0,"",""]
[null,null,null,null,null,null,null,"",0,0,0,0,0,0,0,"",0,0,0,0,0,0,0,"",""]
[null,null,null,null,null,null,null,"",0,0,0,0,0,0,0,"",0,0,0,0,0,0,0,"",""]
[null,null,null,null,null,null,null,"",0,0,0,0,0,0,0,"",0,0,0,0,0,0,0,"",""]
[null,null,null,null,null,null,null,"",0,0,0,0,0,0,0,"",0,0,0,0,0,0,0,"",""]
[null,null,null,null,null,null,null,"",0,0,0,0,0,0,0,"",0,0,0,0,0,0,0,"",""]
[null,null,null,null,null,null,null,"",0,0,0,0,0,0,0,"",0,0,0,0,0,0,0,"",""]
[null,null,null,null,null,null,null,"",0,0,0,0,0,0,0,"",0,0,0,0,0,0,0,"",""]
[null,null,null,null,null,null,null,"",0,0,0,0,0,0,0,"",0,0,0,0,0,0,0,"",""]
[null,null,null,null,null,null,null,"",0,0,0,0,0,0,0,"",0,0,0,0,0,0,0,"",""]
[null,null,null,null,null,null,null,"",0,0,0,0,0,0,0,"",0,0,0,0,0,0,0,"",""]
[null,null,null,null,null,null,null,"",0,0,0,0,0,0,0,"",0,0,0,0,0,0,0,"",""]
[null,null,null,null,null,null,null,"",0,0,0,0,0,0,0,"",0,0,0,0,0,0,0,"",""]
[null,null,null,null,null,null,null,"",0,0,0,0,0,0,0,"",0,0,0,0,0,0,0,"",""]
[null,null,null,null,null,null,null,"",0,0,0,0,0,0,0,"",0,0,0,0,0,0,0,"",""]
[null,null,null,null,null,null,null,"",0,0,0,0,0,0,0,"",0,0,0,0,0,0,0,"",""]
[null,null,null,null,null,null,null,"",0,0,0,0,0,0,0,"",0,0,0,0,0,0,0,"",""]
[null,null,null,null,null,null,null,"",0,0,0,0,0,0,0,"",0,0,0,0,0,0,0,"",""]
[null,null,null,null,null,null,null,"",0,0,0,0,0,0,0,"",0,0,0,0,0,0,0,"",""]
[null,null,null,null,null,null,null,"",0,0,0,0,0,0,0,"",0,0,0,0,0,0,0,"",""]
[null,null,null,null,null,null,null,"",0,0,0,0,0,0,0,"",0,0,0,0,0,0,0,"",""]
[null,null,null,null,null,null,null,"",0,0,0,0,0,0,{"$f":"(0.2126*J70)+(0.7152*L70)+(0.0722*N70)","v":0},"",0,0,0,0,0,0,{"$f":"(0.2126*R70)+(0.7152*T70)+(0.0722*V70)","v":0},{"$f":"IF(OR(H70=\"\",P70=\"\")=TRUE,\"\",IF(OR(H70=FALSE,P70=FALSE)=TRUE,\"ERROR\",ROUND(IF(O70>W70,(O70+0.05)/(W70+0.05),(W70+0.05)/(O70+0.05)),2)))","v":""},""]
[null,null,null,null,null,null,null,"",0,0,0,0,0,0,{"$f":"(0.2126*J71)+(0.7152*L71)+(0.0722*N71)","v":0},"",0,0,0,0,0,0,{"$f":"(0.2126*R71)+(0.7152*T71)+(0.0722*V71)","v":0},{"$f":"IF(OR(H71=\"\",P71=\"\")=TRUE,\"\",IF(OR(H71=FALSE,P71=FALSE)=TRUE,\"ERROR\",ROUND(IF(O71>W71,(O71+0.05)/(W71+0.05),(W71+0.05)/(O71+0.05)),2)))","v":""},{"$f":"IF(X71=\"\",\"\",IF(X71>=3,\"Pass\",\"Fail\"))","v":""}]
[]
["Colour combinations shown in pink do not meet the contrast ratio (3:1 Minimum) recommended by W3C WCAG 2.1"]

{"sheet":"Changelog","index":6,"n_rows":5,"n_cols":2,"rows_kept":5,"cut":false,"hidden":true,"merged":[]}
["Version","Changes"]
[3.2,"1. Set the results for all AAA success criteria to Not Tested. Added instruction to delete them all when testing for compliance with AAA.\n\n2. Added a combobox to the header of the Colour Contrast Analysis worksheet to switch between the different thresholds that apply at AA and AAA. The combobox setting automatically sets the appropriate thresholds in the formulae in the Results column.\n\n3. Hid the Cover worksheet. We should update it at some point but it is very low priority.\n\n4. Changed the Hyperlink style so the URL on the Statistics sheet is 11pt bold, the same as the other cells."]
[3.3,"1. Added examples in the Non-text Contrast worksheet.\n\n2. Added the \"What we are comparing\" and \"Recommendation (description) columns to the Non-text Contrast worksheet and reduced the width of most columns.\n\n3. Fixed the VBA so the Fail Only link works on the Non-text Contrast worksheet."]
[3.4,"Screenshots worksheet\n1. Added this worksheet. It's primarily for adding screenshots of components or mobile app screens, both as a record of what was tested and also to avoid any ambiguity because components and mobile app screens often do not have a unique or reliable means of identification.\n\nStatistics worksheet\n2. Added the \"Page or Component\" column. This will eventually be used to calculate the number of errors per page. The current means of calculation gives incorrect results if we have columns of results for the header and footer or any other common component.\n3. Added the Scope selector so the tester can specify whether they are testing to level A, AA or AAA. This does not do much now, but it will perform important functions in future versions of the report.\n\nSuccess Criteria worksheet\n4. Added \"Press Ctrl+Colon to enter today's date\" in row 2 to remind testers to record the date each page was tested.\n5. Added formulae in row 6 to calculate the number of non-compliances per page.\n6. Added formulae to automatically populate the results for the colour contrast and non-text contrast success criteria.\n7. Increased the width of the results columns to 250px on the Success Criteria worksheet so row 6 does not wrap.\n8. Added \"View screenshot\" links in row 5. These point to the corresponding heading on the Screenshots worksheet.\n\nColour Contrast Analysis worksheet\n9. Added formulae in row 3 to calculate the number of non-compliances per page.\n10. Changed the options in the dropdown for the results to just Pass, Pass (large text), Fail and N/A.\n\nNon-text Contrast worksheet\n11. Added formulae in row 3 to calculate the number of non-compliances per page.\n12. Removed the Initial State column from the Non-text Contrast worksheet and renamed the Focus State heading to Image. This is because we have been misinterpreting SC 1.4.11 - it only requires comparison of colours that are displayed at the same time.\n13. Changed the options in the dropdown for the results to just Pass, Fail and N/A.\n14. Corrected the heading to refer to \"adjacent colours\" instead of \"background and foreground colours\"."]
[3.5,"Statistics worksheet\n1. Changed cell I10 from \"Flash Version\" to \"Secondary Browser 3\". This is because Flash is pretty much deprecated and we ought to start testing with Microsoft Edge as well as Chrome, Firefox and Internet Explorer 11.\n2. Merged cell D12 with the cells to its left to improve the appearance.\n\nSuccess Criteria worksheet\n3. Reversed the order of the \"Foreground colour\" and \"Background colour\" columns so they are consistent with the order in all the major colour contrast analysers."]

{"sheet":"Comboboxes","index":7,"n_rows":6,"n_cols":2,"rows_kept":6,"cut":false,"hidden":true,"merged":[]}
["Level","Variable Name"]
["(Level AA)","Option value 1"]
["(Level AAA)","Option value 2"]
["(Level AA)","Selected value"]
[{"$f":"IF(A4=A2,4.5,7)","v":4.5},"Colour contrast ratio (small text)"]
[{"$f":"IF(A4=A2,3,4.5)","v":3},"Colour contrast ratio (large text)"]

{"sheet":"Data Table","index":8,"n_rows":51,"n_cols":7,"rows_kept":51,"cut":false,"hidden":true,"merged":[]}
["Page","WCAG 2.0 Level A Criteria\nFailed / Total\n","WCAG 2.0 Level AA Criteria\nFailed / Total\n","Total WCAG 2.0 Criteria\nFailed / Total\n",null,null,"Instructions for copying this data table into the Management Summary Report"]
[{"$f":"Statistics!B14","v":"Header (logged out)"},{"$f":"CONCATENATE(Statistics!F14,\" / 25\")","v":"5 / 25"},{"$f":"CONCATENATE(Statistics!J14,\" / 13\")","v":"1 / 13"},{"$f":"CONCATENATE(Statistics!R14,\" / 38\")","v":"6 / 38"},null,1,"Locate the Statistics data table in the Management Summary Report."]
[{"$f":"Statistics!B15","v":"Header (logged in)"},{"$f":"CONCATENATE(Statistics!F15,\" / 25\")","v":"5 / 25"},{"$f":"CONCATENATE(Statistics!J15,\" / 13\")","v":"1 / 13"},{"$f":"CONCATENATE(Statistics!R15,\" / 38\")","v":"6 / 38"},null,2,"Delete the contents of the data table."]
[{"$f":"Statistics!B16","v":"Footer"},{"$f":"CONCATENATE(Statistics!F16,\" / 25\")","v":"0 / 25"},{"$f":"CONCATENATE(Statistics!J16,\" / 13\")","v":"0 / 13"},{"$f":"CONCATENATE(Statistics!R16,\" / 38\")","v":"0 / 38"},null,3,"Add or delete rows and columns in the data table such that they match the number of rows and columns in the data in this worksheet, including the heading row."]
[{"$f":"Statistics!B17","v":"Hero area"},{"$f":"CONCATENATE(Statistics!F17,\" / 25\")","v":"0 / 25"},{"$f":"CONCATENATE(Statistics!J17,\" / 13\")","v":"1 / 13"},{"$f":"CONCATENATE(Statistics!R17,\" / 38\")","v":"1 / 38"},null,4,"Select all the cells in the data table in this worksheet."]
[{"$f":"Statistics!B18","v":"Search"},{"$f":"CONCATENATE(Statistics!F18,\" / 25\")","v":"0 / 25"},{"$f":"CONCATENATE(Statistics!J18,\" / 13\")","v":"0 / 13"},{"$f":"CONCATENATE(Statistics!R18,\" / 38\")","v":"0 / 38"},null,5,"Copy the cells (Ctrl+C is the easiest way to do this)."]
[{"$f":"Statistics!B19","v":"Featured"},{"$f":"CONCATENATE(Statistics!F19,\" / 25\")","v":"2 / 25"},{"$f":"CONCATENATE(Statistics!J19,\" / 13\")","v":"0 / 13"},{"$f":"CONCATENATE(Statistics!R19,\" / 38\")","v":"2 / 38"},null,6,"Select all the cells in the data table in the Management Summary Report."]
[{"$f":"Statistics!B20","v":"Have your say"},{"$f":"CONCATENATE(Statistics!F20,\" / 25\")","v":"3 / 25"},{"$f":"CONCATENATE(Statistics!J20,\" / 13\")","v":"0 / 13"},{"$f":"CONCATENATE(Statistics!R20,\" / 38\")","v":"3 / 38"},null,7,"Paste the cells into the Management Summary Report (Ctrl+V is the easiest way to do this)."]
[{"$f":"Statistics!B21","v":"Quick Poll"},{"$f":"CONCATENATE(Statistics!F21,\" / 25\")","v":"0 / 25"},{"$f":"CONCATENATE(Statistics!J21,\" / 13\")","v":"0 / 13"},{"$f":"CONCATENATE(Statistics!R21,\" / 38\")","v":"0 / 38"},null,8,"While the cells are still selected, set the Paragraph Spacing to 3pt Before and 3pt After."]
[{"$f":"Statistics!B22","v":"Quick Poll Results"},{"$f":"CONCATENATE(Statistics!F22,\" / 25\")","v":"0 / 25"},{"$f":"CONCATENATE(Statistics!J22,\" / 13\")","v":"0 / 13"},{"$f":"CONCATENATE(Statistics!R22,\" / 38\")","v":"0 / 38"},null,9,"Make the column headings bold."]
[{"$f":"Statistics!B23","v":"Updates and impact"},{"$f":"CONCATENATE(Statistics!F23,\" / 25\")","v":"3 / 25"},{"$f":"CONCATENATE(Statistics!J23,\" / 13\")","v":"0 / 13"},{"$f":"CONCATENATE(Statistics!R23,\" / 38\")","v":"3 / 38"},null,10,"Select all the data cells but not the row and column headings."]
[{"$f":"Statistics!B24","v":"Start a discussion"},{"$f":"CONCATENATE(Statistics!F24,\" / 25\")","v":"0 / 25"},{"$f":"CONCATENATE(Statistics!J24,\" / 13\")","v":"0 / 13"},{"$f":"CONCATENATE(Statistics!R24,\" / 38\")","v":"0 / 38"},null,11,"Right-click anywhere in the selected area. A dropdown menu will appear. Select Cell Alignment > Align Centre (the option in the middle)."]
[{"$f":"Statistics!B25","v":"Learn more"},{"$f":"CONCATENATE(Statistics!F25,\" / 25\")","v":"0 / 25"},{"$f":"CONCATENATE(Statistics!J25,\" / 13\")","v":"0 / 13"},{"$f":"CONCATENATE(Statistics!R25,\" / 38\")","v":"0 / 38"}]
[{"$f":"Statistics!B26","v":"Related content "},{"$f":"CONCATENATE(Statistics!F26,\" / 25\")","v":"1 / 25"},{"$f":"CONCATENATE(Statistics!J26,\" / 13\")","v":"1 / 13"},{"$f":"CONCATENATE(Statistics!R26,\" / 38\")","v":"2 / 38"},null,null,"This sheet needs to be updated for WCAG 2.1 AAA"]
[{"$f":"Statistics!B27","v":"Comments"},{"$f":"CONCATENATE(Statistics!F27,\" / 25\")","v":"3 / 25"},{"$f":"CONCATENATE(Statistics!J27,\" / 13\")","v":"0 / 13"},{"$f":"CONCATENATE(Statistics!R27,\" / 38\")","v":"3 / 38"}]
[{"$f":"Statistics!B28","v":"Timeline"},{"$f":"CONCATENATE(Statistics!F28,\" / 25\")","v":"5 / 25"},{"$f":"CONCATENATE(Statistics!J28,\" / 13\")","v":"2 / 13"},{"$f":"CONCATENATE(Statistics!R28,\" / 38\")","v":"7 / 38"}]
[{"$f":"Statistics!B29","v":"Video"},{"$f":"CONCATENATE(Statistics!F29,\" / 25\")","v":"0 / 25"},{"$f":"CONCATENATE(Statistics!J29,\" / 13\")","v":"0 / 13"},{"$f":"CONCATENATE(Statistics!R29,\" / 38\")","v":"0 / 38"}]
[{"$f":"Statistics!B30","v":"Next steps"},{"$f":"CONCATENATE(Statistics!F30,\" / 25\")","v":"0 / 25"},{"$f":"CONCATENATE(Statistics!J30,\" / 13\")","v":"0 / 13"},{"$f":"CONCATENATE(Statistics!R30,\" / 38\")","v":"0 / 38"}]
[{"$f":"Statistics!B31","v":"Infographic"},{"$f":"CONCATENATE(Statistics!F31,\" / 25\")","v":"0 / 25"},{"$f":"CONCATENATE(Statistics!J31,\" / 13\")","v":"0 / 13"},{"$f":"CONCATENATE(Statistics!R31,\" / 38\")","v":"0 / 38"}]
[{"$f":"Statistics!B32","v":"Search Results including Filter"},{"$f":"CONCATENATE(Statistics!F32,\" / 25\")","v":"0 / 25"},{"$f":"CONCATENATE(Statistics!J32,\" / 13\")","v":"0 / 13"},{"$f":"CONCATENATE(Statistics!R32,\" / 38\")","v":"0 / 38"}]
[{"$f":"Statistics!B33","v":"Your impact"},{"$f":"CONCATENATE(Statistics!F33,\" / 25\")","v":"0 / 25"},{"$f":"CONCATENATE(Statistics!J33,\" / 13\")","v":"0 / 13"},{"$f":"CONCATENATE(Statistics!R33,\" / 38\")","v":"0 / 38"}]
[{"$f":"Statistics!B34","v":"Survey form"},{"$f":"CONCATENATE(Statistics!F34,\" / 25\")","v":"0 / 25"},{"$f":"CONCATENATE(Statistics!J34,\" / 13\")","v":"0 / 13"},{"$f":"CONCATENATE(Statistics!R34,\" / 38\")","v":"0 / 38"}]
[{"$f":"Statistics!B35","v":"Status"},{"$f":"CONCATENATE(Statistics!F35,\" / 25\")","v":"0 / 25"},{"$f":"CONCATENATE(Statistics!J35,\" / 13\")","v":"0 / 13"},{"$f":"CONCATENATE(Statistics!R35,\" / 38\")","v":"0 / 38"}]
[{"$f":"Statistics!B36","v":"Invite members"},{"$f":"CONCATENATE(Statistics!F36,\" / 25\")","v":"0 / 25"},{"$f":"CONCATENATE(Statistics!J36,\" / 13\")","v":"0 / 13"},{"$f":"CONCATENATE(Statistics!R36,\" / 38\")","v":"0 / 38"}]
[{"$f":"Statistics!B37","v":"Following"},{"$f":"CONCATENATE(Statistics!F37,\" / 25\")","v":"0 / 25"},{"$f":"CONCATENATE(Statistics!J37,\" / 13\")","v":"0 / 13"},{"$f":"CONCATENATE(Statistics!R37,\" / 38\")","v":"0 / 38"}]
[{"$f":"Statistics!B38","v":"Supporting"},{"$f":"CONCATENATE(Statistics!F38,\" / 25\")","v":"0 / 25"},{"$f":"CONCATENATE(Statistics!J38,\" / 13\")","v":"0 / 13"},{"$f":"CONCATENATE(Statistics!R38,\" / 38\")","v":"0 / 38"}]
[{"$f":"Statistics!B39","v":"Surveys"},{"$f":"CONCATENATE(Statistics!F39,\" / 25\")","v":"0 / 25"},{"$f":"CONCATENATE(Statistics!J39,\" / 13\")","v":"0 / 13"},{"$f":"CONCATENATE(Statistics!R39,\" / 38\")","v":"0 / 38"}]
[{"$f":"Statistics!B40","v":"Ideas"},{"$f":"CONCATENATE(Statistics!F40,\" / 25\")","v":"0 / 25"},{"$f":"CONCATENATE(Statistics!J40,\" / 13\")","v":"0 / 13"},{"$f":"CONCATENATE(Statistics!R40,\" / 38\")","v":"0 / 38"}]
[{"$f":"Statistics!B41","v":"Form: Register no engagement"},{"$f":"CONCATENATE(Statistics!F41,\" / 25\")","v":"0 / 25"},{"$f":"CONCATENATE(Statistics!J41,\" / 13\")","v":"0 / 13"},{"$f":"CONCATENATE(Statistics!R41,\" / 38\")","v":"0 / 38"}]
[{"$f":"Statistics!B42","v":"Form: Register with engagement"},{"$f":"CONCATENATE(Statistics!F42,\" / 25\")","v":"0 / 25"},{"$f":"CONCATENATE(Statistics!J42,\" / 13\")","v":"0 / 13"},{"$f":"CONCATENATE(Statistics!R42,\" / 38\")","v":"0 / 38"}]
[{"$f":"Statistics!B43","v":"Form: Log in"},{"$f":"CONCATENATE(Statistics!F43,\" / 25\")","v":"0 / 25"},{"$f":"CONCATENATE(Statistics!J43,\" / 13\")","v":"0 / 13"},{"$f":"CONCATENATE(Statistics!R43,\" / 38\")","v":"0 / 38"}]
[{"$f":"Statistics!B44","v":"Form: Start discussion logged in"},{"$f":"CONCATENATE(Statistics!F44,\" / 25\")","v":"0 / 25"},{"$f":"CONCATENATE(Statistics!J44,\" / 13\")","v":"0 / 13"},{"$f":"CONCATENATE(Statistics!R44,\" / 38\")","v":"0 / 38"}]
[{"$f":"Statistics!B45","v":"Form: Complete my profile"},{"$f":"CONCATENATE(Statistics!F45,\" / 25\")","v":"0 / 25"},{"$f":"CONCATENATE(Statistics!J45,\" / 13\")","v":"0 / 13"},{"$f":"CONCATENATE(Statistics!R45,\" / 38\")","v":"0 / 38"}]
[{"$f":"Statistics!B46","v":"Form: Profile - about you"},{"$f":"CONCATENATE(Statistics!F46,\" / 25\")","v":"0 / 25"},{"$f":"CONCATENATE(Statistics!J46,\" / 13\")","v":"0 / 13"},{"$f":"CONCATENATE(Statistics!R46,\" / 38\")","v":"0 / 38"}]
[{"$f":"Statistics!B47","v":"Form: Profile - interests"},{"$f":"CONCATENATE(Statistics!F47,\" / 25\")","v":"0 / 25"},{"$f":"CONCATENATE(Statistics!J47,\" / 13\")","v":"0 / 13"},{"$f":"CONCATENATE(Statistics!R47,\" / 38\")","v":"0 / 38"}]
[{"$f":"Statistics!B48","v":"Form: Profile - account info"},{"$f":"CONCATENATE(Statistics!F48,\" / 25\")","v":"0 / 25"},{"$f":"CONCATENATE(Statistics!J48,\" / 13\")","v":"0 / 13"},{"$f":"CONCATENATE(Statistics!R48,\" / 38\")","v":"0 / 38"}]
[{"$f":"Statistics!B49","v":"Topics"},{"$f":"CONCATENATE(Statistics!F49,\" / 25\")","v":"2 / 25"},{"$f":"CONCATENATE(Statistics!J49,\" / 13\")","v":"0 / 13"},{"$f":"CONCATENATE(Statistics!R49,\" / 38\")","v":"2 / 38"}]
[{"$f":"Statistics!B50","v":"City Hall "},{"$f":"CONCATENATE(Statistics!F50,\" / 25\")","v":"2 / 25"},{"$f":"CONCATENATE(Statistics!J50,\" / 13\")","v":"0 / 13"},{"$f":"CONCATENATE(Statistics!R50,\" / 38\")","v":"2 / 38"}]
[{"$f":"Statistics!B51","v":"Page 38"},{"$f":"CONCATENATE(Statistics!F51,\" / 25\")","v":"0 / 25"},{"$f":"CONCATENATE(Statistics!J51,\" / 13\")","v":"0 / 13"},{"$f":"CONCATENATE(Statistics!R51,\" / 38\")","v":"0 / 38"}]
[{"$f":"Statistics!B52","v":"Page 39"},{"$f":"CONCATENATE(Statistics!F52,\" / 25\")","v":"0 / 25"},{"$f":"CONCATENATE(Statistics!J52,\" / 13\")","v":"0 / 13"},{"$f":"CONCATENATE(Statistics!R52,\" / 38\")","v":"0 / 38"}]
[{"$f":"Statistics!B53","v":"Page 40"},{"$f":"CONCATENATE(Statistics!F53,\" / 25\")","v":"0 / 25"},{"$f":"CONCATENATE(Statistics!J53,\" / 13\")","v":"0 / 13"},{"$f":"CONCATENATE(Statistics!R53,\" / 38\")","v":"0 / 38"}]
[{"$f":"Statistics!B54","v":"Page 41"},{"$f":"CONCATENATE(Statistics!F54,\" / 25\")","v":"0 / 25"},{"$f":"CONCATENATE(Statistics!J54,\" / 13\")","v":"0 / 13"},{"$f":"CONCATENATE(Statistics!R54,\" / 38\")","v":"0 / 38"}]
[{"$f":"Statistics!B55","v":"Page 42"},{"$f":"CONCATENATE(Statistics!F55,\" / 25\")","v":"0 / 25"},{"$f":"CONCATENATE(Statistics!J55,\" / 13\")","v":"0 / 13"},{"$f":"CONCATENATE(Statistics!R55,\" / 38\")","v":"0 / 38"}]
[{"$f":"Statistics!B56","v":"Page 43"},{"$f":"CONCATENATE(Statistics!F56,\" / 25\")","v":"0 / 25"},{"$f":"CONCATENATE(Statistics!J56,\" / 13\")","v":"0 / 13"},{"$f":"CONCATENATE(Statistics!R56,\" / 38\")","v":"0 / 38"}]
[{"$f":"Statistics!B57","v":"Page 44"},{"$f":"CONCATENATE(Statistics!F57,\" / 25\")","v":"0 / 25"},{"$f":"CONCATENATE(Statistics!J57,\" / 13\")","v":"0 / 13"},{"$f":"CONCATENATE(Statistics!R57,\" / 38\")","v":"0 / 38"}]
[{"$f":"Statistics!B58","v":"Page 45"},{"$f":"CONCATENATE(Statistics!F58,\" / 25\")","v":"0 / 25"},{"$f":"CONCATENATE(Statistics!J58,\" / 13\")","v":"0 / 13"},{"$f":"CONCATENATE(Statistics!R58,\" / 38\")","v":"0 / 38"}]
[{"$f":"Statistics!B59","v":"Page 46"},{"$f":"CONCATENATE(Statistics!F59,\" / 25\")","v":"0 / 25"},{"$f":"CONCATENATE(Statistics!J59,\" / 13\")","v":"0 / 13"},{"$f":"CONCATENATE(Statistics!R59,\" / 38\")","v":"0 / 38"}]
[{"$f":"Statistics!B60","v":"Page 47"},{"$f":"CONCATENATE(Statistics!F60,\" / 25\")","v":"0 / 25"},{"$f":"CONCATENATE(Statistics!J60,\" / 13\")","v":"0 / 13"},{"$f":"CONCATENATE(Statistics!R60,\" / 38\")","v":"0 / 38"}]
[{"$f":"Statistics!B61","v":"Page 48"},{"$f":"CONCATENATE(Statistics!F61,\" / 25\")","v":"0 / 25"},{"$f":"CONCATENATE(Statistics!J61,\" / 13\")","v":"0 / 13"},{"$f":"CONCATENATE(Statistics!R61,\" / 38\")","v":"0 / 38"}]
[{"$f":"Statistics!B62","v":"Page 49"},{"$f":"CONCATENATE(Statistics!F62,\" / 25\")","v":"0 / 25"},{"$f":"CONCATENATE(Statistics!J62,\" / 13\")","v":"0 / 13"},{"$f":"CONCATENATE(Statistics!R62,\" / 38\")","v":"0 / 38"}]
[{"$f":"Statistics!B63","v":"Page 50"},{"$f":"CONCATENATE(Statistics!F63,\" / 25\")","v":"0 / 25"},{"$f":"CONCATENATE(Statistics!J63,\" / 13\")","v":"0 / 13"},{"$f":"CONCATENATE(Statistics!R63,\" / 38\")","v":"0 / 38"}]